Organisation Name,Organisation Code,Unique Ref No,Effective Date,Directorate where expenditure incurred,Supplier Name,Payment Date,Net Amount,Purpose of Spend,Procurement Classification (Higher Level),Procurement Classification (Lower Level),Capital/Revenue
Walsall Council,http://opendatacommunities.org/id/metropolitan-district-council/walsall,WC116-01,31/05/2020,Economy & Environment,11KBW,05/05/2020,"1,350.00",63116-EXTERNAL BARRISTERS-SERVICES-FEES,ASSET MANAGEMENT,Supplies & Services,Revenue
Walsall Council,http://opendatacommunities.org/id/metropolitan-district-council/walsall,WC116-02,31/05/2020,Childrens,11KBW,01/05/2020,"4,148.33",73014-LEGAL FEES-PRIV CONTRACTOR FEES,GENERAL MANAGEMENT SUPPORT (INC LEGAL),Third Party Payments,Revenue
Walsall Council,http://opendatacommunities.org/id/metropolitan-district-council/walsall,WC116-03,31/05/2020,Childrens,247 CARS (WILLENHALL) LIMITED,22/05/2020,818.44,52000-WITH DRIVER-HIRE OF VEHICLES,HOME TO SCHOOL TRANSPORT,Transport,Revenue
Walsall Council,http://opendatacommunities.org/id/metropolitan-district-council/walsall,WC116-04,31/05/2020,Childrens,247 CARS (WILLENHALL) LIMITED,22/05/2020,"1,064.00",52000-WITH DRIVER-HIRE OF VEHICLES,HOME TO SCHOOL TRANSPORT,Transport,Revenue
Walsall Council,http://opendatacommunities.org/id/metropolitan-district-council/walsall,WC116-05,31/05/2020,Resources and Transformation,2BM LIMITED,22/05/2020,"2,400.00",63800-COMPUTER EQUIPMENT AND SUPPLIES,DATA CENTRES,Supplies & Services,Revenue
Walsall Council,http://opendatacommunities.org/id/metropolitan-district-council/walsall,WC116-06,31/05/2020,Resources and Transformation,2HILLS CONSULTANCY,22/05/2020,"1,161.20",63102-CONSULTANTS FEES - CORPORATE,COMMUNITY SAFETY 2012/2013,Supplies & Services,Revenue
Walsall Council,http://opendatacommunities.org/id/metropolitan-district-council/walsall,WC116-07,31/05/2020,Resources and Transformation,39 ESSEX STREET LLP PFA,20/05/2020,500.00,63102-CONSULTANTS FEES - CORPORATE,WORKFORCE DEVELOPMENT,Supplies & Services,Revenue
Walsall Council,http://opendatacommunities.org/id/metropolitan-district-council/walsall,WC116-08,31/05/2020,Resources and Transformation,39 ESSEX STREET LLP PFA,19/05/2020,"3,600.00",73014-LEGAL FEES-PRIV CONTRACTOR FEES,LAW LIBRARY,Third Party Payments,Revenue
Walsall Council,http://opendatacommunities.org/id/metropolitan-district-council/walsall,WC116-09,31/05/2020,Childrens,3P LEARNING LTD,07/05/2020,"2,295.00",63000-PROFESSIONAL FEES AND SERVICES,VIRTUAL SCHOOL CENTRAL PUPIL PREMIUM,Supplies & Services,Revenue
Walsall Council,http://opendatacommunities.org/id/metropolitan-district-council/walsall,WC116-10,31/05/2020,Adult Social Care,5 CARE SERVICES LTD,22/05/2020,"-1,665.36",73507-DOMICILIARY CARE,PHYSICAL SUPPORT,Third Party Payments,Revenue
Walsall Council,http://opendatacommunities.org/id/metropolitan-district-council/walsall,WC116-11,31/05/2020,Adult Social Care,5 CARE SERVICES LTD,11/05/2020,280.13,73507-DOMICILIARY CARE,MENTAL HEALTH SUPPORT,Third Party Payments,Revenue
Walsall Council,http://opendatacommunities.org/id/metropolitan-district-council/walsall,WC116-12,31/05/2020,Adult Social Care,5 CARE SERVICES LTD,12/05/2020,280.13,73507-DOMICILIARY CARE,MENTAL HEALTH SUPPORT,Third Party Payments,Revenue
Walsall Council,http://opendatacommunities.org/id/metropolitan-district-council/walsall,WC116-13,31/05/2020,Adult Social Care,5 CARE SERVICES LTD,22/05/2020,280.13,73507-DOMICILIARY CARE,MENTAL HEALTH SUPPORT,Third Party Payments,Revenue
Walsall Council,http://opendatacommunities.org/id/metropolitan-district-council/walsall,WC116-14,31/05/2020,Adult Social Care,5 CARE SERVICES LTD,22/05/2020,280.13,73507-DOMICILIARY CARE,MENTAL HEALTH SUPPORT,Third Party Payments,Revenue
Walsall Council,http://opendatacommunities.org/id/metropolitan-district-council/walsall,WC116-15,31/05/2020,Adult Social Care,5 CARE SERVICES LTD,12/05/2020,289.16,73507-DOMICILIARY CARE,PHYSICAL SUPPORT,Third Party Payments,Revenue
Walsall Council,http://opendatacommunities.org/id/metropolitan-district-council/walsall,WC116-16,31/05/2020,Adult Social Care,5 CARE SERVICES LTD,11/05/2020,296.87,73507-DOMICILIARY CARE,PHYSICAL SUPPORT,Third Party Payments,Revenue
Walsall Council,http://opendatacommunities.org/id/metropolitan-district-council/walsall,WC116-17,31/05/2020,Adult Social Care,5 CARE SERVICES LTD,12/05/2020,296.87,73507-DOMICILIARY CARE,PHYSICAL SUPPORT,Third Party Payments,Revenue
Walsall Council,http://opendatacommunities.org/id/metropolitan-district-council/walsall,WC116-18,31/05/2020,Adult Social Care,5 CARE SERVICES LTD,22/05/2020,296.87,73507-DOMICILIARY CARE,PHYSICAL SUPPORT,Third Party Payments,Revenue
Walsall Council,http://opendatacommunities.org/id/metropolitan-district-council/walsall,WC116-19,31/05/2020,Adult Social Care,5 CARE SERVICES LTD,22/05/2020,296.87,73507-DOMICILIARY CARE,PHYSICAL SUPPORT,Third Party Payments,Revenue
Walsall Council,http://opendatacommunities.org/id/metropolitan-district-council/walsall,WC116-20,31/05/2020,Adult Social Care,5 CARE SERVICES LTD,11/05/2020,305.83,73507-DOMICILIARY CARE,PHYSICAL SUPPORT,Third Party Payments,Revenue
Walsall Council,http://opendatacommunities.org/id/metropolitan-district-council/walsall,WC116-21,31/05/2020,Adult Social Care,5 CARE SERVICES LTD,12/05/2020,305.83,73507-DOMICILIARY CARE,PHYSICAL SUPPORT,Third Party Payments,Revenue
Walsall Council,http://opendatacommunities.org/id/metropolitan-district-council/walsall,WC116-22,31/05/2020,Adult Social Care,5 CARE SERVICES LTD,22/05/2020,305.83,73507-DOMICILIARY CARE,PHYSICAL SUPPORT,Third Party Payments,Revenue
Walsall Council,http://opendatacommunities.org/id/metropolitan-district-council/walsall,WC116-23,31/05/2020,Adult Social Care,5 CARE SERVICES LTD,22/05/2020,305.83,73507-DOMICILIARY CARE,PHYSICAL SUPPORT,Third Party Payments,Revenue
Walsall Council,http://opendatacommunities.org/id/metropolitan-district-council/walsall,WC116-24,31/05/2020,Adult Social Care,5 CARE SERVICES LTD,11/05/2020,308.40,73507-DOMICILIARY CARE,LEARNING DISABILITY SUPPORT,Third Party Payments,Revenue
Walsall Council,http://opendatacommunities.org/id/metropolitan-district-council/walsall,WC116-25,31/05/2020,Adult Social Care,5 CARE SERVICES LTD,12/05/2020,308.40,73507-DOMICILIARY CARE,LEARNING DISABILITY SUPPORT,Third Party Payments,Revenue
Walsall Council,http://opendatacommunities.org/id/metropolitan-district-council/walsall,WC116-26,31/05/2020,Adult Social Care,5 CARE SERVICES LTD,22/05/2020,308.40,73507-DOMICILIARY CARE,LEARNING DISABILITY SUPPORT,Third Party Payments,Revenue
Walsall Council,http://opendatacommunities.org/id/metropolitan-district-council/walsall,WC116-27,31/05/2020,Adult Social Care,5 CARE SERVICES LTD,22/05/2020,308.40,73507-DOMICILIARY CARE,LEARNING DISABILITY SUPPORT,Third Party Payments,Revenue
Walsall Council,http://opendatacommunities.org/id/metropolitan-district-council/walsall,WC116-28,31/05/2020,Adult Social Care,5 CARE SERVICES LTD,22/05/2020,308.40,73507-DOMICILIARY CARE,LEARNING DISABILITY SUPPORT,Third Party Payments,Revenue
Walsall Council,http://opendatacommunities.org/id/metropolitan-district-council/walsall,WC116-29,31/05/2020,Adult Social Care,5 CARE SERVICES LTD,11/05/2020,323.82,73507-DOMICILIARY CARE,PHYSICAL SUPPORT,Third Party Payments,Revenue
Walsall Council,http://opendatacommunities.org/id/metropolitan-district-council/walsall,WC116-30,31/05/2020,Adult Social Care,5 CARE SERVICES LTD,12/05/2020,323.82,73507-DOMICILIARY CARE,PHYSICAL SUPPORT,Third Party Payments,Revenue
Walsall Council,http://opendatacommunities.org/id/metropolitan-district-council/walsall,WC116-31,31/05/2020,Adult Social Care,5 CARE SERVICES LTD,22/05/2020,323.82,73507-DOMICILIARY CARE,PHYSICAL SUPPORT,Third Party Payments,Revenue
Walsall Council,http://opendatacommunities.org/id/metropolitan-district-council/walsall,WC116-32,31/05/2020,Adult Social Care,5 CARE SERVICES LTD,11/05/2020,341.81,73507-DOMICILIARY CARE,PHYSICAL SUPPORT,Third Party Payments,Revenue
Walsall Council,http://opendatacommunities.org/id/metropolitan-district-council/walsall,WC116-33,31/05/2020,Adult Social Care,5 CARE SERVICES LTD,12/05/2020,341.81,73507-DOMICILIARY CARE,PHYSICAL SUPPORT,Third Party Payments,Revenue
Walsall Council,http://opendatacommunities.org/id/metropolitan-district-council/walsall,WC116-34,31/05/2020,Adult Social Care,5 CARE SERVICES LTD,22/05/2020,341.81,73507-DOMICILIARY CARE,PHYSICAL SUPPORT,Third Party Payments,Revenue
Walsall Council,http://opendatacommunities.org/id/metropolitan-district-council/walsall,WC116-35,31/05/2020,Adult Social Care,5 CARE SERVICES LTD,22/05/2020,341.81,73507-DOMICILIARY CARE,PHYSICAL SUPPORT,Third Party Payments,Revenue
Walsall Council,http://opendatacommunities.org/id/metropolitan-district-council/walsall,WC116-36,31/05/2020,Adult Social Care,5 CARE SERVICES LTD,11/05/2020,354.66,73507-DOMICILIARY CARE,LEARNING DISABILITY SUPPORT,Third Party Payments,Revenue
Walsall Council,http://opendatacommunities.org/id/metropolitan-district-council/walsall,WC116-37,31/05/2020,Adult Social Care,5 CARE SERVICES LTD,11/05/2020,377.79,73507-DOMICILIARY CARE,PHYSICAL SUPPORT,Third Party Payments,Revenue
Walsall Council,http://opendatacommunities.org/id/metropolitan-district-council/walsall,WC116-38,31/05/2020,Adult Social Care,5 CARE SERVICES LTD,12/05/2020,377.79,73507-DOMICILIARY CARE,PHYSICAL SUPPORT,Third Party Payments,Revenue
Walsall Council,http://opendatacommunities.org/id/metropolitan-district-council/walsall,WC116-39,31/05/2020,Adult Social Care,5 CARE SERVICES LTD,22/05/2020,377.79,73507-DOMICILIARY CARE,PHYSICAL SUPPORT,Third Party Payments,Revenue
Walsall Council,http://opendatacommunities.org/id/metropolitan-district-council/walsall,WC116-40,31/05/2020,Adult Social Care,5 CARE SERVICES LTD,22/05/2020,377.79,73507-DOMICILIARY CARE,PHYSICAL SUPPORT,Third Party Payments,Revenue
Walsall Council,http://opendatacommunities.org/id/metropolitan-district-council/walsall,WC116-41,31/05/2020,Adult Social Care,5 CARE SERVICES LTD,12/05/2020,385.50,73507-DOMICILIARY CARE,MENTAL HEALTH SUPPORT,Third Party Payments,Revenue
Walsall Council,http://opendatacommunities.org/id/metropolitan-district-council/walsall,WC116-42,31/05/2020,Adult Social Care,5 CARE SERVICES LTD,11/05/2020,393.21,73507-DOMICILIARY CARE,PHYSICAL SUPPORT,Third Party Payments,Revenue
Walsall Council,http://opendatacommunities.org/id/metropolitan-district-council/walsall,WC116-43,31/05/2020,Adult Social Care,5 CARE SERVICES LTD,12/05/2020,393.21,73507-DOMICILIARY CARE,PHYSICAL SUPPORT,Third Party Payments,Revenue
Walsall Council,http://opendatacommunities.org/id/metropolitan-district-council/walsall,WC116-44,31/05/2020,Adult Social Care,5 CARE SERVICES LTD,22/05/2020,393.21,73507-DOMICILIARY CARE,PHYSICAL SUPPORT,Third Party Payments,Revenue
Walsall Council,http://opendatacommunities.org/id/metropolitan-district-council/walsall,WC116-45,31/05/2020,Adult Social Care,5 CARE SERVICES LTD,22/05/2020,393.21,73507-DOMICILIARY CARE,PHYSICAL SUPPORT,Third Party Payments,Revenue
Walsall Council,http://opendatacommunities.org/id/metropolitan-district-council/walsall,WC116-46,31/05/2020,Adult Social Care,5 CARE SERVICES LTD,11/05/2020,431.76,73507-DOMICILIARY CARE,PHYSICAL SUPPORT,Third Party Payments,Revenue
Walsall Council,http://opendatacommunities.org/id/metropolitan-district-council/walsall,WC116-47,31/05/2020,Adult Social Care,5 CARE SERVICES LTD,11/05/2020,431.76,73507-DOMICILIARY CARE,PHYSICAL SUPPORT,Third Party Payments,Revenue
Walsall Council,http://opendatacommunities.org/id/metropolitan-district-council/walsall,WC116-48,31/05/2020,Adult Social Care,5 CARE SERVICES LTD,11/05/2020,431.76,73507-DOMICILIARY CARE,PHYSICAL SUPPORT,Third Party Payments,Revenue
Walsall Council,http://opendatacommunities.org/id/metropolitan-district-council/walsall,WC116-49,31/05/2020,Adult Social Care,5 CARE SERVICES LTD,12/05/2020,431.76,73507-DOMICILIARY CARE,PHYSICAL SUPPORT,Third Party Payments,Revenue
Walsall Council,http://opendatacommunities.org/id/metropolitan-district-council/walsall,WC116-50,31/05/2020,Adult Social Care,5 CARE SERVICES LTD,12/05/2020,431.76,73507-DOMICILIARY CARE,PHYSICAL SUPPORT,Third Party Payments,Revenue
Walsall Council,http://opendatacommunities.org/id/metropolitan-district-council/walsall,WC116-51,31/05/2020,Adult Social Care,5 CARE SERVICES LTD,12/05/2020,431.76,73507-DOMICILIARY CARE,PHYSICAL SUPPORT,Third Party Payments,Revenue
Walsall Council,http://opendatacommunities.org/id/metropolitan-district-council/walsall,WC116-52,31/05/2020,Adult Social Care,5 CARE SERVICES LTD,22/05/2020,431.76,73507-DOMICILIARY CARE,PHYSICAL SUPPORT,Third Party Payments,Revenue
Walsall Council,http://opendatacommunities.org/id/metropolitan-district-council/walsall,WC116-53,31/05/2020,Adult Social Care,5 CARE SERVICES LTD,22/05/2020,431.76,73507-DOMICILIARY CARE,PHYSICAL SUPPORT,Third Party Payments,Revenue
Walsall Council,http://opendatacommunities.org/id/metropolitan-district-council/walsall,WC116-54,31/05/2020,Adult Social Care,5 CARE SERVICES LTD,22/05/2020,431.76,73507-DOMICILIARY CARE,PHYSICAL SUPPORT,Third Party Payments,Revenue
Walsall Council,http://opendatacommunities.org/id/metropolitan-district-council/walsall,WC116-55,31/05/2020,Adult Social Care,5 CARE SERVICES LTD,22/05/2020,431.76,73507-DOMICILIARY CARE,PHYSICAL SUPPORT,Third Party Payments,Revenue
Walsall Council,http://opendatacommunities.org/id/metropolitan-district-council/walsall,WC116-56,31/05/2020,Adult Social Care,5 CARE SERVICES LTD,22/05/2020,431.76,73507-DOMICILIARY CARE,LEARNING DISABILITY SUPPORT,Third Party Payments,Revenue
Walsall Council,http://opendatacommunities.org/id/metropolitan-district-council/walsall,WC116-57,31/05/2020,Adult Social Care,5 CARE SERVICES LTD,11/05/2020,462.60,73507-DOMICILIARY CARE,PHYSICAL SUPPORT,Third Party Payments,Revenue
Walsall Council,http://opendatacommunities.org/id/metropolitan-district-council/walsall,WC116-58,31/05/2020,Adult Social Care,5 CARE SERVICES LTD,11/05/2020,485.73,73507-DOMICILIARY CARE,PHYSICAL SUPPORT,Third Party Payments,Revenue
Walsall Council,http://opendatacommunities.org/id/metropolitan-district-council/walsall,WC116-59,31/05/2020,Adult Social Care,5 CARE SERVICES LTD,11/05/2020,485.73,73507-DOMICILIARY CARE,PHYSICAL SUPPORT,Third Party Payments,Revenue
Walsall Council,http://opendatacommunities.org/id/metropolitan-district-council/walsall,WC116-60,31/05/2020,Adult Social Care,5 CARE SERVICES LTD,12/05/2020,485.73,73507-DOMICILIARY CARE,PHYSICAL SUPPORT,Third Party Payments,Revenue
Walsall Council,http://opendatacommunities.org/id/metropolitan-district-council/walsall,WC116-61,31/05/2020,Adult Social Care,5 CARE SERVICES LTD,12/05/2020,485.73,73507-DOMICILIARY CARE,PHYSICAL SUPPORT,Third Party Payments,Revenue
Walsall Council,http://opendatacommunities.org/id/metropolitan-district-council/walsall,WC116-62,31/05/2020,Adult Social Care,5 CARE SERVICES LTD,22/05/2020,485.73,73507-DOMICILIARY CARE,PHYSICAL SUPPORT,Third Party Payments,Revenue
Walsall Council,http://opendatacommunities.org/id/metropolitan-district-council/walsall,WC116-63,31/05/2020,Adult Social Care,5 CARE SERVICES LTD,22/05/2020,485.73,73507-DOMICILIARY CARE,PHYSICAL SUPPORT,Third Party Payments,Revenue
Walsall Council,http://opendatacommunities.org/id/metropolitan-district-council/walsall,WC116-64,31/05/2020,Adult Social Care,5 CARE SERVICES LTD,22/05/2020,485.73,73507-DOMICILIARY CARE,PHYSICAL SUPPORT,Third Party Payments,Revenue
Walsall Council,http://opendatacommunities.org/id/metropolitan-district-council/walsall,WC116-65,31/05/2020,Adult Social Care,5 CARE SERVICES LTD,22/05/2020,485.73,73507-DOMICILIARY CARE,PHYSICAL SUPPORT,Third Party Payments,Revenue
Walsall Council,http://opendatacommunities.org/id/metropolitan-district-council/walsall,WC116-66,31/05/2020,Adult Social Care,5 CARE SERVICES LTD,11/05/2020,485.80,73507-DOMICILIARY CARE,PHYSICAL SUPPORT,Third Party Payments,Revenue
Walsall Council,http://opendatacommunities.org/id/metropolitan-district-council/walsall,WC116-67,31/05/2020,Adult Social Care,5 CARE SERVICES LTD,12/05/2020,485.80,73507-DOMICILIARY CARE,PHYSICAL SUPPORT,Third Party Payments,Revenue
Walsall Council,http://opendatacommunities.org/id/metropolitan-district-council/walsall,WC116-68,31/05/2020,Adult Social Care,5 CARE SERVICES LTD,22/05/2020,485.80,73507-DOMICILIARY CARE,PHYSICAL SUPPORT,Third Party Payments,Revenue
Walsall Council,http://opendatacommunities.org/id/metropolitan-district-council/walsall,WC116-69,31/05/2020,Adult Social Care,5 CARE SERVICES LTD,22/05/2020,485.80,73507-DOMICILIARY CARE,PHYSICAL SUPPORT,Third Party Payments,Revenue
Walsall Council,http://opendatacommunities.org/id/metropolitan-district-council/walsall,WC116-70,31/05/2020,Adult Social Care,5 CARE SERVICES LTD,22/05/2020,539.70,73507-DOMICILIARY CARE,PHYSICAL SUPPORT,Third Party Payments,Revenue
Walsall Council,http://opendatacommunities.org/id/metropolitan-district-council/walsall,WC116-71,31/05/2020,Adult Social Care,5 CARE SERVICES LTD,22/05/2020,539.70,73507-DOMICILIARY CARE,PHYSICAL SUPPORT,Third Party Payments,Revenue
Walsall Council,http://opendatacommunities.org/id/metropolitan-district-council/walsall,WC116-72,31/05/2020,Adult Social Care,5 CARE SERVICES LTD,15/05/2020,539.84,73025-PROFESSIONAL SERVICES-PRIV CONTRACTOR & OTHER AGENCIES,INTERMEDIATE CARE SERVICE,Third Party Payments,Revenue
Walsall Council,http://opendatacommunities.org/id/metropolitan-district-council/walsall,WC116-73,31/05/2020,Adult Social Care,5 CARE SERVICES LTD,11/05/2020,562.83,73507-DOMICILIARY CARE,PHYSICAL SUPPORT,Third Party Payments,Revenue
Walsall Council,http://opendatacommunities.org/id/metropolitan-district-council/walsall,WC116-74,31/05/2020,Adult Social Care,5 CARE SERVICES LTD,12/05/2020,562.83,73507-DOMICILIARY CARE,PHYSICAL SUPPORT,Third Party Payments,Revenue
Walsall Council,http://opendatacommunities.org/id/metropolitan-district-council/walsall,WC116-75,31/05/2020,Adult Social Care,5 CARE SERVICES LTD,22/05/2020,562.83,73507-DOMICILIARY CARE,PHYSICAL SUPPORT,Third Party Payments,Revenue
Walsall Council,http://opendatacommunities.org/id/metropolitan-district-council/walsall,WC116-76,31/05/2020,Adult Social Care,5 CARE SERVICES LTD,22/05/2020,562.83,73507-DOMICILIARY CARE,PHYSICAL SUPPORT,Third Party Payments,Revenue
Walsall Council,http://opendatacommunities.org/id/metropolitan-district-council/walsall,WC116-77,31/05/2020,Adult Social Care,5 CARE SERVICES LTD,12/05/2020,647.64,73507-DOMICILIARY CARE,PHYSICAL SUPPORT,Third Party Payments,Revenue
Walsall Council,http://opendatacommunities.org/id/metropolitan-district-council/walsall,WC116-78,31/05/2020,Adult Social Care,5 CARE SERVICES LTD,22/05/2020,647.64,73507-DOMICILIARY CARE,MENTAL HEALTH SUPPORT,Third Party Payments,Revenue
Walsall Council,http://opendatacommunities.org/id/metropolitan-district-council/walsall,WC116-79,31/05/2020,Adult Social Care,5 CARE SERVICES LTD,11/05/2020,663.06,73507-DOMICILIARY CARE,MENTAL HEALTH SUPPORT,Third Party Payments,Revenue
Walsall Council,http://opendatacommunities.org/id/metropolitan-district-council/walsall,WC116-80,31/05/2020,Adult Social Care,5 CARE SERVICES LTD,22/05/2020,673.34,73507-DOMICILIARY CARE,MENTAL HEALTH SUPPORT,Third Party Payments,Revenue
Walsall Council,http://opendatacommunities.org/id/metropolitan-district-council/walsall,WC116-81,31/05/2020,Adult Social Care,5 CARE SERVICES LTD,22/05/2020,755.58,73507-DOMICILIARY CARE,PHYSICAL SUPPORT,Third Party Payments,Revenue
Walsall Council,http://opendatacommunities.org/id/metropolitan-district-council/walsall,WC116-82,31/05/2020,Adult Social Care,5 CARE SERVICES LTD,22/05/2020,755.58,73507-DOMICILIARY CARE,PHYSICAL SUPPORT,Third Party Payments,Revenue
Walsall Council,http://opendatacommunities.org/id/metropolitan-district-council/walsall,WC116-83,31/05/2020,Childrens,5 CARE SERVICES LTD,06/05/2020,909.15,63000-PROFESSIONAL FEES AND SERVICES,DIRECTLY COMMISSIONED NURSING SERVICES,Supplies & Services,Revenue
Walsall Council,http://opendatacommunities.org/id/metropolitan-district-council/walsall,WC116-84,31/05/2020,Adult Social Care,5 CARE SERVICES LTD,11/05/2020,925.20,73507-DOMICILIARY CARE,PHYSICAL SUPPORT,Third Party Payments,Revenue
Walsall Council,http://opendatacommunities.org/id/metropolitan-district-council/walsall,WC116-85,31/05/2020,Adult Social Care,5 CARE SERVICES LTD,12/05/2020,925.20,73507-DOMICILIARY CARE,PHYSICAL SUPPORT,Third Party Payments,Revenue
Walsall Council,http://opendatacommunities.org/id/metropolitan-district-council/walsall,WC116-86,31/05/2020,Adult Social Care,5 CARE SERVICES LTD,12/05/2020,925.20,73507-DOMICILIARY CARE,PHYSICAL SUPPORT,Third Party Payments,Revenue
Walsall Council,http://opendatacommunities.org/id/metropolitan-district-council/walsall,WC116-87,31/05/2020,Adult Social Care,5 CARE SERVICES LTD,22/05/2020,925.20,73507-DOMICILIARY CARE,PHYSICAL SUPPORT,Third Party Payments,Revenue
Walsall Council,http://opendatacommunities.org/id/metropolitan-district-council/walsall,WC116-88,31/05/2020,Adult Social Care,5 CARE SERVICES LTD,22/05/2020,925.20,73507-DOMICILIARY CARE,PHYSICAL SUPPORT,Third Party Payments,Revenue
Walsall Council,http://opendatacommunities.org/id/metropolitan-district-council/walsall,WC116-89,31/05/2020,Adult Social Care,5 CARE SERVICES LTD,22/05/2020,925.20,73507-DOMICILIARY CARE,LEARNING DISABILITY SUPPORT,Third Party Payments,Revenue
Walsall Council,http://opendatacommunities.org/id/metropolitan-district-council/walsall,WC116-90,31/05/2020,Adult Social Care,5 CARE SERVICES LTD,22/05/2020,925.20,73507-DOMICILIARY CARE,PHYSICAL SUPPORT,Third Party Payments,Revenue
Walsall Council,http://opendatacommunities.org/id/metropolitan-district-council/walsall,WC116-91,31/05/2020,Adult Social Care,5 CARE SERVICES LTD,22/05/2020,925.20,73507-DOMICILIARY CARE,PHYSICAL SUPPORT,Third Party Payments,Revenue
Walsall Council,http://opendatacommunities.org/id/metropolitan-district-council/walsall,WC116-92,31/05/2020,Adult Social Care,5 CARE SERVICES LTD,18/05/2020,971.60,73025-PROFESSIONAL SERVICES-PRIV CONTRACTOR & OTHER AGENCIES,INTERMEDIATE CARE SERVICE,Third Party Payments,Revenue
Walsall Council,http://opendatacommunities.org/id/metropolitan-district-council/walsall,WC116-93,31/05/2020,Adult Social Care,5 CARE SERVICES LTD,05/05/2020,"1,110.24",73507-DOMICILIARY CARE,PHYSICAL SUPPORT,Third Party Payments,Revenue
Walsall Council,http://opendatacommunities.org/id/metropolitan-district-council/walsall,WC116-94,31/05/2020,Adult Social Care,5 CARE SERVICES LTD,11/05/2020,"1,110.24",73507-DOMICILIARY CARE,PHYSICAL SUPPORT,Third Party Payments,Revenue
Walsall Council,http://opendatacommunities.org/id/metropolitan-district-council/walsall,WC116-95,31/05/2020,Adult Social Care,5 CARE SERVICES LTD,11/05/2020,"1,289.70",73507-DOMICILIARY CARE,PHYSICAL SUPPORT,Third Party Payments,Revenue
Walsall Council,http://opendatacommunities.org/id/metropolitan-district-council/walsall,WC116-96,31/05/2020,Adult Social Care,5 CARE SERVICES LTD,05/05/2020,"1,480.32",73507-DOMICILIARY CARE,PHYSICAL SUPPORT,Third Party Payments,Revenue
Walsall Council,http://opendatacommunities.org/id/metropolitan-district-council/walsall,WC116-97,31/05/2020,Adult Social Care,5 CARE SERVICES LTD,18/05/2020,"1,480.32",73507-DOMICILIARY CARE,PHYSICAL SUPPORT,Third Party Payments,Revenue
Walsall Council,http://opendatacommunities.org/id/metropolitan-district-council/walsall,WC116-98,31/05/2020,Childrens,5 CARE SERVICES LTD,22/05/2020,"1,595.00",63000-PROFESSIONAL FEES AND SERVICES,DIRECTLY COMMISSIONED NURSING SERVICES,Supplies & Services,Revenue
Walsall Council,http://opendatacommunities.org/id/metropolitan-district-council/walsall,WC116-99,31/05/2020,Adult Social Care,5 CARE SERVICES LTD,04/05/2020,"9,362.42",73507-DOMICILIARY CARE,PHYSICAL SUPPORT,Third Party Payments,Revenue
Walsall Council,http://opendatacommunities.org/id/metropolitan-district-council/walsall,WC116-100,31/05/2020,Adult Social Care,A F BLAKEMORE & SON LTD,28/05/2020,250.06,61016-FOOD AND BEVERAGES-PROVISIONS,GOSCOTE,Supplies & Services,Revenue
Walsall Council,http://opendatacommunities.org/id/metropolitan-district-council/walsall,WC116-101,31/05/2020,Childrens,REDACTED,05/05/2020,712.12,73506-DIRECT PAYMENT,FAMILY SUPPORT - DIRECT PAYMENTS,Third Party Payments,Revenue
Walsall Council,http://opendatacommunities.org/id/metropolitan-district-council/walsall,WC116-102,31/05/2020,Adult Social Care,ABBEY COURT NURSING & RESIDEN,07/05/2020,"1,997.52",73500-RESIDENTIAL,PHYSICAL SUPPORT,Third Party Payments,Revenue
Walsall Council,http://opendatacommunities.org/id/metropolitan-district-council/walsall,WC116-103,31/05/2020,Adult Social Care,ABBEY COURT NURSING & RESIDEN,07/05/2020,"2,200.07",73501-RESIDENTIAL EMI,PHYSICAL SUPPORT,Third Party Payments,Revenue
Walsall Council,http://opendatacommunities.org/id/metropolitan-district-council/walsall,WC116-104,31/05/2020,Adult Social Care,ABBEY COURT NURSING & RESIDEN,07/05/2020,"2,200.07",73501-RESIDENTIAL EMI,PHYSICAL SUPPORT,Third Party Payments,Revenue
Walsall Council,http://opendatacommunities.org/id/metropolitan-district-council/walsall,WC116-105,31/05/2020,Adult Social Care,ABBEY COURT NURSING & RESIDEN,07/05/2020,"2,200.07",73501-RESIDENTIAL EMI,SUPPORT WITH MEMORY & COGNITION,Third Party Payments,Revenue
Walsall Council,http://opendatacommunities.org/id/metropolitan-district-council/walsall,WC116-106,31/05/2020,Adult Social Care,ABBEY COURT NURSING & RESIDEN,07/05/2020,"2,587.38",73503-NURSING EMI,MENTAL HEALTH SUPPORT,Third Party Payments,Revenue
Walsall Council,http://opendatacommunities.org/id/metropolitan-district-council/walsall,WC116-107,31/05/2020,Adult Social Care,ABBEY HEALTHCARE HOMES LTD,07/05/2020,"2,354.77",73500-RESIDENTIAL,PHYSICAL SUPPORT,Third Party Payments,Revenue
Walsall Council,http://opendatacommunities.org/id/metropolitan-district-council/walsall,WC116-108,31/05/2020,Adult Social Care,ABBEY HEALTHCARE HOMES LTD,07/05/2020,"3,055.82",73503-NURSING EMI,PHYSICAL SUPPORT,Third Party Payments,Revenue
Walsall Council,http://opendatacommunities.org/id/metropolitan-district-council/walsall,WC116-109,31/05/2020,Adult Social Care,ABBEY HEALTHCARE HOMES LTD,07/05/2020,"3,079.35",73500-RESIDENTIAL,LEARNING DISABILITY SUPPORT,Third Party Payments,Revenue
Walsall Council,http://opendatacommunities.org/id/metropolitan-district-council/walsall,WC116-110,31/05/2020,Adult Social Care,ABBEY HEALTHCARE HOMES LTD,07/05/2020,"3,079.35",73500-RESIDENTIAL,PHYSICAL SUPPORT,Third Party Payments,Revenue
Walsall Council,http://opendatacommunities.org/id/metropolitan-district-council/walsall,WC116-111,31/05/2020,Adult Social Care,ABBEY HEALTHCARE HOMES LTD,07/05/2020,"3,171.19",73502-NURSING,PHYSICAL SUPPORT,Third Party Payments,Revenue
Walsall Council,http://opendatacommunities.org/id/metropolitan-district-council/walsall,WC116-112,31/05/2020,Adult Social Care,ABBEY HEALTHCARE HOMES LTD,07/05/2020,"3,489.92",73500-RESIDENTIAL,LEARNING DISABILITY SUPPORT,Third Party Payments,Revenue
Walsall Council,http://opendatacommunities.org/id/metropolitan-district-council/walsall,WC116-113,31/05/2020,Adult Social Care,REDACTED,01/05/2020,"2,110.92",73506-DIRECT PAYMENT,LEARNING DISABILITY SUPPORT,Third Party Payments,Revenue
Walsall Council,http://opendatacommunities.org/id/metropolitan-district-council/walsall,WC116-114,31/05/2020,Economy & Environment,ABLE INVESTIGATIONS & ENFORCEMENTS LTD,19/05/2020,"2,200.00",40000-OPERATIONAL MAINTENANCE,REMOVAL OF UNAUTHORISED ENCAMPMENTS,Premises,Revenue
Walsall Council,http://opendatacommunities.org/id/metropolitan-district-council/walsall,WC116-115,31/05/2020,Economy & Environment,ABLE INVESTIGATIONS & ENFORCEMENTS LTD,26/05/2020,"4,605.00",40000-OPERATIONAL MAINTENANCE,REMOVAL OF UNAUTHORISED ENCAMPMENTS,Premises,Revenue
Walsall Council,http://opendatacommunities.org/id/metropolitan-district-council/walsall,WC116-116,31/05/2020,Childrens,ABLEWELL CARS,22/05/2020,551.04,52000-WITH DRIVER-HIRE OF VEHICLES,HOME TO SCHOOL TRANSPORT,Transport,Revenue
Walsall Council,http://opendatacommunities.org/id/metropolitan-district-council/walsall,WC116-117,31/05/2020,Childrens,ABLEWELL CARS,22/05/2020,591.36,52000-WITH DRIVER-HIRE OF VEHICLES,HOME TO SCHOOL TRANSPORT,Transport,Revenue
Walsall Council,http://opendatacommunities.org/id/metropolitan-district-council/walsall,WC116-118,31/05/2020,Childrens,ABLEWELL CARS,22/05/2020,709.10,52000-WITH DRIVER-HIRE OF VEHICLES,HOME TO SCHOOL TRANSPORT,Transport,Revenue
Walsall Council,http://opendatacommunities.org/id/metropolitan-district-council/walsall,WC116-119,31/05/2020,Childrens,ABS TAXIS (ALDRIDGE),22/05/2020,677.60,52000-WITH DRIVER-HIRE OF VEHICLES,HOME TO SCHOOL TRANSPORT,Transport,Revenue
Walsall Council,http://opendatacommunities.org/id/metropolitan-district-council/walsall,WC116-120,31/05/2020,Childrens,ABS TAXIS (ALDRIDGE),22/05/2020,686.00,52000-WITH DRIVER-HIRE OF VEHICLES,HOME TO SCHOOL TRANSPORT,Transport,Revenue
Walsall Council,http://opendatacommunities.org/id/metropolitan-district-council/walsall,WC116-121,31/05/2020,Childrens,ABS TAXIS (ALDRIDGE),22/05/2020,846.72,52000-WITH DRIVER-HIRE OF VEHICLES,HOME TO SCHOOL TRANSPORT,Transport,Revenue
Walsall Council,http://opendatacommunities.org/id/metropolitan-district-council/walsall,WC116-122,31/05/2020,Adult Social Care,ACCORD HOUSING ASSOCIATION LIMITED - HOBS MEADOW,07/05/2020,"4,624.54",73500-RESIDENTIAL,LEARNING DISABILITY SUPPORT,Third Party Payments,Revenue
Walsall Council,http://opendatacommunities.org/id/metropolitan-district-council/walsall,WC116-123,31/05/2020,Adult Social Care,ACCORD HOUSING ASSOCIATION LIMITED - HOBS MEADOW,07/05/2020,"4,624.54",73500-RESIDENTIAL,LEARNING DISABILITY SUPPORT,Third Party Payments,Revenue
Walsall Council,http://opendatacommunities.org/id/metropolitan-district-council/walsall,WC116-124,31/05/2020,Adult Social Care,ACCORD HOUSING ASSOCIATION LIMITED - HOBS MEADOW,07/05/2020,"4,624.54",73500-RESIDENTIAL,LEARNING DISABILITY SUPPORT,Third Party Payments,Revenue
Walsall Council,http://opendatacommunities.org/id/metropolitan-district-council/walsall,WC116-125,31/05/2020,Adult Social Care,ACCORD HOUSING ASSOCIATION LIMITED - HOBS MEADOW,07/05/2020,"4,624.54",73500-RESIDENTIAL,LEARNING DISABILITY SUPPORT,Third Party Payments,Revenue
Walsall Council,http://opendatacommunities.org/id/metropolitan-district-council/walsall,WC116-126,31/05/2020,Adult Social Care,ACCORD HOUSING ASSOCIATION LTD#135,18/05/2020,"-1,027.30",73508-COMMUNITY SUPPORTED LIVING/SUPPORTED ACCOMMODATION,MENTAL HEALTH SUPPORT,Third Party Payments,Revenue
Walsall Council,http://opendatacommunities.org/id/metropolitan-district-council/walsall,WC116-127,31/05/2020,Adult Social Care,ACCORD HOUSING ASSOCIATION LTD#135,05/05/2020,-344.22,73507-DOMICILIARY CARE,MENTAL HEALTH SUPPORT,Third Party Payments,Revenue
Walsall Council,http://opendatacommunities.org/id/metropolitan-district-council/walsall,WC116-128,31/05/2020,Adult Social Care,ACCORD HOUSING ASSOCIATION LTD#135,05/05/2020,251.86,73507-DOMICILIARY CARE,PHYSICAL SUPPORT,Third Party Payments,Revenue
Walsall Council,http://opendatacommunities.org/id/metropolitan-district-council/walsall,WC116-129,31/05/2020,Adult Social Care,ACCORD HOUSING ASSOCIATION LTD#135,05/05/2020,251.86,73507-DOMICILIARY CARE,PHYSICAL SUPPORT,Third Party Payments,Revenue
Walsall Council,http://opendatacommunities.org/id/metropolitan-district-council/walsall,WC116-130,31/05/2020,Adult Social Care,ACCORD HOUSING ASSOCIATION LTD#135,18/05/2020,251.86,73507-DOMICILIARY CARE,PHYSICAL SUPPORT,Third Party Payments,Revenue
Walsall Council,http://opendatacommunities.org/id/metropolitan-district-council/walsall,WC116-131,31/05/2020,Adult Social Care,ACCORD HOUSING ASSOCIATION LTD#135,18/05/2020,251.86,73507-DOMICILIARY CARE,PHYSICAL SUPPORT,Third Party Payments,Revenue
Walsall Council,http://opendatacommunities.org/id/metropolitan-district-council/walsall,WC116-132,31/05/2020,Adult Social Care,ACCORD HOUSING ASSOCIATION LTD#135,18/05/2020,258.30,73507-DOMICILIARY CARE,PHYSICAL SUPPORT,Third Party Payments,Revenue
Walsall Council,http://opendatacommunities.org/id/metropolitan-district-council/walsall,WC116-133,31/05/2020,Adult Social Care,ACCORD HOUSING ASSOCIATION LTD#135,05/05/2020,270.94,73508-COMMUNITY SUPPORTED LIVING/SUPPORTED ACCOMMODATION,MENTAL HEALTH SUPPORT,Third Party Payments,Revenue
Walsall Council,http://opendatacommunities.org/id/metropolitan-district-council/walsall,WC116-134,31/05/2020,Adult Social Care,ACCORD HOUSING ASSOCIATION LTD#135,18/05/2020,270.94,73508-COMMUNITY SUPPORTED LIVING/SUPPORTED ACCOMMODATION,MENTAL HEALTH SUPPORT,Third Party Payments,Revenue
Walsall Council,http://opendatacommunities.org/id/metropolitan-district-council/walsall,WC116-135,31/05/2020,Adult Social Care,ACCORD HOUSING ASSOCIATION LTD#135,05/05/2020,286.74,73508-COMMUNITY SUPPORTED LIVING/SUPPORTED ACCOMMODATION,MENTAL HEALTH SUPPORT,Third Party Payments,Revenue
Walsall Council,http://opendatacommunities.org/id/metropolitan-district-council/walsall,WC116-136,31/05/2020,Adult Social Care,ACCORD HOUSING ASSOCIATION LTD#135,18/05/2020,286.74,73508-COMMUNITY SUPPORTED LIVING/SUPPORTED ACCOMMODATION,MENTAL HEALTH SUPPORT,Third Party Payments,Revenue
Walsall Council,http://opendatacommunities.org/id/metropolitan-district-council/walsall,WC116-137,31/05/2020,Adult Social Care,ACCORD HOUSING ASSOCIATION LTD#135,05/05/2020,287.84,73507-DOMICILIARY CARE,PHYSICAL SUPPORT,Third Party Payments,Revenue
Walsall Council,http://opendatacommunities.org/id/metropolitan-district-council/walsall,WC116-138,31/05/2020,Adult Social Care,ACCORD HOUSING ASSOCIATION LTD#135,18/05/2020,287.84,73507-DOMICILIARY CARE,PHYSICAL SUPPORT,Third Party Payments,Revenue
Walsall Council,http://opendatacommunities.org/id/metropolitan-district-council/walsall,WC116-139,31/05/2020,Adult Social Care,ACCORD HOUSING ASSOCIATION LTD#135,05/05/2020,290.42,73507-DOMICILIARY CARE,MENTAL HEALTH SUPPORT,Third Party Payments,Revenue
Walsall Council,http://opendatacommunities.org/id/metropolitan-district-council/walsall,WC116-140,31/05/2020,Adult Social Care,ACCORD HOUSING ASSOCIATION LTD#135,18/05/2020,290.42,73507-DOMICILIARY CARE,MENTAL HEALTH SUPPORT,Third Party Payments,Revenue
Walsall Council,http://opendatacommunities.org/id/metropolitan-district-council/walsall,WC116-141,31/05/2020,Adult Social Care,ACCORD HOUSING ASSOCIATION LTD#135,05/05/2020,292.98,73507-DOMICILIARY CARE,PHYSICAL SUPPORT,Third Party Payments,Revenue
Walsall Council,http://opendatacommunities.org/id/metropolitan-district-council/walsall,WC116-142,31/05/2020,Adult Social Care,ACCORD HOUSING ASSOCIATION LTD#135,18/05/2020,292.98,73507-DOMICILIARY CARE,PHYSICAL SUPPORT,Third Party Payments,Revenue
Walsall Council,http://opendatacommunities.org/id/metropolitan-district-council/walsall,WC116-143,31/05/2020,Adult Social Care,ACCORD HOUSING ASSOCIATION LTD#135,11/05/2020,296.16,73507-DOMICILIARY CARE,PHYSICAL SUPPORT,Third Party Payments,Revenue
Walsall Council,http://opendatacommunities.org/id/metropolitan-district-council/walsall,WC116-144,31/05/2020,Adult Social Care,ACCORD HOUSING ASSOCIATION LTD#135,20/05/2020,305.67,73508-COMMUNITY SUPPORTED LIVING/SUPPORTED ACCOMMODATION,LEARNING DISABILITY SUPPORT,Third Party Payments,Revenue
Walsall Council,http://opendatacommunities.org/id/metropolitan-district-council/walsall,WC116-145,31/05/2020,Adult Social Care,ACCORD HOUSING ASSOCIATION LTD#135,05/05/2020,308.40,73507-DOMICILIARY CARE,PHYSICAL SUPPORT,Third Party Payments,Revenue
Walsall Council,http://opendatacommunities.org/id/metropolitan-district-council/walsall,WC116-146,31/05/2020,Adult Social Care,ACCORD HOUSING ASSOCIATION LTD#135,05/05/2020,308.40,73507-DOMICILIARY CARE,LEARNING DISABILITY SUPPORT,Third Party Payments,Revenue
Walsall Council,http://opendatacommunities.org/id/metropolitan-district-council/walsall,WC116-147,31/05/2020,Adult Social Care,ACCORD HOUSING ASSOCIATION LTD#135,18/05/2020,308.40,73507-DOMICILIARY CARE,LEARNING DISABILITY SUPPORT,Third Party Payments,Revenue
Walsall Council,http://opendatacommunities.org/id/metropolitan-district-council/walsall,WC116-148,31/05/2020,Adult Social Care,ACCORD HOUSING ASSOCIATION LTD#135,20/05/2020,315.24,73508-COMMUNITY SUPPORTED LIVING/SUPPORTED ACCOMMODATION,LEARNING DISABILITY SUPPORT,Third Party Payments,Revenue
Walsall Council,http://opendatacommunities.org/id/metropolitan-district-council/walsall,WC116-149,31/05/2020,Adult Social Care,ACCORD HOUSING ASSOCIATION LTD#135,05/05/2020,321.14,73508-COMMUNITY SUPPORTED LIVING/SUPPORTED ACCOMMODATION,MENTAL HEALTH SUPPORT,Third Party Payments,Revenue
Walsall Council,http://opendatacommunities.org/id/metropolitan-district-council/walsall,WC116-150,31/05/2020,Adult Social Care,ACCORD HOUSING ASSOCIATION LTD#135,05/05/2020,323.82,73507-DOMICILIARY CARE,SENSORY SUPPORT,Third Party Payments,Revenue
Walsall Council,http://opendatacommunities.org/id/metropolitan-district-council/walsall,WC116-151,31/05/2020,Adult Social Care,ACCORD HOUSING ASSOCIATION LTD#135,18/05/2020,323.82,73507-DOMICILIARY CARE,SENSORY SUPPORT,Third Party Payments,Revenue
Walsall Council,http://opendatacommunities.org/id/metropolitan-district-council/walsall,WC116-152,31/05/2020,Adult Social Care,ACCORD HOUSING ASSOCIATION LTD#135,05/05/2020,354.66,73507-DOMICILIARY CARE,SUPPORT WITH MEMORY & COGNITION,Third Party Payments,Revenue
Walsall Council,http://opendatacommunities.org/id/metropolitan-district-council/walsall,WC116-153,31/05/2020,Adult Social Care,ACCORD HOUSING ASSOCIATION LTD#135,18/05/2020,354.66,73507-DOMICILIARY CARE,SUPPORT WITH MEMORY & COGNITION,Third Party Payments,Revenue
Walsall Council,http://opendatacommunities.org/id/metropolitan-district-council/walsall,WC116-154,31/05/2020,Adult Social Care,ACCORD HOUSING ASSOCIATION LTD#135,20/05/2020,363.00,73508-COMMUNITY SUPPORTED LIVING/SUPPORTED ACCOMMODATION,LEARNING DISABILITY SUPPORT,Third Party Payments,Revenue
Walsall Council,http://opendatacommunities.org/id/metropolitan-district-council/walsall,WC116-155,31/05/2020,Adult Social Care,ACCORD HOUSING ASSOCIATION LTD#135,05/05/2020,364.96,73507-DOMICILIARY CARE,PHYSICAL SUPPORT,Third Party Payments,Revenue
Walsall Council,http://opendatacommunities.org/id/metropolitan-district-council/walsall,WC116-156,31/05/2020,Adult Social Care,ACCORD HOUSING ASSOCIATION LTD#135,05/05/2020,375.22,73507-DOMICILIARY CARE,MENTAL HEALTH SUPPORT,Third Party Payments,Revenue
Walsall Council,http://opendatacommunities.org/id/metropolitan-district-council/walsall,WC116-157,31/05/2020,Adult Social Care,ACCORD HOUSING ASSOCIATION LTD#135,18/05/2020,375.22,73507-DOMICILIARY CARE,MENTAL HEALTH SUPPORT,Third Party Payments,Revenue
Walsall Council,http://opendatacommunities.org/id/metropolitan-district-council/walsall,WC116-158,31/05/2020,Adult Social Care,ACCORD HOUSING ASSOCIATION LTD#135,05/05/2020,377.86,73507-DOMICILIARY CARE,PHYSICAL SUPPORT,Third Party Payments,Revenue
Walsall Council,http://opendatacommunities.org/id/metropolitan-district-council/walsall,WC116-159,31/05/2020,Adult Social Care,ACCORD HOUSING ASSOCIATION LTD#135,18/05/2020,377.86,73507-DOMICILIARY CARE,PHYSICAL SUPPORT,Third Party Payments,Revenue
Walsall Council,http://opendatacommunities.org/id/metropolitan-district-council/walsall,WC116-160,31/05/2020,Adult Social Care,ACCORD HOUSING ASSOCIATION LTD#135,05/05/2020,385.50,73507-DOMICILIARY CARE,PHYSICAL SUPPORT,Third Party Payments,Revenue
Walsall Council,http://opendatacommunities.org/id/metropolitan-district-council/walsall,WC116-161,31/05/2020,Adult Social Care,ACCORD HOUSING ASSOCIATION LTD#135,18/05/2020,385.50,73507-DOMICILIARY CARE,PHYSICAL SUPPORT,Third Party Payments,Revenue
Walsall Council,http://opendatacommunities.org/id/metropolitan-district-council/walsall,WC116-162,31/05/2020,Adult Social Care,ACCORD HOUSING ASSOCIATION LTD#135,05/05/2020,393.22,73507-DOMICILIARY CARE,PHYSICAL SUPPORT,Third Party Payments,Revenue
Walsall Council,http://opendatacommunities.org/id/metropolitan-district-council/walsall,WC116-163,31/05/2020,Adult Social Care,ACCORD HOUSING ASSOCIATION LTD#135,18/05/2020,393.22,73507-DOMICILIARY CARE,PHYSICAL SUPPORT,Third Party Payments,Revenue
Walsall Council,http://opendatacommunities.org/id/metropolitan-district-council/walsall,WC116-164,31/05/2020,Adult Social Care,ACCORD HOUSING ASSOCIATION LTD#135,05/05/2020,395.80,73507-DOMICILIARY CARE,SOCIAL SUPPORT,Third Party Payments,Revenue
Walsall Council,http://opendatacommunities.org/id/metropolitan-district-council/walsall,WC116-165,31/05/2020,Adult Social Care,ACCORD HOUSING ASSOCIATION LTD#135,18/05/2020,395.80,73507-DOMICILIARY CARE,SOCIAL SUPPORT,Third Party Payments,Revenue
Walsall Council,http://opendatacommunities.org/id/metropolitan-district-council/walsall,WC116-166,31/05/2020,Adult Social Care,ACCORD HOUSING ASSOCIATION LTD#135,05/05/2020,410.92,73508-COMMUNITY SUPPORTED LIVING/SUPPORTED ACCOMMODATION,MENTAL HEALTH SUPPORT,Third Party Payments,Revenue
Walsall Council,http://opendatacommunities.org/id/metropolitan-district-council/walsall,WC116-167,31/05/2020,Adult Social Care,ACCORD HOUSING ASSOCIATION LTD#135,11/05/2020,414.68,73508-COMMUNITY SUPPORTED LIVING/SUPPORTED ACCOMMODATION,MENTAL HEALTH SUPPORT,Third Party Payments,Revenue
Walsall Council,http://opendatacommunities.org/id/metropolitan-district-council/walsall,WC116-168,31/05/2020,Adult Social Care,ACCORD HOUSING ASSOCIATION LTD#135,05/05/2020,431.76,73507-DOMICILIARY CARE,MENTAL HEALTH SUPPORT,Third Party Payments,Revenue
Walsall Council,http://opendatacommunities.org/id/metropolitan-district-council/walsall,WC116-169,31/05/2020,Adult Social Care,ACCORD HOUSING ASSOCIATION LTD#135,18/05/2020,431.76,73507-DOMICILIARY CARE,MENTAL HEALTH SUPPORT,Third Party Payments,Revenue
Walsall Council,http://opendatacommunities.org/id/metropolitan-district-council/walsall,WC116-170,31/05/2020,Adult Social Care,ACCORD HOUSING ASSOCIATION LTD#135,11/05/2020,441.40,73508-COMMUNITY SUPPORTED LIVING/SUPPORTED ACCOMMODATION,MENTAL HEALTH SUPPORT,Third Party Payments,Revenue
Walsall Council,http://opendatacommunities.org/id/metropolitan-district-council/walsall,WC116-171,31/05/2020,Adult Social Care,ACCORD HOUSING ASSOCIATION LTD#135,05/05/2020,447.20,73507-DOMICILIARY CARE,PHYSICAL SUPPORT,Third Party Payments,Revenue
Walsall Council,http://opendatacommunities.org/id/metropolitan-district-council/walsall,WC116-172,31/05/2020,Adult Social Care,ACCORD HOUSING ASSOCIATION LTD#135,18/05/2020,447.20,73507-DOMICILIARY CARE,PHYSICAL SUPPORT,Third Party Payments,Revenue
Walsall Council,http://opendatacommunities.org/id/metropolitan-district-council/walsall,WC116-173,31/05/2020,Adult Social Care,ACCORD HOUSING ASSOCIATION LTD#135,18/05/2020,465.24,73507-DOMICILIARY CARE,PHYSICAL SUPPORT,Third Party Payments,Revenue
Walsall Council,http://opendatacommunities.org/id/metropolitan-district-council/walsall,WC116-174,31/05/2020,Adult Social Care,ACCORD HOUSING ASSOCIATION LTD#135,05/05/2020,468.98,73507-DOMICILIARY CARE,PHYSICAL SUPPORT,Third Party Payments,Revenue
Walsall Council,http://opendatacommunities.org/id/metropolitan-district-council/walsall,WC116-175,31/05/2020,Adult Social Care,ACCORD HOUSING ASSOCIATION LTD#135,18/05/2020,468.98,73507-DOMICILIARY CARE,PHYSICAL SUPPORT,Third Party Payments,Revenue
Walsall Council,http://opendatacommunities.org/id/metropolitan-district-council/walsall,WC116-176,31/05/2020,Adult Social Care,ACCORD HOUSING ASSOCIATION LTD#135,05/05/2020,470.38,73507-DOMICILIARY CARE,PHYSICAL SUPPORT,Third Party Payments,Revenue
Walsall Council,http://opendatacommunities.org/id/metropolitan-district-council/walsall,WC116-177,31/05/2020,Adult Social Care,ACCORD HOUSING ASSOCIATION LTD#135,05/05/2020,485.80,73507-DOMICILIARY CARE,PHYSICAL SUPPORT,Third Party Payments,Revenue
Walsall Council,http://opendatacommunities.org/id/metropolitan-district-council/walsall,WC116-178,31/05/2020,Adult Social Care,ACCORD HOUSING ASSOCIATION LTD#135,18/05/2020,485.80,73507-DOMICILIARY CARE,PHYSICAL SUPPORT,Third Party Payments,Revenue
Walsall Council,http://opendatacommunities.org/id/metropolitan-district-council/walsall,WC116-179,31/05/2020,Adult Social Care,ACCORD HOUSING ASSOCIATION LTD#135,05/05/2020,491.14,73508-COMMUNITY SUPPORTED LIVING/SUPPORTED ACCOMMODATION,MENTAL HEALTH SUPPORT,Third Party Payments,Revenue
Walsall Council,http://opendatacommunities.org/id/metropolitan-district-council/walsall,WC116-180,31/05/2020,Adult Social Care,ACCORD HOUSING ASSOCIATION LTD#135,18/05/2020,491.14,73508-COMMUNITY SUPPORTED LIVING/SUPPORTED ACCOMMODATION,MENTAL HEALTH SUPPORT,Third Party Payments,Revenue
Walsall Council,http://opendatacommunities.org/id/metropolitan-district-council/walsall,WC116-181,31/05/2020,Adult Social Care,ACCORD HOUSING ASSOCIATION LTD#135,05/05/2020,508.34,73507-DOMICILIARY CARE,PHYSICAL SUPPORT,Third Party Payments,Revenue
Walsall Council,http://opendatacommunities.org/id/metropolitan-district-council/walsall,WC116-182,31/05/2020,Adult Social Care,ACCORD HOUSING ASSOCIATION LTD#135,18/05/2020,508.34,73507-DOMICILIARY CARE,PHYSICAL SUPPORT,Third Party Payments,Revenue
Walsall Council,http://opendatacommunities.org/id/metropolitan-district-council/walsall,WC116-183,31/05/2020,Adult Social Care,ACCORD HOUSING ASSOCIATION LTD#135,05/05/2020,547.48,73507-DOMICILIARY CARE,LEARNING DISABILITY SUPPORT,Third Party Payments,Revenue
Walsall Council,http://opendatacommunities.org/id/metropolitan-district-council/walsall,WC116-184,31/05/2020,Adult Social Care,ACCORD HOUSING ASSOCIATION LTD#135,18/05/2020,547.48,73507-DOMICILIARY CARE,LEARNING DISABILITY SUPPORT,Third Party Payments,Revenue
Walsall Council,http://opendatacommunities.org/id/metropolitan-district-council/walsall,WC116-185,31/05/2020,Adult Social Care,ACCORD HOUSING ASSOCIATION LTD#135,11/05/2020,548.23,73508-COMMUNITY SUPPORTED LIVING/SUPPORTED ACCOMMODATION,MENTAL HEALTH SUPPORT,Third Party Payments,Revenue
Walsall Council,http://opendatacommunities.org/id/metropolitan-district-council/walsall,WC116-186,31/05/2020,Adult Social Care,ACCORD HOUSING ASSOCIATION LTD#135,05/05/2020,548.26,73508-COMMUNITY SUPPORTED LIVING/SUPPORTED ACCOMMODATION,LEARNING DISABILITY SUPPORT,Third Party Payments,Revenue
Walsall Council,http://opendatacommunities.org/id/metropolitan-district-council/walsall,WC116-187,31/05/2020,Adult Social Care,ACCORD HOUSING ASSOCIATION LTD#135,18/05/2020,548.26,73508-COMMUNITY SUPPORTED LIVING/SUPPORTED ACCOMMODATION,LEARNING DISABILITY SUPPORT,Third Party Payments,Revenue
Walsall Council,http://opendatacommunities.org/id/metropolitan-district-council/walsall,WC116-188,31/05/2020,Adult Social Care,ACCORD HOUSING ASSOCIATION LTD#135,05/05/2020,555.32,73507-DOMICILIARY CARE,MENTAL HEALTH SUPPORT,Third Party Payments,Revenue
Walsall Council,http://opendatacommunities.org/id/metropolitan-district-council/walsall,WC116-189,31/05/2020,Adult Social Care,ACCORD HOUSING ASSOCIATION LTD#135,11/05/2020,562.28,73508-COMMUNITY SUPPORTED LIVING/SUPPORTED ACCOMMODATION,MENTAL HEALTH SUPPORT,Third Party Payments,Revenue
Walsall Council,http://opendatacommunities.org/id/metropolitan-district-council/walsall,WC116-190,31/05/2020,Adult Social Care,ACCORD HOUSING ASSOCIATION LTD#135,05/05/2020,573.18,73507-DOMICILIARY CARE,SOCIAL SUPPORT,Third Party Payments,Revenue
Walsall Council,http://opendatacommunities.org/id/metropolitan-district-council/walsall,WC116-191,31/05/2020,Adult Social Care,ACCORD HOUSING ASSOCIATION LTD#135,18/05/2020,573.18,73507-DOMICILIARY CARE,SOCIAL SUPPORT,Third Party Payments,Revenue
Walsall Council,http://opendatacommunities.org/id/metropolitan-district-council/walsall,WC116-192,31/05/2020,Adult Social Care,ACCORD HOUSING ASSOCIATION LTD#135,05/05/2020,593.74,73507-DOMICILIARY CARE,PHYSICAL SUPPORT,Third Party Payments,Revenue
Walsall Council,http://opendatacommunities.org/id/metropolitan-district-council/walsall,WC116-193,31/05/2020,Adult Social Care,ACCORD HOUSING ASSOCIATION LTD#135,18/05/2020,593.74,73507-DOMICILIARY CARE,PHYSICAL SUPPORT,Third Party Payments,Revenue
Walsall Council,http://opendatacommunities.org/id/metropolitan-district-council/walsall,WC116-194,31/05/2020,Adult Social Care,ACCORD HOUSING ASSOCIATION LTD#135,05/05/2020,627.08,73507-DOMICILIARY CARE,LEARNING DISABILITY SUPPORT,Third Party Payments,Revenue
Walsall Council,http://opendatacommunities.org/id/metropolitan-district-council/walsall,WC116-195,31/05/2020,Adult Social Care,ACCORD HOUSING ASSOCIATION LTD#135,18/05/2020,627.08,73507-DOMICILIARY CARE,LEARNING DISABILITY SUPPORT,Third Party Payments,Revenue
Walsall Council,http://opendatacommunities.org/id/metropolitan-district-council/walsall,WC116-196,31/05/2020,Adult Social Care,ACCORD HOUSING ASSOCIATION LTD#135,05/05/2020,719.60,73507-DOMICILIARY CARE,PHYSICAL SUPPORT,Third Party Payments,Revenue
Walsall Council,http://opendatacommunities.org/id/metropolitan-district-council/walsall,WC116-197,31/05/2020,Adult Social Care,ACCORD HOUSING ASSOCIATION LTD#135,18/05/2020,719.60,73507-DOMICILIARY CARE,PHYSICAL SUPPORT,Third Party Payments,Revenue
Walsall Council,http://opendatacommunities.org/id/metropolitan-district-council/walsall,WC116-198,31/05/2020,Adult Social Care,ACCORD HOUSING ASSOCIATION LTD#135,05/05/2020,732.52,73507-DOMICILIARY CARE,SOCIAL SUPPORT,Third Party Payments,Revenue
Walsall Council,http://opendatacommunities.org/id/metropolitan-district-council/walsall,WC116-199,31/05/2020,Adult Social Care,ACCORD HOUSING ASSOCIATION LTD#135,18/05/2020,732.52,73507-DOMICILIARY CARE,SOCIAL SUPPORT,Third Party Payments,Revenue
Walsall Council,http://opendatacommunities.org/id/metropolitan-district-council/walsall,WC116-200,31/05/2020,Adult Social Care,ACCORD HOUSING ASSOCIATION LTD#135,05/05/2020,750.44,73507-DOMICILIARY CARE,PHYSICAL SUPPORT,Third Party Payments,Revenue
Walsall Council,http://opendatacommunities.org/id/metropolitan-district-council/walsall,WC116-201,31/05/2020,Adult Social Care,ACCORD HOUSING ASSOCIATION LTD#135,18/05/2020,750.44,73507-DOMICILIARY CARE,PHYSICAL SUPPORT,Third Party Payments,Revenue
Walsall Council,http://opendatacommunities.org/id/metropolitan-district-council/walsall,WC116-202,31/05/2020,Adult Social Care,ACCORD HOUSING ASSOCIATION LTD#135,05/05/2020,829.00,73507-DOMICILIARY CARE,PHYSICAL SUPPORT,Third Party Payments,Revenue
Walsall Council,http://opendatacommunities.org/id/metropolitan-district-council/walsall,WC116-203,31/05/2020,Adult Social Care,ACCORD HOUSING ASSOCIATION LTD#135,18/05/2020,829.00,73507-DOMICILIARY CARE,PHYSICAL SUPPORT,Third Party Payments,Revenue
Walsall Council,http://opendatacommunities.org/id/metropolitan-district-council/walsall,WC116-204,31/05/2020,Adult Social Care,ACCORD HOUSING ASSOCIATION LTD#135,05/05/2020,847.14,73507-DOMICILIARY CARE,MENTAL HEALTH SUPPORT,Third Party Payments,Revenue
Walsall Council,http://opendatacommunities.org/id/metropolitan-district-council/walsall,WC116-205,31/05/2020,Adult Social Care,ACCORD HOUSING ASSOCIATION LTD#135,18/05/2020,847.14,73507-DOMICILIARY CARE,MENTAL HEALTH SUPPORT,Third Party Payments,Revenue
Walsall Council,http://opendatacommunities.org/id/metropolitan-district-council/walsall,WC116-206,31/05/2020,Adult Social Care,ACCORD HOUSING ASSOCIATION LTD#135,05/05/2020,863.52,73507-DOMICILIARY CARE,PHYSICAL SUPPORT,Third Party Payments,Revenue
Walsall Council,http://opendatacommunities.org/id/metropolitan-district-council/walsall,WC116-207,31/05/2020,Adult Social Care,ACCORD HOUSING ASSOCIATION LTD#135,18/05/2020,863.52,73507-DOMICILIARY CARE,PHYSICAL SUPPORT,Third Party Payments,Revenue
Walsall Council,http://opendatacommunities.org/id/metropolitan-district-council/walsall,WC116-208,31/05/2020,Adult Social Care,ACCORD HOUSING ASSOCIATION LTD#135,05/05/2020,899.64,73507-DOMICILIARY CARE,PHYSICAL SUPPORT,Third Party Payments,Revenue
Walsall Council,http://opendatacommunities.org/id/metropolitan-district-council/walsall,WC116-209,31/05/2020,Adult Social Care,ACCORD HOUSING ASSOCIATION LTD#135,18/05/2020,899.64,73507-DOMICILIARY CARE,PHYSICAL SUPPORT,Third Party Payments,Revenue
Walsall Council,http://opendatacommunities.org/id/metropolitan-district-council/walsall,WC116-210,31/05/2020,Adult Social Care,ACCORD HOUSING ASSOCIATION LTD#135,05/05/2020,925.20,73507-DOMICILIARY CARE,SOCIAL SUPPORT,Third Party Payments,Revenue
Walsall Council,http://opendatacommunities.org/id/metropolitan-district-council/walsall,WC116-211,31/05/2020,Adult Social Care,ACCORD HOUSING ASSOCIATION LTD#135,18/05/2020,925.20,73507-DOMICILIARY CARE,SOCIAL SUPPORT,Third Party Payments,Revenue
Walsall Council,http://opendatacommunities.org/id/metropolitan-district-council/walsall,WC116-212,31/05/2020,Adult Social Care,ACCORD HOUSING ASSOCIATION LTD#135,05/05/2020,953.54,73507-DOMICILIARY CARE,PHYSICAL SUPPORT,Third Party Payments,Revenue
Walsall Council,http://opendatacommunities.org/id/metropolitan-district-council/walsall,WC116-213,31/05/2020,Adult Social Care,ACCORD HOUSING ASSOCIATION LTD#135,18/05/2020,953.54,73507-DOMICILIARY CARE,PHYSICAL SUPPORT,Third Party Payments,Revenue
Walsall Council,http://opendatacommunities.org/id/metropolitan-district-council/walsall,WC116-214,31/05/2020,Adult Social Care,ACCORD HOUSING ASSOCIATION LTD#135,05/05/2020,995.91,73507-DOMICILIARY CARE,LEARNING DISABILITY SUPPORT,Third Party Payments,Revenue
Walsall Council,http://opendatacommunities.org/id/metropolitan-district-council/walsall,WC116-215,31/05/2020,Adult Social Care,ACCORD HOUSING ASSOCIATION LTD#135,18/05/2020,995.91,73507-DOMICILIARY CARE,LEARNING DISABILITY SUPPORT,Third Party Payments,Revenue
Walsall Council,http://opendatacommunities.org/id/metropolitan-district-council/walsall,WC116-216,31/05/2020,Adult Social Care,ACCORD HOUSING ASSOCIATION LTD#135,05/05/2020,"1,033.14",73507-DOMICILIARY CARE,PHYSICAL SUPPORT,Third Party Payments,Revenue
Walsall Council,http://opendatacommunities.org/id/metropolitan-district-council/walsall,WC116-217,31/05/2020,Adult Social Care,ACCORD HOUSING ASSOCIATION LTD#135,29/05/2020,"1,104.60",73507-DOMICILIARY CARE,PHYSICAL SUPPORT,Third Party Payments,Revenue
Walsall Council,http://opendatacommunities.org/id/metropolitan-district-council/walsall,WC116-218,31/05/2020,Adult Social Care,ACCORD HOUSING ASSOCIATION LTD#135,05/05/2020,"1,132.46",73508-COMMUNITY SUPPORTED LIVING/SUPPORTED ACCOMMODATION,LEARNING DISABILITY SUPPORT,Third Party Payments,Revenue
Walsall Council,http://opendatacommunities.org/id/metropolitan-district-council/walsall,WC116-219,31/05/2020,Adult Social Care,ACCORD HOUSING ASSOCIATION LTD#135,18/05/2020,"1,132.46",73508-COMMUNITY SUPPORTED LIVING/SUPPORTED ACCOMMODATION,LEARNING DISABILITY SUPPORT,Third Party Payments,Revenue
Walsall Council,http://opendatacommunities.org/id/metropolitan-district-council/walsall,WC116-220,31/05/2020,Adult Social Care,ACCORD HOUSING ASSOCIATION LTD#135,29/05/2020,"1,225.88",73507-DOMICILIARY CARE,PHYSICAL SUPPORT,Third Party Payments,Revenue
Walsall Council,http://opendatacommunities.org/id/metropolitan-district-council/walsall,WC116-221,31/05/2020,Adult Social Care,ACCORD HOUSING ASSOCIATION LTD#135,29/05/2020,"1,337.28",73507-DOMICILIARY CARE,PHYSICAL SUPPORT,Third Party Payments,Revenue
Walsall Council,http://opendatacommunities.org/id/metropolitan-district-council/walsall,WC116-222,31/05/2020,Adult Social Care,ACCORD HOUSING ASSOCIATION LTD#135,11/05/2020,"1,361.20",73507-DOMICILIARY CARE,PHYSICAL SUPPORT,Third Party Payments,Revenue
Walsall Council,http://opendatacommunities.org/id/metropolitan-district-council/walsall,WC116-223,31/05/2020,Adult Social Care,ACCORD HOUSING ASSOCIATION LTD#135,18/05/2020,"1,362.24",73507-DOMICILIARY CARE,PHYSICAL SUPPORT,Third Party Payments,Revenue
Walsall Council,http://opendatacommunities.org/id/metropolitan-district-council/walsall,WC116-224,31/05/2020,Adult Social Care,ACCORD HOUSING ASSOCIATION LTD#135,05/05/2020,"1,377.66",73507-DOMICILIARY CARE,PHYSICAL SUPPORT,Third Party Payments,Revenue
Walsall Council,http://opendatacommunities.org/id/metropolitan-district-council/walsall,WC116-225,31/05/2020,Adult Social Care,ACCORD HOUSING ASSOCIATION LTD#135,11/05/2020,"1,389.84",73507-DOMICILIARY CARE,PHYSICAL SUPPORT,Third Party Payments,Revenue
Walsall Council,http://opendatacommunities.org/id/metropolitan-district-council/walsall,WC116-226,31/05/2020,Adult Social Care,ACCORD HOUSING ASSOCIATION LTD#135,11/05/2020,"1,389.84",73507-DOMICILIARY CARE,PHYSICAL SUPPORT,Third Party Payments,Revenue
Walsall Council,http://opendatacommunities.org/id/metropolitan-district-council/walsall,WC116-227,31/05/2020,Adult Social Care,ACCORD HOUSING ASSOCIATION LTD#135,11/05/2020,"1,389.84",73507-DOMICILIARY CARE,PHYSICAL SUPPORT,Third Party Payments,Revenue
Walsall Council,http://opendatacommunities.org/id/metropolitan-district-council/walsall,WC116-228,31/05/2020,Adult Social Care,ACCORD HOUSING ASSOCIATION LTD#135,11/05/2020,"1,389.84",73507-DOMICILIARY CARE,PHYSICAL SUPPORT,Third Party Payments,Revenue
Walsall Council,http://opendatacommunities.org/id/metropolitan-district-council/walsall,WC116-229,31/05/2020,Adult Social Care,ACCORD HOUSING ASSOCIATION LTD#135,29/05/2020,"1,689.24",73507-DOMICILIARY CARE,PHYSICAL SUPPORT,Third Party Payments,Revenue
Walsall Council,http://opendatacommunities.org/id/metropolitan-district-council/walsall,WC116-230,31/05/2020,Adult Social Care,ACCORD HOUSING ASSOCIATION LTD#135,05/05/2020,"1,693.64",73507-DOMICILIARY CARE,SENSORY SUPPORT,Third Party Payments,Revenue
Walsall Council,http://opendatacommunities.org/id/metropolitan-district-council/walsall,WC116-231,31/05/2020,Adult Social Care,ACCORD HOUSING ASSOCIATION LTD#135,18/05/2020,"1,693.64",73507-DOMICILIARY CARE,SENSORY SUPPORT,Third Party Payments,Revenue
Walsall Council,http://opendatacommunities.org/id/metropolitan-district-council/walsall,WC116-232,31/05/2020,Adult Social Care,ACCORD HOUSING ASSOCIATION LTD#135,29/05/2020,"2,135.17",73508-COMMUNITY SUPPORTED LIVING/SUPPORTED ACCOMMODATION,LEARNING DISABILITY SUPPORT,Third Party Payments,Revenue
Walsall Council,http://opendatacommunities.org/id/metropolitan-district-council/walsall,WC116-233,31/05/2020,Adult Social Care,ACCORD HOUSING ASSOCIATION LTD#135,29/05/2020,"2,135.17",73508-COMMUNITY SUPPORTED LIVING/SUPPORTED ACCOMMODATION,LEARNING DISABILITY SUPPORT,Third Party Payments,Revenue
Walsall Council,http://opendatacommunities.org/id/metropolitan-district-council/walsall,WC116-234,31/05/2020,Adult Social Care,ACCORD HOUSING ASSOCIATION LTD#135,05/05/2020,"2,646.90",70000-SOCIAL SERVICES-FEES TO VOLUNTARY BODIES,COMPLEX NEEDS SLA,Third Party Payments,Revenue
Walsall Council,http://opendatacommunities.org/id/metropolitan-district-council/walsall,WC116-235,31/05/2020,Resources and Transformation,ACCORD HOUSING ASSOCIATION LTD#135,13/05/2020,"2,651.27",01045-PRIVATE GRANTS,CFR 1359 DISABLED FACILITIES GRANT,Capital,Capital
Walsall Council,http://opendatacommunities.org/id/metropolitan-district-council/walsall,WC116-236,31/05/2020,Resources and Transformation,ACCORD HOUSING ASSOCIATION LTD#135,05/05/2020,"4,399.10",01045-PRIVATE GRANTS,CFR 1359 DISABLED FACILITIES GRANT,Capital,Capital
Walsall Council,http://opendatacommunities.org/id/metropolitan-district-council/walsall,WC116-237,31/05/2020,Resources and Transformation,ACCORD HOUSING ASSOCIATION LTD#135,05/05/2020,"4,444.64",01045-PRIVATE GRANTS,CFR 1359 DISABLED FACILITIES GRANT,Capital,Capital
Walsall Council,http://opendatacommunities.org/id/metropolitan-district-council/walsall,WC116-238,31/05/2020,Resources and Transformation,ACCORD HOUSING ASSOCIATION LTD#135,05/05/2020,"4,444.64",01045-PRIVATE GRANTS,CFR 1359 DISABLED FACILITIES GRANT,Capital,Capital
Walsall Council,http://opendatacommunities.org/id/metropolitan-district-council/walsall,WC116-239,31/05/2020,Resources and Transformation,ACCORD HOUSING ASSOCIATION LTD#135,13/05/2020,"4,444.64",01045-PRIVATE GRANTS,CFR 1359 DISABLED FACILITIES GRANT,Capital,Capital
Walsall Council,http://opendatacommunities.org/id/metropolitan-district-council/walsall,WC116-240,31/05/2020,Resources and Transformation,ACCORD HOUSING ASSOCIATION LTD#135,05/05/2020,"4,675.90",01045-PRIVATE GRANTS,CFR 1359 DISABLED FACILITIES GRANT,Capital,Capital
Walsall Council,http://opendatacommunities.org/id/metropolitan-district-council/walsall,WC116-241,31/05/2020,Resources and Transformation,ACCORD HOUSING ASSOCIATION LTD#135,05/05/2020,"5,085.21",01045-PRIVATE GRANTS,CFR 1359 DISABLED FACILITIES GRANT,Capital,Capital
Walsall Council,http://opendatacommunities.org/id/metropolitan-district-council/walsall,WC116-242,31/05/2020,Resources and Transformation,ACCORD HOUSING ASSOCIATION LTD#135,20/05/2020,"5,085.21",01045-PRIVATE GRANTS,CFR 1359 DISABLED FACILITIES GRANT,Capital,Capital
Walsall Council,http://opendatacommunities.org/id/metropolitan-district-council/walsall,WC116-243,31/05/2020,Resources and Transformation,ACCORD HOUSING ASSOCIATION LTD#135,20/05/2020,"5,125.90",01045-PRIVATE GRANTS,CFR 1359 DISABLED FACILITIES GRANT,Capital,Capital
Walsall Council,http://opendatacommunities.org/id/metropolitan-district-council/walsall,WC116-244,31/05/2020,Adult Social Care,ACCORD HOUSING ASSOCIATION LTD#135,07/05/2020,"5,763.80",73500-RESIDENTIAL,LEARNING DISABILITY SUPPORT,Third Party Payments,Revenue
Walsall Council,http://opendatacommunities.org/id/metropolitan-district-council/walsall,WC116-245,31/05/2020,Adult Social Care,ACCORD HOUSING ASSOCIATION LTD#135,07/05/2020,"6,454.40",73500-RESIDENTIAL,LEARNING DISABILITY SUPPORT,Third Party Payments,Revenue
Walsall Council,http://opendatacommunities.org/id/metropolitan-district-council/walsall,WC116-246,31/05/2020,Adult Social Care,ACCORD HOUSING ASSOCIATION LTD#135,07/05/2020,"6,454.40",73500-RESIDENTIAL,LEARNING DISABILITY SUPPORT,Third Party Payments,Revenue
Walsall Council,http://opendatacommunities.org/id/metropolitan-district-council/walsall,WC116-247,31/05/2020,Resources and Transformation,ACCORD HOUSING ASSOCIATION LTD#135,20/05/2020,"18,200.00",01046-OTHER GRANTS,CFR 1108 OFF GAS SCHEME-DECC,Capital,Capital
Walsall Council,http://opendatacommunities.org/id/metropolitan-district-council/walsall,WC116-248,31/05/2020,Childrens,ACE CARS & MINIBUSES LTD,22/05/2020,240.00,52000-WITH DRIVER-HIRE OF VEHICLES,HOME TO SCHOOL TRANSPORT,Transport,Revenue
Walsall Council,http://opendatacommunities.org/id/metropolitan-district-council/walsall,WC116-249,31/05/2020,Childrens,ACE CARS & MINIBUSES LTD,22/05/2020,291.20,52000-WITH DRIVER-HIRE OF VEHICLES,HOME TO SCHOOL TRANSPORT,Transport,Revenue
Walsall Council,http://opendatacommunities.org/id/metropolitan-district-council/walsall,WC116-250,31/05/2020,Childrens,ACE CARS & MINIBUSES LTD,22/05/2020,376.00,52000-WITH DRIVER-HIRE OF VEHICLES,HOME TO SCHOOL TRANSPORT,Transport,Revenue
Walsall Council,http://opendatacommunities.org/id/metropolitan-district-council/walsall,WC116-251,31/05/2020,Childrens,ACE CARS & MINIBUSES LTD,22/05/2020,457.60,52000-WITH DRIVER-HIRE OF VEHICLES,HOME TO SCHOOL TRANSPORT,Transport,Revenue
Walsall Council,http://opendatacommunities.org/id/metropolitan-district-council/walsall,WC116-252,31/05/2020,Childrens,ACE CARS & MINIBUSES LTD,22/05/2020,468.00,52000-WITH DRIVER-HIRE OF VEHICLES,HOME TO SCHOOL TRANSPORT,Transport,Revenue
Walsall Council,http://opendatacommunities.org/id/metropolitan-district-council/walsall,WC116-253,31/05/2020,Childrens,ACE CARS & MINIBUSES LTD,22/05/2020,500.00,52000-WITH DRIVER-HIRE OF VEHICLES,HOME TO SCHOOL TRANSPORT,Transport,Revenue
Walsall Council,http://opendatacommunities.org/id/metropolitan-district-council/walsall,WC116-254,31/05/2020,Childrens,ACE CARS & MINIBUSES LTD,22/05/2020,603.20,52000-WITH DRIVER-HIRE OF VEHICLES,HOME TO SCHOOL TRANSPORT,Transport,Revenue
Walsall Council,http://opendatacommunities.org/id/metropolitan-district-council/walsall,WC116-255,31/05/2020,Childrens,ACE CARS & MINIBUSES LTD,22/05/2020,676.00,52000-WITH DRIVER-HIRE OF VEHICLES,HOME TO SCHOOL TRANSPORT,Transport,Revenue
Walsall Council,http://opendatacommunities.org/id/metropolitan-district-council/walsall,WC116-256,31/05/2020,Childrens,ACE CARS & MINIBUSES LTD,22/05/2020,715.00,52000-WITH DRIVER-HIRE OF VEHICLES,HOME TO SCHOOL TRANSPORT,Transport,Revenue
Walsall Council,http://opendatacommunities.org/id/metropolitan-district-council/walsall,WC116-257,31/05/2020,Childrens,ACE CARS & MINIBUSES LTD,22/05/2020,728.00,52000-WITH DRIVER-HIRE OF VEHICLES,HOME TO SCHOOL TRANSPORT,Transport,Revenue
Walsall Council,http://opendatacommunities.org/id/metropolitan-district-council/walsall,WC116-258,31/05/2020,Childrens,ACE CARS & MINIBUSES LTD,22/05/2020,728.00,52000-WITH DRIVER-HIRE OF VEHICLES,HOME TO SCHOOL TRANSPORT,Transport,Revenue
Walsall Council,http://opendatacommunities.org/id/metropolitan-district-council/walsall,WC116-259,31/05/2020,Childrens,ACE CARS & MINIBUSES LTD,22/05/2020,738.40,52000-WITH DRIVER-HIRE OF VEHICLES,HOME TO SCHOOL TRANSPORT,Transport,Revenue
Walsall Council,http://opendatacommunities.org/id/metropolitan-district-council/walsall,WC116-260,31/05/2020,Childrens,ACE CARS & MINIBUSES LTD,22/05/2020,780.00,52000-WITH DRIVER-HIRE OF VEHICLES,HOME TO SCHOOL TRANSPORT,Transport,Revenue
Walsall Council,http://opendatacommunities.org/id/metropolitan-district-council/walsall,WC116-261,31/05/2020,Childrens,ACE CARS & MINIBUSES LTD,22/05/2020,800.80,52000-WITH DRIVER-HIRE OF VEHICLES,HOME TO SCHOOL TRANSPORT,Transport,Revenue
Walsall Council,http://opendatacommunities.org/id/metropolitan-district-council/walsall,WC116-262,31/05/2020,Childrens,ACE CARS & MINIBUSES LTD,22/05/2020,811.20,52000-WITH DRIVER-HIRE OF VEHICLES,HOME TO SCHOOL TRANSPORT,Transport,Revenue
Walsall Council,http://opendatacommunities.org/id/metropolitan-district-council/walsall,WC116-263,31/05/2020,Childrens,ACE CARS & MINIBUSES LTD,22/05/2020,920.00,52000-WITH DRIVER-HIRE OF VEHICLES,HOME TO SCHOOL TRANSPORT,Transport,Revenue
Walsall Council,http://opendatacommunities.org/id/metropolitan-district-council/walsall,WC116-264,31/05/2020,Childrens,ACE CARS & MINIBUSES LTD,22/05/2020,972.90,52000-WITH DRIVER-HIRE OF VEHICLES,HOME TO SCHOOL TRANSPORT,Transport,Revenue
Walsall Council,http://opendatacommunities.org/id/metropolitan-district-council/walsall,WC116-265,31/05/2020,Childrens,ACE CARS & MINIBUSES LTD,22/05/2020,"1,026.95",52000-WITH DRIVER-HIRE OF VEHICLES,HOME TO SCHOOL TRANSPORT,Transport,Revenue
Walsall Council,http://opendatacommunities.org/id/metropolitan-district-council/walsall,WC116-266,31/05/2020,Childrens,ACE CARS & MINIBUSES LTD,22/05/2020,"1,138.50",52000-WITH DRIVER-HIRE OF VEHICLES,HOME TO SCHOOL TRANSPORT,Transport,Revenue
Walsall Council,http://opendatacommunities.org/id/metropolitan-district-council/walsall,WC116-267,31/05/2020,Childrens,ACE CARS & MINIBUSES LTD,22/05/2020,"1,144.00",52000-WITH DRIVER-HIRE OF VEHICLES,HOME TO SCHOOL TRANSPORT,Transport,Revenue
Walsall Council,http://opendatacommunities.org/id/metropolitan-district-council/walsall,WC116-268,31/05/2020,Childrens,ACE CARS & MINIBUSES LTD,22/05/2020,"1,144.00",52000-WITH DRIVER-HIRE OF VEHICLES,HOME TO SCHOOL TRANSPORT,Transport,Revenue
Walsall Council,http://opendatacommunities.org/id/metropolitan-district-council/walsall,WC116-269,31/05/2020,Childrens,ACE CARS & MINIBUSES LTD,22/05/2020,"1,189.08",52000-WITH DRIVER-HIRE OF VEHICLES,HOME TO SCHOOL TRANSPORT,Transport,Revenue
Walsall Council,http://opendatacommunities.org/id/metropolitan-district-council/walsall,WC116-270,31/05/2020,Childrens,ACE CARS & MINIBUSES LTD,22/05/2020,"1,189.10",52000-WITH DRIVER-HIRE OF VEHICLES,HOME TO SCHOOL TRANSPORT,Transport,Revenue
Walsall Council,http://opendatacommunities.org/id/metropolitan-district-council/walsall,WC116-271,31/05/2020,Childrens,ACE CARS & MINIBUSES LTD,22/05/2020,"1,196.00",52000-WITH DRIVER-HIRE OF VEHICLES,HOME TO SCHOOL TRANSPORT,Transport,Revenue
Walsall Council,http://opendatacommunities.org/id/metropolitan-district-council/walsall,WC116-272,31/05/2020,Childrens,ACE CARS & MINIBUSES LTD,22/05/2020,"1,205.55",52000-WITH DRIVER-HIRE OF VEHICLES,HOME TO SCHOOL TRANSPORT,Transport,Revenue
Walsall Council,http://opendatacommunities.org/id/metropolitan-district-council/walsall,WC116-273,31/05/2020,Childrens,ACE CARS & MINIBUSES LTD,22/05/2020,"1,267.30",52000-WITH DRIVER-HIRE OF VEHICLES,HOME TO SCHOOL TRANSPORT,Transport,Revenue
Walsall Council,http://opendatacommunities.org/id/metropolitan-district-council/walsall,WC116-274,31/05/2020,Childrens,ACE CARS & MINIBUSES LTD,22/05/2020,"1,430.00",52000-WITH DRIVER-HIRE OF VEHICLES,HOME TO SCHOOL TRANSPORT,Transport,Revenue
Walsall Council,http://opendatacommunities.org/id/metropolitan-district-council/walsall,WC116-275,31/05/2020,Childrens,ACE CARS & MINIBUSES LTD,22/05/2020,"1,435.20",52000-WITH DRIVER-HIRE OF VEHICLES,HOME TO SCHOOL TRANSPORT,Transport,Revenue
Walsall Council,http://opendatacommunities.org/id/metropolitan-district-council/walsall,WC116-276,31/05/2020,Childrens,ACE CARS & MINIBUSES LTD,22/05/2020,"1,451.24",52000-WITH DRIVER-HIRE OF VEHICLES,HOME TO SCHOOL TRANSPORT,Transport,Revenue
Walsall Council,http://opendatacommunities.org/id/metropolitan-district-council/walsall,WC116-277,31/05/2020,Childrens,ACE CARS & MINIBUSES LTD,22/05/2020,"1,452.30",52000-WITH DRIVER-HIRE OF VEHICLES,HOME TO SCHOOL TRANSPORT,Transport,Revenue
Walsall Council,http://opendatacommunities.org/id/metropolitan-district-council/walsall,WC116-278,31/05/2020,Childrens,ACE CARS & MINIBUSES LTD,22/05/2020,"1,452.30",52000-WITH DRIVER-HIRE OF VEHICLES,HOME TO SCHOOL TRANSPORT,Transport,Revenue
Walsall Council,http://opendatacommunities.org/id/metropolitan-district-council/walsall,WC116-279,31/05/2020,Childrens,ACE CARS & MINIBUSES LTD,22/05/2020,"1,554.80",52000-WITH DRIVER-HIRE OF VEHICLES,HOME TO SCHOOL TRANSPORT,Transport,Revenue
Walsall Council,http://opendatacommunities.org/id/metropolitan-district-council/walsall,WC116-280,31/05/2020,Childrens,ACE CARS & MINIBUSES LTD,22/05/2020,"1,828.32",52000-WITH DRIVER-HIRE OF VEHICLES,HOME TO SCHOOL TRANSPORT,Transport,Revenue
Walsall Council,http://opendatacommunities.org/id/metropolitan-district-council/walsall,WC116-281,31/05/2020,Childrens,ACE CARS & MINIBUSES LTD,22/05/2020,"1,950.00",52000-WITH DRIVER-HIRE OF VEHICLES,HOME TO SCHOOL TRANSPORT,Transport,Revenue
Walsall Council,http://opendatacommunities.org/id/metropolitan-district-council/walsall,WC116-282,31/05/2020,Adult Social Care,ACEPAY LTD (COTTAGE NUR HOME),07/05/2020,"1,544.77",73502-NURSING,PHYSICAL SUPPORT,Third Party Payments,Revenue
Walsall Council,http://opendatacommunities.org/id/metropolitan-district-council/walsall,WC116-283,31/05/2020,Adult Social Care,ACEPAY LTD (COTTAGE NUR HOME),07/05/2020,"1,957.52",73500-RESIDENTIAL,PHYSICAL SUPPORT,Third Party Payments,Revenue
Walsall Council,http://opendatacommunities.org/id/metropolitan-district-council/walsall,WC116-284,31/05/2020,Adult Social Care,ACEPAY LTD (COTTAGE NUR HOME),07/05/2020,"2,200.07",73501-RESIDENTIAL EMI,PHYSICAL SUPPORT,Third Party Payments,Revenue
Walsall Council,http://opendatacommunities.org/id/metropolitan-district-council/walsall,WC116-285,31/05/2020,Adult Social Care,ACEPAY LTD (COTTAGE NUR HOME),07/05/2020,"2,314.91",73502-NURSING,PHYSICAL SUPPORT,Third Party Payments,Revenue
Walsall Council,http://opendatacommunities.org/id/metropolitan-district-council/walsall,WC116-286,31/05/2020,Adult Social Care,ACEPAY LTD (COTTAGE NUR HOME),07/05/2020,"2,314.91",73502-NURSING,SUPPORT WITH MEMORY & COGNITION,Third Party Payments,Revenue
Walsall Council,http://opendatacommunities.org/id/metropolitan-district-council/walsall,WC116-287,31/05/2020,Adult Social Care,ACEPAY LTD (COTTAGE NUR HOME),07/05/2020,"2,314.91",73502-NURSING,SUPPORT WITH MEMORY & COGNITION,Third Party Payments,Revenue
Walsall Council,http://opendatacommunities.org/id/metropolitan-district-council/walsall,WC116-288,31/05/2020,Adult Social Care,ACEPAY LTD (COTTAGE NUR HOME),07/05/2020,"2,314.91",73502-NURSING,PHYSICAL SUPPORT,Third Party Payments,Revenue
Walsall Council,http://opendatacommunities.org/id/metropolitan-district-council/walsall,WC116-289,31/05/2020,Adult Social Care,ACEPAY LTD (COTTAGE NUR HOME),07/05/2020,"2,314.91",73502-NURSING,PHYSICAL SUPPORT,Third Party Payments,Revenue
Walsall Council,http://opendatacommunities.org/id/metropolitan-district-council/walsall,WC116-290,31/05/2020,Adult Social Care,ACEPAY LTD (COTTAGE NUR HOME),07/05/2020,"2,314.91",73502-NURSING,PHYSICAL SUPPORT,Third Party Payments,Revenue
Walsall Council,http://opendatacommunities.org/id/metropolitan-district-council/walsall,WC116-291,31/05/2020,Adult Social Care,ACEPAY LTD (COTTAGE NUR HOME),07/05/2020,"2,314.91",73502-NURSING,SUPPORT WITH MEMORY & COGNITION,Third Party Payments,Revenue
Walsall Council,http://opendatacommunities.org/id/metropolitan-district-council/walsall,WC116-292,31/05/2020,Adult Social Care,ACEPAY LTD (COTTAGE NUR HOME),07/05/2020,"2,314.91",73502-NURSING,PHYSICAL SUPPORT,Third Party Payments,Revenue
Walsall Council,http://opendatacommunities.org/id/metropolitan-district-council/walsall,WC116-293,31/05/2020,Adult Social Care,ACEPAY LTD (COTTAGE NUR HOME),07/05/2020,"2,314.91",73502-NURSING,PHYSICAL SUPPORT,Third Party Payments,Revenue
Walsall Council,http://opendatacommunities.org/id/metropolitan-district-council/walsall,WC116-294,31/05/2020,Adult Social Care,ACEPAY LTD (COTTAGE NUR HOME),07/05/2020,"2,314.91",73502-NURSING,PHYSICAL SUPPORT,Third Party Payments,Revenue
Walsall Council,http://opendatacommunities.org/id/metropolitan-district-council/walsall,WC116-295,31/05/2020,Adult Social Care,ACEPAY LTD (COTTAGE NUR HOME),07/05/2020,"2,314.91",73502-NURSING,SOCIAL SUPPORT,Third Party Payments,Revenue
Walsall Council,http://opendatacommunities.org/id/metropolitan-district-council/walsall,WC116-296,31/05/2020,Adult Social Care,ACEPAY LTD (COTTAGE NUR HOME),07/05/2020,"2,514.91",73502-NURSING,PHYSICAL SUPPORT,Third Party Payments,Revenue
Walsall Council,http://opendatacommunities.org/id/metropolitan-district-council/walsall,WC116-297,31/05/2020,Childrens,ACORN CARE & EDUCATION LTD (SALES),01/05/2020,"6,333.33",66502-TOP UP FUNDING -GRANTS TO SCHOOLS,INDEPENDENT PROVIDERS - SPECIAL & AP,Third Party Payments,Revenue
Walsall Council,http://opendatacommunities.org/id/metropolitan-district-council/walsall,WC116-298,31/05/2020,Childrens,ACORN CARE & EDUCATION LTD (SALES),01/05/2020,"16,166.67",66502-TOP UP FUNDING -GRANTS TO SCHOOLS,INDEPENDENT PROVIDERS - SPECIAL & AP,Third Party Payments,Revenue
Walsall Council,http://opendatacommunities.org/id/metropolitan-district-council/walsall,WC116-299,31/05/2020,Childrens,ACORN CARE & EDUCATION LTD (SALES),01/05/2020,"16,500.00",66502-TOP UP FUNDING -GRANTS TO SCHOOLS,INDEPENDENT PROVIDERS - SPECIAL & AP,Third Party Payments,Revenue
Walsall Council,http://opendatacommunities.org/id/metropolitan-district-council/walsall,WC116-300,31/05/2020,Childrens,ACORN FOSTERING SERVICES LTD,15/05/2020,"3,380.00",74037-INDEPENDENT FOSTER CARE-OTH AGENCY PROVISION,EXTERNAL FOSTER CARE PROVISION,Third Party Payments,Revenue
Walsall Council,http://opendatacommunities.org/id/metropolitan-district-council/walsall,WC116-301,31/05/2020,Childrens,ACORNS CHILDRENS HOSPICE TRUST,11/05/2020,"1,700.00",63000-PROFESSIONAL FEES AND SERVICES,DIRECTLY COMMISSIONED NURSING SERVICES,Supplies & Services,Revenue
Walsall Council,http://opendatacommunities.org/id/metropolitan-district-council/walsall,WC116-302,31/05/2020,Adult Social Care,ACTION ON HEARING LOSS,05/05/2020,504.00,73508-COMMUNITY SUPPORTED LIVING/SUPPORTED ACCOMMODATION,MENTAL HEALTH SUPPORT,Third Party Payments,Revenue
Walsall Council,http://opendatacommunities.org/id/metropolitan-district-council/walsall,WC116-303,31/05/2020,Adult Social Care,ACTION ON HEARING LOSS,18/05/2020,504.00,73508-COMMUNITY SUPPORTED LIVING/SUPPORTED ACCOMMODATION,MENTAL HEALTH SUPPORT,Third Party Payments,Revenue
Walsall Council,http://opendatacommunities.org/id/metropolitan-district-council/walsall,WC116-304,31/05/2020,Childrens,ACTIVE CARE SOLUTIONS LTD,15/05/2020,"2,662.80",74037-INDEPENDENT FOSTER CARE-OTH AGENCY PROVISION,EXTERNAL FOSTER CARE PROVISION,Third Party Payments,Revenue
Walsall Council,http://opendatacommunities.org/id/metropolitan-district-council/walsall,WC116-305,31/05/2020,Childrens,ACTIVE CARE SOLUTIONS LTD,15/05/2020,"3,220.00",74037-INDEPENDENT FOSTER CARE-OTH AGENCY PROVISION,EXTERNAL FOSTER CARE PROVISION,Third Party Payments,Revenue
Walsall Council,http://opendatacommunities.org/id/metropolitan-district-council/walsall,WC116-306,31/05/2020,Childrens,ACTIVE CARE SOLUTIONS LTD,15/05/2020,"5,221.06",74037-INDEPENDENT FOSTER CARE-OTH AGENCY PROVISION,EXTERNAL FOSTER CARE PROVISION,Third Party Payments,Revenue
Walsall Council,http://opendatacommunities.org/id/metropolitan-district-council/walsall,WC116-307,31/05/2020,Childrens,ACTIVE CARE SOLUTIONS LTD,15/05/2020,"6,106.00",74037-INDEPENDENT FOSTER CARE-OTH AGENCY PROVISION,EXTERNAL FOSTER CARE PROVISION,Third Party Payments,Revenue
Walsall Council,http://opendatacommunities.org/id/metropolitan-district-council/walsall,WC116-308,31/05/2020,Adult Social Care,REDACTED,01/05/2020,456.20,73506-DIRECT PAYMENT,LEARNING DISABILITY SUPPORT,Third Party Payments,Revenue
Walsall Council,http://opendatacommunities.org/id/metropolitan-district-council/walsall,WC116-309,31/05/2020,Resources and Transformation,ADLER MANUFACTURING LIMITED,04/05/2020,501.49,64009-MAYORAL COSTS,MAYORS SECRETARIAT,Supplies & Services,Revenue
Walsall Council,http://opendatacommunities.org/id/metropolitan-district-council/walsall,WC116-310,31/05/2020,Adult Social Care,ADMIRAL SELF STORAGE LTD,20/05/2020,-269.85,63000-PROFESSIONAL FEES AND SERVICES,MENTAL HEALTH SUPPORT,Supplies & Services,Revenue
Walsall Council,http://opendatacommunities.org/id/metropolitan-district-council/walsall,WC116-311,31/05/2020,Childrens,REDACTED,04/05/2020,333.12,74510-RESIDENTS ORDERS,ADOPTION ALLOWANCES,Third Party Payments,Revenue
Walsall Council,http://opendatacommunities.org/id/metropolitan-district-council/walsall,WC116-312,31/05/2020,Childrens,REDACTED,04/05/2020,361.12,74510-RESIDENTS ORDERS,ADOPTION ALLOWANCES,Third Party Payments,Revenue
Walsall Council,http://opendatacommunities.org/id/metropolitan-district-council/walsall,WC116-313,31/05/2020,Adult Social Care,REDACTED,01/05/2020,"2,083.20",73506-DIRECT PAYMENT,LEARNING DISABILITY SUPPORT,Third Party Payments,Revenue
Walsall Council,http://opendatacommunities.org/id/metropolitan-district-council/walsall,WC116-314,31/05/2020,Adult Social Care,ADVANCE HEALTH CARE (UK) LTD,22/05/2020,-277.56,73507-DOMICILIARY CARE,PHYSICAL SUPPORT,Third Party Payments,Revenue
Walsall Council,http://opendatacommunities.org/id/metropolitan-district-council/walsall,WC116-315,31/05/2020,Adult Social Care,ADVANCE HEALTH CARE (UK) LTD,04/05/2020,270.03,73025-PROFESSIONAL SERVICES-PRIV CONTRACTOR & OTHER AGENCIES,INTERMEDIATE CARE SERVICE,Third Party Payments,Revenue
Walsall Council,http://opendatacommunities.org/id/metropolitan-district-council/walsall,WC116-316,31/05/2020,Adult Social Care,ADVANCE HEALTH CARE (UK) LTD,11/05/2020,277.56,73507-DOMICILIARY CARE,PHYSICAL SUPPORT,Third Party Payments,Revenue
Walsall Council,http://opendatacommunities.org/id/metropolitan-district-council/walsall,WC116-317,31/05/2020,Adult Social Care,ADVANCE HEALTH CARE (UK) LTD,12/05/2020,277.56,73507-DOMICILIARY CARE,PHYSICAL SUPPORT,Third Party Payments,Revenue
Walsall Council,http://opendatacommunities.org/id/metropolitan-district-council/walsall,WC116-318,31/05/2020,Adult Social Care,ADVANCE HEALTH CARE (UK) LTD,22/05/2020,277.56,73507-DOMICILIARY CARE,PHYSICAL SUPPORT,Third Party Payments,Revenue
Walsall Council,http://opendatacommunities.org/id/metropolitan-district-council/walsall,WC116-319,31/05/2020,Adult Social Care,ADVANCE HEALTH CARE (UK) LTD,22/05/2020,277.56,73507-DOMICILIARY CARE,PHYSICAL SUPPORT,Third Party Payments,Revenue
Walsall Council,http://opendatacommunities.org/id/metropolitan-district-council/walsall,WC116-320,31/05/2020,Adult Social Care,ADVANCE HEALTH CARE (UK) LTD,22/05/2020,277.56,73507-DOMICILIARY CARE,PHYSICAL SUPPORT,Third Party Payments,Revenue
Walsall Council,http://opendatacommunities.org/id/metropolitan-district-council/walsall,WC116-321,31/05/2020,Adult Social Care,ADVANCE HEALTH CARE (UK) LTD,07/05/2020,277.74,73025-PROFESSIONAL SERVICES-PRIV CONTRACTOR & OTHER AGENCIES,INTERMEDIATE CARE SERVICE,Third Party Payments,Revenue
Walsall Council,http://opendatacommunities.org/id/metropolitan-district-council/walsall,WC116-322,31/05/2020,Adult Social Care,ADVANCE HEALTH CARE (UK) LTD,12/05/2020,289.15,73507-DOMICILIARY CARE,PHYSICAL SUPPORT,Third Party Payments,Revenue
Walsall Council,http://opendatacommunities.org/id/metropolitan-district-council/walsall,WC116-323,31/05/2020,Adult Social Care,ADVANCE HEALTH CARE (UK) LTD,14/05/2020,320.17,73025-PROFESSIONAL SERVICES-PRIV CONTRACTOR & OTHER AGENCIES,INTERMEDIATE CARE SERVICE,Third Party Payments,Revenue
Walsall Council,http://opendatacommunities.org/id/metropolitan-district-council/walsall,WC116-324,31/05/2020,Adult Social Care,ADVANCE HEALTH CARE (UK) LTD,11/05/2020,323.82,73507-DOMICILIARY CARE,SOCIAL SUPPORT,Third Party Payments,Revenue
Walsall Council,http://opendatacommunities.org/id/metropolitan-district-council/walsall,WC116-325,31/05/2020,Adult Social Care,ADVANCE HEALTH CARE (UK) LTD,12/05/2020,323.82,73507-DOMICILIARY CARE,SOCIAL SUPPORT,Third Party Payments,Revenue
Walsall Council,http://opendatacommunities.org/id/metropolitan-district-council/walsall,WC116-326,31/05/2020,Adult Social Care,ADVANCE HEALTH CARE (UK) LTD,12/05/2020,323.82,73507-DOMICILIARY CARE,PHYSICAL SUPPORT,Third Party Payments,Revenue
Walsall Council,http://opendatacommunities.org/id/metropolitan-district-council/walsall,WC116-327,31/05/2020,Adult Social Care,ADVANCE HEALTH CARE (UK) LTD,22/05/2020,323.82,73507-DOMICILIARY CARE,SOCIAL SUPPORT,Third Party Payments,Revenue
Walsall Council,http://opendatacommunities.org/id/metropolitan-district-council/walsall,WC116-328,31/05/2020,Adult Social Care,ADVANCE HEALTH CARE (UK) LTD,22/05/2020,323.82,73507-DOMICILIARY CARE,SOCIAL SUPPORT,Third Party Payments,Revenue
Walsall Council,http://opendatacommunities.org/id/metropolitan-district-council/walsall,WC116-329,31/05/2020,Adult Social Care,ADVANCE HEALTH CARE (UK) LTD,12/05/2020,339.24,73507-DOMICILIARY CARE,PHYSICAL SUPPORT,Third Party Payments,Revenue
Walsall Council,http://opendatacommunities.org/id/metropolitan-district-council/walsall,WC116-330,31/05/2020,Adult Social Care,ADVANCE HEALTH CARE (UK) LTD,11/05/2020,359.80,73507-DOMICILIARY CARE,PHYSICAL SUPPORT,Third Party Payments,Revenue
Walsall Council,http://opendatacommunities.org/id/metropolitan-district-council/walsall,WC116-331,31/05/2020,Adult Social Care,ADVANCE HEALTH CARE (UK) LTD,12/05/2020,359.80,73507-DOMICILIARY CARE,PHYSICAL SUPPORT,Third Party Payments,Revenue
Walsall Council,http://opendatacommunities.org/id/metropolitan-district-council/walsall,WC116-332,31/05/2020,Adult Social Care,ADVANCE HEALTH CARE (UK) LTD,22/05/2020,359.80,73507-DOMICILIARY CARE,PHYSICAL SUPPORT,Third Party Payments,Revenue
Walsall Council,http://opendatacommunities.org/id/metropolitan-district-council/walsall,WC116-333,31/05/2020,Adult Social Care,ADVANCE HEALTH CARE (UK) LTD,22/05/2020,359.80,73507-DOMICILIARY CARE,PHYSICAL SUPPORT,Third Party Payments,Revenue
Walsall Council,http://opendatacommunities.org/id/metropolitan-district-council/walsall,WC116-334,31/05/2020,Adult Social Care,ADVANCE HEALTH CARE (UK) LTD,11/05/2020,362.37,73507-DOMICILIARY CARE,PHYSICAL SUPPORT,Third Party Payments,Revenue
Walsall Council,http://opendatacommunities.org/id/metropolitan-district-council/walsall,WC116-335,31/05/2020,Adult Social Care,ADVANCE HEALTH CARE (UK) LTD,12/05/2020,362.37,73507-DOMICILIARY CARE,PHYSICAL SUPPORT,Third Party Payments,Revenue
Walsall Council,http://opendatacommunities.org/id/metropolitan-district-council/walsall,WC116-336,31/05/2020,Adult Social Care,ADVANCE HEALTH CARE (UK) LTD,22/05/2020,362.37,73507-DOMICILIARY CARE,PHYSICAL SUPPORT,Third Party Payments,Revenue
Walsall Council,http://opendatacommunities.org/id/metropolitan-district-council/walsall,WC116-337,31/05/2020,Adult Social Care,ADVANCE HEALTH CARE (UK) LTD,22/05/2020,362.37,73507-DOMICILIARY CARE,PHYSICAL SUPPORT,Third Party Payments,Revenue
Walsall Council,http://opendatacommunities.org/id/metropolitan-district-council/walsall,WC116-338,31/05/2020,Adult Social Care,ADVANCE HEALTH CARE (UK) LTD,11/05/2020,375.22,73507-DOMICILIARY CARE,PHYSICAL SUPPORT,Third Party Payments,Revenue
Walsall Council,http://opendatacommunities.org/id/metropolitan-district-council/walsall,WC116-339,31/05/2020,Adult Social Care,ADVANCE HEALTH CARE (UK) LTD,12/05/2020,375.22,73507-DOMICILIARY CARE,PHYSICAL SUPPORT,Third Party Payments,Revenue
Walsall Council,http://opendatacommunities.org/id/metropolitan-district-council/walsall,WC116-340,31/05/2020,Adult Social Care,ADVANCE HEALTH CARE (UK) LTD,11/05/2020,377.79,73507-DOMICILIARY CARE,PHYSICAL SUPPORT,Third Party Payments,Revenue
Walsall Council,http://opendatacommunities.org/id/metropolitan-district-council/walsall,WC116-341,31/05/2020,Adult Social Care,ADVANCE HEALTH CARE (UK) LTD,12/05/2020,377.79,73507-DOMICILIARY CARE,PHYSICAL SUPPORT,Third Party Payments,Revenue
Walsall Council,http://opendatacommunities.org/id/metropolitan-district-council/walsall,WC116-342,31/05/2020,Adult Social Care,ADVANCE HEALTH CARE (UK) LTD,22/05/2020,377.79,73507-DOMICILIARY CARE,PHYSICAL SUPPORT,Third Party Payments,Revenue
Walsall Council,http://opendatacommunities.org/id/metropolitan-district-council/walsall,WC116-343,31/05/2020,Adult Social Care,ADVANCE HEALTH CARE (UK) LTD,22/05/2020,377.79,73507-DOMICILIARY CARE,PHYSICAL SUPPORT,Third Party Payments,Revenue
Walsall Council,http://opendatacommunities.org/id/metropolitan-district-council/walsall,WC116-344,31/05/2020,Adult Social Care,ADVANCE HEALTH CARE (UK) LTD,04/05/2020,378.04,73025-PROFESSIONAL SERVICES-PRIV CONTRACTOR & OTHER AGENCIES,INTERMEDIATE CARE SERVICE,Third Party Payments,Revenue
Walsall Council,http://opendatacommunities.org/id/metropolitan-district-council/walsall,WC116-345,31/05/2020,Adult Social Care,ADVANCE HEALTH CARE (UK) LTD,18/05/2020,380.36,73507-DOMICILIARY CARE,PHYSICAL SUPPORT,Third Party Payments,Revenue
Walsall Council,http://opendatacommunities.org/id/metropolitan-district-council/walsall,WC116-346,31/05/2020,Adult Social Care,ADVANCE HEALTH CARE (UK) LTD,22/05/2020,403.49,73507-DOMICILIARY CARE,PHYSICAL SUPPORT,Third Party Payments,Revenue
Walsall Council,http://opendatacommunities.org/id/metropolitan-district-council/walsall,WC116-347,31/05/2020,Adult Social Care,ADVANCE HEALTH CARE (UK) LTD,11/05/2020,404.81,73507-DOMICILIARY CARE,PHYSICAL SUPPORT,Third Party Payments,Revenue
Walsall Council,http://opendatacommunities.org/id/metropolitan-district-council/walsall,WC116-348,31/05/2020,Adult Social Care,ADVANCE HEALTH CARE (UK) LTD,22/05/2020,404.81,73507-DOMICILIARY CARE,PHYSICAL SUPPORT,Third Party Payments,Revenue
Walsall Council,http://opendatacommunities.org/id/metropolitan-district-council/walsall,WC116-349,31/05/2020,Adult Social Care,ADVANCE HEALTH CARE (UK) LTD,22/05/2020,404.81,73507-DOMICILIARY CARE,PHYSICAL SUPPORT,Third Party Payments,Revenue
Walsall Council,http://opendatacommunities.org/id/metropolitan-district-council/walsall,WC116-350,31/05/2020,Adult Social Care,ADVANCE HEALTH CARE (UK) LTD,22/05/2020,416.34,73507-DOMICILIARY CARE,PHYSICAL SUPPORT,Third Party Payments,Revenue
Walsall Council,http://opendatacommunities.org/id/metropolitan-district-council/walsall,WC116-351,31/05/2020,Adult Social Care,ADVANCE HEALTH CARE (UK) LTD,18/05/2020,421.48,73507-DOMICILIARY CARE,PHYSICAL SUPPORT,Third Party Payments,Revenue
Walsall Council,http://opendatacommunities.org/id/metropolitan-district-council/walsall,WC116-352,31/05/2020,Adult Social Care,ADVANCE HEALTH CARE (UK) LTD,11/05/2020,431.76,73507-DOMICILIARY CARE,PHYSICAL SUPPORT,Third Party Payments,Revenue
Walsall Council,http://opendatacommunities.org/id/metropolitan-district-council/walsall,WC116-353,31/05/2020,Adult Social Care,ADVANCE HEALTH CARE (UK) LTD,11/05/2020,431.76,73507-DOMICILIARY CARE,SOCIAL SUPPORT,Third Party Payments,Revenue
Walsall Council,http://opendatacommunities.org/id/metropolitan-district-council/walsall,WC116-354,31/05/2020,Adult Social Care,ADVANCE HEALTH CARE (UK) LTD,11/05/2020,431.76,73507-DOMICILIARY CARE,PHYSICAL SUPPORT,Third Party Payments,Revenue
Walsall Council,http://opendatacommunities.org/id/metropolitan-district-council/walsall,WC116-355,31/05/2020,Adult Social Care,ADVANCE HEALTH CARE (UK) LTD,11/05/2020,431.76,73507-DOMICILIARY CARE,PHYSICAL SUPPORT,Third Party Payments,Revenue
Walsall Council,http://opendatacommunities.org/id/metropolitan-district-council/walsall,WC116-356,31/05/2020,Adult Social Care,ADVANCE HEALTH CARE (UK) LTD,11/05/2020,431.76,73507-DOMICILIARY CARE,PHYSICAL SUPPORT,Third Party Payments,Revenue
Walsall Council,http://opendatacommunities.org/id/metropolitan-district-council/walsall,WC116-357,31/05/2020,Adult Social Care,ADVANCE HEALTH CARE (UK) LTD,11/05/2020,431.76,73507-DOMICILIARY CARE,PHYSICAL SUPPORT,Third Party Payments,Revenue
Walsall Council,http://opendatacommunities.org/id/metropolitan-district-council/walsall,WC116-358,31/05/2020,Adult Social Care,ADVANCE HEALTH CARE (UK) LTD,11/05/2020,431.76,73507-DOMICILIARY CARE,PHYSICAL SUPPORT,Third Party Payments,Revenue
Walsall Council,http://opendatacommunities.org/id/metropolitan-district-council/walsall,WC116-359,31/05/2020,Adult Social Care,ADVANCE HEALTH CARE (UK) LTD,11/05/2020,431.76,73507-DOMICILIARY CARE,PHYSICAL SUPPORT,Third Party Payments,Revenue
Walsall Council,http://opendatacommunities.org/id/metropolitan-district-council/walsall,WC116-360,31/05/2020,Adult Social Care,ADVANCE HEALTH CARE (UK) LTD,11/05/2020,431.76,73507-DOMICILIARY CARE,PHYSICAL SUPPORT,Third Party Payments,Revenue
Walsall Council,http://opendatacommunities.org/id/metropolitan-district-council/walsall,WC116-361,31/05/2020,Adult Social Care,ADVANCE HEALTH CARE (UK) LTD,12/05/2020,431.76,73507-DOMICILIARY CARE,PHYSICAL SUPPORT,Third Party Payments,Revenue
Walsall Council,http://opendatacommunities.org/id/metropolitan-district-council/walsall,WC116-362,31/05/2020,Adult Social Care,ADVANCE HEALTH CARE (UK) LTD,12/05/2020,431.76,73507-DOMICILIARY CARE,PHYSICAL SUPPORT,Third Party Payments,Revenue
Walsall Council,http://opendatacommunities.org/id/metropolitan-district-council/walsall,WC116-363,31/05/2020,Adult Social Care,ADVANCE HEALTH CARE (UK) LTD,12/05/2020,431.76,73507-DOMICILIARY CARE,PHYSICAL SUPPORT,Third Party Payments,Revenue
Walsall Council,http://opendatacommunities.org/id/metropolitan-district-council/walsall,WC116-364,31/05/2020,Adult Social Care,ADVANCE HEALTH CARE (UK) LTD,12/05/2020,431.76,73507-DOMICILIARY CARE,PHYSICAL SUPPORT,Third Party Payments,Revenue
Walsall Council,http://opendatacommunities.org/id/metropolitan-district-council/walsall,WC116-365,31/05/2020,Adult Social Care,ADVANCE HEALTH CARE (UK) LTD,12/05/2020,431.76,73507-DOMICILIARY CARE,PHYSICAL SUPPORT,Third Party Payments,Revenue
Walsall Council,http://opendatacommunities.org/id/metropolitan-district-council/walsall,WC116-366,31/05/2020,Adult Social Care,ADVANCE HEALTH CARE (UK) LTD,12/05/2020,431.76,73507-DOMICILIARY CARE,PHYSICAL SUPPORT,Third Party Payments,Revenue
Walsall Council,http://opendatacommunities.org/id/metropolitan-district-council/walsall,WC116-367,31/05/2020,Adult Social Care,ADVANCE HEALTH CARE (UK) LTD,12/05/2020,431.76,73507-DOMICILIARY CARE,SOCIAL SUPPORT,Third Party Payments,Revenue
Walsall Council,http://opendatacommunities.org/id/metropolitan-district-council/walsall,WC116-368,31/05/2020,Adult Social Care,ADVANCE HEALTH CARE (UK) LTD,22/05/2020,431.76,73507-DOMICILIARY CARE,PHYSICAL SUPPORT,Third Party Payments,Revenue
Walsall Council,http://opendatacommunities.org/id/metropolitan-district-council/walsall,WC116-369,31/05/2020,Adult Social Care,ADVANCE HEALTH CARE (UK) LTD,22/05/2020,431.76,73507-DOMICILIARY CARE,SOCIAL SUPPORT,Third Party Payments,Revenue
Walsall Council,http://opendatacommunities.org/id/metropolitan-district-council/walsall,WC116-370,31/05/2020,Adult Social Care,ADVANCE HEALTH CARE (UK) LTD,22/05/2020,431.76,73507-DOMICILIARY CARE,PHYSICAL SUPPORT,Third Party Payments,Revenue
Walsall Council,http://opendatacommunities.org/id/metropolitan-district-council/walsall,WC116-371,31/05/2020,Adult Social Care,ADVANCE HEALTH CARE (UK) LTD,22/05/2020,431.76,73507-DOMICILIARY CARE,PHYSICAL SUPPORT,Third Party Payments,Revenue
Walsall Council,http://opendatacommunities.org/id/metropolitan-district-council/walsall,WC116-372,31/05/2020,Adult Social Care,ADVANCE HEALTH CARE (UK) LTD,22/05/2020,431.76,73507-DOMICILIARY CARE,PHYSICAL SUPPORT,Third Party Payments,Revenue
Walsall Council,http://opendatacommunities.org/id/metropolitan-district-council/walsall,WC116-373,31/05/2020,Adult Social Care,ADVANCE HEALTH CARE (UK) LTD,22/05/2020,431.76,73507-DOMICILIARY CARE,PHYSICAL SUPPORT,Third Party Payments,Revenue
Walsall Council,http://opendatacommunities.org/id/metropolitan-district-council/walsall,WC116-374,31/05/2020,Adult Social Care,ADVANCE HEALTH CARE (UK) LTD,22/05/2020,431.76,73507-DOMICILIARY CARE,PHYSICAL SUPPORT,Third Party Payments,Revenue
Walsall Council,http://opendatacommunities.org/id/metropolitan-district-council/walsall,WC116-375,31/05/2020,Adult Social Care,ADVANCE HEALTH CARE (UK) LTD,22/05/2020,431.76,73507-DOMICILIARY CARE,PHYSICAL SUPPORT,Third Party Payments,Revenue
Walsall Council,http://opendatacommunities.org/id/metropolitan-district-council/walsall,WC116-376,31/05/2020,Adult Social Care,ADVANCE HEALTH CARE (UK) LTD,22/05/2020,431.76,73507-DOMICILIARY CARE,PHYSICAL SUPPORT,Third Party Payments,Revenue
Walsall Council,http://opendatacommunities.org/id/metropolitan-district-council/walsall,WC116-377,31/05/2020,Adult Social Care,ADVANCE HEALTH CARE (UK) LTD,22/05/2020,431.76,73507-DOMICILIARY CARE,PHYSICAL SUPPORT,Third Party Payments,Revenue
Walsall Council,http://opendatacommunities.org/id/metropolitan-district-council/walsall,WC116-378,31/05/2020,Adult Social Care,ADVANCE HEALTH CARE (UK) LTD,22/05/2020,431.76,73507-DOMICILIARY CARE,PHYSICAL SUPPORT,Third Party Payments,Revenue
Walsall Council,http://opendatacommunities.org/id/metropolitan-district-council/walsall,WC116-379,31/05/2020,Adult Social Care,ADVANCE HEALTH CARE (UK) LTD,22/05/2020,431.76,73507-DOMICILIARY CARE,PHYSICAL SUPPORT,Third Party Payments,Revenue
Walsall Council,http://opendatacommunities.org/id/metropolitan-district-council/walsall,WC116-380,31/05/2020,Adult Social Care,ADVANCE HEALTH CARE (UK) LTD,22/05/2020,431.76,73507-DOMICILIARY CARE,SOCIAL SUPPORT,Third Party Payments,Revenue
Walsall Council,http://opendatacommunities.org/id/metropolitan-district-council/walsall,WC116-381,31/05/2020,Adult Social Care,ADVANCE HEALTH CARE (UK) LTD,22/05/2020,431.76,73507-DOMICILIARY CARE,PHYSICAL SUPPORT,Third Party Payments,Revenue
Walsall Council,http://opendatacommunities.org/id/metropolitan-district-council/walsall,WC116-382,31/05/2020,Adult Social Care,ADVANCE HEALTH CARE (UK) LTD,22/05/2020,431.76,73507-DOMICILIARY CARE,PHYSICAL SUPPORT,Third Party Payments,Revenue
Walsall Council,http://opendatacommunities.org/id/metropolitan-district-council/walsall,WC116-383,31/05/2020,Adult Social Care,ADVANCE HEALTH CARE (UK) LTD,22/05/2020,431.76,73507-DOMICILIARY CARE,PHYSICAL SUPPORT,Third Party Payments,Revenue
Walsall Council,http://opendatacommunities.org/id/metropolitan-district-council/walsall,WC116-384,31/05/2020,Adult Social Care,ADVANCE HEALTH CARE (UK) LTD,22/05/2020,431.76,73507-DOMICILIARY CARE,PHYSICAL SUPPORT,Third Party Payments,Revenue
Walsall Council,http://opendatacommunities.org/id/metropolitan-district-council/walsall,WC116-385,31/05/2020,Adult Social Care,ADVANCE HEALTH CARE (UK) LTD,22/05/2020,431.76,73507-DOMICILIARY CARE,PHYSICAL SUPPORT,Third Party Payments,Revenue
Walsall Council,http://opendatacommunities.org/id/metropolitan-district-council/walsall,WC116-386,31/05/2020,Adult Social Care,ADVANCE HEALTH CARE (UK) LTD,11/05/2020,447.18,73507-DOMICILIARY CARE,PHYSICAL SUPPORT,Third Party Payments,Revenue
Walsall Council,http://opendatacommunities.org/id/metropolitan-district-council/walsall,WC116-387,31/05/2020,Adult Social Care,ADVANCE HEALTH CARE (UK) LTD,12/05/2020,447.18,73507-DOMICILIARY CARE,PHYSICAL SUPPORT,Third Party Payments,Revenue
Walsall Council,http://opendatacommunities.org/id/metropolitan-district-council/walsall,WC116-388,31/05/2020,Adult Social Care,ADVANCE HEALTH CARE (UK) LTD,22/05/2020,447.18,73507-DOMICILIARY CARE,PHYSICAL SUPPORT,Third Party Payments,Revenue
Walsall Council,http://opendatacommunities.org/id/metropolitan-district-council/walsall,WC116-389,31/05/2020,Adult Social Care,ADVANCE HEALTH CARE (UK) LTD,22/05/2020,447.18,73507-DOMICILIARY CARE,PHYSICAL SUPPORT,Third Party Payments,Revenue
Walsall Council,http://opendatacommunities.org/id/metropolitan-district-council/walsall,WC116-390,31/05/2020,Adult Social Care,ADVANCE HEALTH CARE (UK) LTD,11/05/2020,462.60,73507-DOMICILIARY CARE,PHYSICAL SUPPORT,Third Party Payments,Revenue
Walsall Council,http://opendatacommunities.org/id/metropolitan-district-council/walsall,WC116-391,31/05/2020,Adult Social Care,ADVANCE HEALTH CARE (UK) LTD,12/05/2020,462.60,73507-DOMICILIARY CARE,PHYSICAL SUPPORT,Third Party Payments,Revenue
Walsall Council,http://opendatacommunities.org/id/metropolitan-district-council/walsall,WC116-392,31/05/2020,Adult Social Care,ADVANCE HEALTH CARE (UK) LTD,22/05/2020,462.60,73507-DOMICILIARY CARE,PHYSICAL SUPPORT,Third Party Payments,Revenue
Walsall Council,http://opendatacommunities.org/id/metropolitan-district-council/walsall,WC116-393,31/05/2020,Adult Social Care,ADVANCE HEALTH CARE (UK) LTD,22/05/2020,462.60,73507-DOMICILIARY CARE,PHYSICAL SUPPORT,Third Party Payments,Revenue
Walsall Council,http://opendatacommunities.org/id/metropolitan-district-council/walsall,WC116-394,31/05/2020,Adult Social Care,ADVANCE HEALTH CARE (UK) LTD,11/05/2020,485.73,73507-DOMICILIARY CARE,PHYSICAL SUPPORT,Third Party Payments,Revenue
Walsall Council,http://opendatacommunities.org/id/metropolitan-district-council/walsall,WC116-395,31/05/2020,Adult Social Care,ADVANCE HEALTH CARE (UK) LTD,11/05/2020,485.73,73507-DOMICILIARY CARE,PHYSICAL SUPPORT,Third Party Payments,Revenue
Walsall Council,http://opendatacommunities.org/id/metropolitan-district-council/walsall,WC116-396,31/05/2020,Adult Social Care,ADVANCE HEALTH CARE (UK) LTD,11/05/2020,485.73,73507-DOMICILIARY CARE,PHYSICAL SUPPORT,Third Party Payments,Revenue
Walsall Council,http://opendatacommunities.org/id/metropolitan-district-council/walsall,WC116-397,31/05/2020,Adult Social Care,ADVANCE HEALTH CARE (UK) LTD,11/05/2020,485.73,73507-DOMICILIARY CARE,PHYSICAL SUPPORT,Third Party Payments,Revenue
Walsall Council,http://opendatacommunities.org/id/metropolitan-district-council/walsall,WC116-398,31/05/2020,Adult Social Care,ADVANCE HEALTH CARE (UK) LTD,11/05/2020,485.73,73507-DOMICILIARY CARE,PHYSICAL SUPPORT,Third Party Payments,Revenue
Walsall Council,http://opendatacommunities.org/id/metropolitan-district-council/walsall,WC116-399,31/05/2020,Adult Social Care,ADVANCE HEALTH CARE (UK) LTD,11/05/2020,485.73,73507-DOMICILIARY CARE,PHYSICAL SUPPORT,Third Party Payments,Revenue
Walsall Council,http://opendatacommunities.org/id/metropolitan-district-council/walsall,WC116-400,31/05/2020,Adult Social Care,ADVANCE HEALTH CARE (UK) LTD,11/05/2020,485.73,73507-DOMICILIARY CARE,PHYSICAL SUPPORT,Third Party Payments,Revenue
Walsall Council,http://opendatacommunities.org/id/metropolitan-district-council/walsall,WC116-401,31/05/2020,Adult Social Care,ADVANCE HEALTH CARE (UK) LTD,11/05/2020,485.73,73507-DOMICILIARY CARE,SOCIAL SUPPORT,Third Party Payments,Revenue
Walsall Council,http://opendatacommunities.org/id/metropolitan-district-council/walsall,WC116-402,31/05/2020,Adult Social Care,ADVANCE HEALTH CARE (UK) LTD,12/05/2020,485.73,73507-DOMICILIARY CARE,PHYSICAL SUPPORT,Third Party Payments,Revenue
Walsall Council,http://opendatacommunities.org/id/metropolitan-district-council/walsall,WC116-403,31/05/2020,Adult Social Care,ADVANCE HEALTH CARE (UK) LTD,12/05/2020,485.73,73507-DOMICILIARY CARE,PHYSICAL SUPPORT,Third Party Payments,Revenue
Walsall Council,http://opendatacommunities.org/id/metropolitan-district-council/walsall,WC116-404,31/05/2020,Adult Social Care,ADVANCE HEALTH CARE (UK) LTD,12/05/2020,485.73,73507-DOMICILIARY CARE,PHYSICAL SUPPORT,Third Party Payments,Revenue
Walsall Council,http://opendatacommunities.org/id/metropolitan-district-council/walsall,WC116-405,31/05/2020,Adult Social Care,ADVANCE HEALTH CARE (UK) LTD,12/05/2020,485.73,73507-DOMICILIARY CARE,SOCIAL SUPPORT,Third Party Payments,Revenue
Walsall Council,http://opendatacommunities.org/id/metropolitan-district-council/walsall,WC116-406,31/05/2020,Adult Social Care,ADVANCE HEALTH CARE (UK) LTD,12/05/2020,485.73,73507-DOMICILIARY CARE,PHYSICAL SUPPORT,Third Party Payments,Revenue
Walsall Council,http://opendatacommunities.org/id/metropolitan-district-council/walsall,WC116-407,31/05/2020,Adult Social Care,ADVANCE HEALTH CARE (UK) LTD,12/05/2020,485.73,73507-DOMICILIARY CARE,PHYSICAL SUPPORT,Third Party Payments,Revenue
Walsall Council,http://opendatacommunities.org/id/metropolitan-district-council/walsall,WC116-408,31/05/2020,Adult Social Care,ADVANCE HEALTH CARE (UK) LTD,12/05/2020,485.73,73507-DOMICILIARY CARE,PHYSICAL SUPPORT,Third Party Payments,Revenue
Walsall Council,http://opendatacommunities.org/id/metropolitan-district-council/walsall,WC116-409,31/05/2020,Adult Social Care,ADVANCE HEALTH CARE (UK) LTD,12/05/2020,485.73,73507-DOMICILIARY CARE,PHYSICAL SUPPORT,Third Party Payments,Revenue
Walsall Council,http://opendatacommunities.org/id/metropolitan-district-council/walsall,WC116-410,31/05/2020,Adult Social Care,ADVANCE HEALTH CARE (UK) LTD,12/05/2020,485.73,73507-DOMICILIARY CARE,SOCIAL SUPPORT,Third Party Payments,Revenue
Walsall Council,http://opendatacommunities.org/id/metropolitan-district-council/walsall,WC116-411,31/05/2020,Adult Social Care,ADVANCE HEALTH CARE (UK) LTD,22/05/2020,485.73,73507-DOMICILIARY CARE,PHYSICAL SUPPORT,Third Party Payments,Revenue
Walsall Council,http://opendatacommunities.org/id/metropolitan-district-council/walsall,WC116-412,31/05/2020,Adult Social Care,ADVANCE HEALTH CARE (UK) LTD,22/05/2020,485.73,73507-DOMICILIARY CARE,PHYSICAL SUPPORT,Third Party Payments,Revenue
Walsall Council,http://opendatacommunities.org/id/metropolitan-district-council/walsall,WC116-413,31/05/2020,Adult Social Care,ADVANCE HEALTH CARE (UK) LTD,22/05/2020,485.73,73507-DOMICILIARY CARE,PHYSICAL SUPPORT,Third Party Payments,Revenue
Walsall Council,http://opendatacommunities.org/id/metropolitan-district-council/walsall,WC116-414,31/05/2020,Adult Social Care,ADVANCE HEALTH CARE (UK) LTD,22/05/2020,485.73,73507-DOMICILIARY CARE,SOCIAL SUPPORT,Third Party Payments,Revenue
Walsall Council,http://opendatacommunities.org/id/metropolitan-district-council/walsall,WC116-415,31/05/2020,Adult Social Care,ADVANCE HEALTH CARE (UK) LTD,22/05/2020,485.73,73507-DOMICILIARY CARE,PHYSICAL SUPPORT,Third Party Payments,Revenue
Walsall Council,http://opendatacommunities.org/id/metropolitan-district-council/walsall,WC116-416,31/05/2020,Adult Social Care,ADVANCE HEALTH CARE (UK) LTD,22/05/2020,485.73,73507-DOMICILIARY CARE,PHYSICAL SUPPORT,Third Party Payments,Revenue
Walsall Council,http://opendatacommunities.org/id/metropolitan-district-council/walsall,WC116-417,31/05/2020,Adult Social Care,ADVANCE HEALTH CARE (UK) LTD,22/05/2020,485.73,73507-DOMICILIARY CARE,PHYSICAL SUPPORT,Third Party Payments,Revenue
Walsall Council,http://opendatacommunities.org/id/metropolitan-district-council/walsall,WC116-418,31/05/2020,Adult Social Care,ADVANCE HEALTH CARE (UK) LTD,22/05/2020,485.73,73507-DOMICILIARY CARE,PHYSICAL SUPPORT,Third Party Payments,Revenue
Walsall Council,http://opendatacommunities.org/id/metropolitan-district-council/walsall,WC116-419,31/05/2020,Adult Social Care,ADVANCE HEALTH CARE (UK) LTD,22/05/2020,485.73,73507-DOMICILIARY CARE,PHYSICAL SUPPORT,Third Party Payments,Revenue
Walsall Council,http://opendatacommunities.org/id/metropolitan-district-council/walsall,WC116-420,31/05/2020,Adult Social Care,ADVANCE HEALTH CARE (UK) LTD,22/05/2020,485.73,73507-DOMICILIARY CARE,PHYSICAL SUPPORT,Third Party Payments,Revenue
Walsall Council,http://opendatacommunities.org/id/metropolitan-district-council/walsall,WC116-421,31/05/2020,Adult Social Care,ADVANCE HEALTH CARE (UK) LTD,22/05/2020,485.73,73507-DOMICILIARY CARE,PHYSICAL SUPPORT,Third Party Payments,Revenue
Walsall Council,http://opendatacommunities.org/id/metropolitan-district-council/walsall,WC116-422,31/05/2020,Adult Social Care,ADVANCE HEALTH CARE (UK) LTD,22/05/2020,485.73,73507-DOMICILIARY CARE,PHYSICAL SUPPORT,Third Party Payments,Revenue
Walsall Council,http://opendatacommunities.org/id/metropolitan-district-council/walsall,WC116-423,31/05/2020,Adult Social Care,ADVANCE HEALTH CARE (UK) LTD,22/05/2020,485.73,73507-DOMICILIARY CARE,PHYSICAL SUPPORT,Third Party Payments,Revenue
Walsall Council,http://opendatacommunities.org/id/metropolitan-district-council/walsall,WC116-424,31/05/2020,Adult Social Care,ADVANCE HEALTH CARE (UK) LTD,22/05/2020,485.73,73507-DOMICILIARY CARE,PHYSICAL SUPPORT,Third Party Payments,Revenue
Walsall Council,http://opendatacommunities.org/id/metropolitan-district-council/walsall,WC116-425,31/05/2020,Adult Social Care,ADVANCE HEALTH CARE (UK) LTD,22/05/2020,485.73,73507-DOMICILIARY CARE,SOCIAL SUPPORT,Third Party Payments,Revenue
Walsall Council,http://opendatacommunities.org/id/metropolitan-district-council/walsall,WC116-426,31/05/2020,Adult Social Care,ADVANCE HEALTH CARE (UK) LTD,22/05/2020,485.73,73507-DOMICILIARY CARE,SOCIAL SUPPORT,Third Party Payments,Revenue
Walsall Council,http://opendatacommunities.org/id/metropolitan-district-council/walsall,WC116-427,31/05/2020,Adult Social Care,ADVANCE HEALTH CARE (UK) LTD,22/05/2020,485.73,73507-DOMICILIARY CARE,PHYSICAL SUPPORT,Third Party Payments,Revenue
Walsall Council,http://opendatacommunities.org/id/metropolitan-district-council/walsall,WC116-428,31/05/2020,Adult Social Care,ADVANCE HEALTH CARE (UK) LTD,22/05/2020,485.73,73507-DOMICILIARY CARE,PHYSICAL SUPPORT,Third Party Payments,Revenue
Walsall Council,http://opendatacommunities.org/id/metropolitan-district-council/walsall,WC116-429,31/05/2020,Adult Social Care,ADVANCE HEALTH CARE (UK) LTD,22/05/2020,485.73,73507-DOMICILIARY CARE,PHYSICAL SUPPORT,Third Party Payments,Revenue
Walsall Council,http://opendatacommunities.org/id/metropolitan-district-council/walsall,WC116-430,31/05/2020,Adult Social Care,ADVANCE HEALTH CARE (UK) LTD,11/05/2020,485.80,73507-DOMICILIARY CARE,PHYSICAL SUPPORT,Third Party Payments,Revenue
Walsall Council,http://opendatacommunities.org/id/metropolitan-district-council/walsall,WC116-431,31/05/2020,Adult Social Care,ADVANCE HEALTH CARE (UK) LTD,12/05/2020,485.80,73507-DOMICILIARY CARE,PHYSICAL SUPPORT,Third Party Payments,Revenue
Walsall Council,http://opendatacommunities.org/id/metropolitan-district-council/walsall,WC116-432,31/05/2020,Adult Social Care,ADVANCE HEALTH CARE (UK) LTD,22/05/2020,485.80,73507-DOMICILIARY CARE,PHYSICAL SUPPORT,Third Party Payments,Revenue
Walsall Council,http://opendatacommunities.org/id/metropolitan-district-council/walsall,WC116-433,31/05/2020,Adult Social Care,ADVANCE HEALTH CARE (UK) LTD,22/05/2020,485.80,73507-DOMICILIARY CARE,PHYSICAL SUPPORT,Third Party Payments,Revenue
Walsall Council,http://opendatacommunities.org/id/metropolitan-district-council/walsall,WC116-434,31/05/2020,Adult Social Care,ADVANCE HEALTH CARE (UK) LTD,01/05/2020,486.05,73025-PROFESSIONAL SERVICES-PRIV CONTRACTOR & OTHER AGENCIES,INTERMEDIATE CARE SERVICE,Third Party Payments,Revenue
Walsall Council,http://opendatacommunities.org/id/metropolitan-district-council/walsall,WC116-435,31/05/2020,Adult Social Care,ADVANCE HEALTH CARE (UK) LTD,01/05/2020,486.05,73025-PROFESSIONAL SERVICES-PRIV CONTRACTOR & OTHER AGENCIES,INTERMEDIATE CARE SERVICE,Third Party Payments,Revenue
Walsall Council,http://opendatacommunities.org/id/metropolitan-district-council/walsall,WC116-436,31/05/2020,Adult Social Care,ADVANCE HEALTH CARE (UK) LTD,01/05/2020,486.05,73025-PROFESSIONAL SERVICES-PRIV CONTRACTOR & OTHER AGENCIES,INTERMEDIATE CARE SERVICE,Third Party Payments,Revenue
Walsall Council,http://opendatacommunities.org/id/metropolitan-district-council/walsall,WC116-437,31/05/2020,Adult Social Care,ADVANCE HEALTH CARE (UK) LTD,01/05/2020,486.05,73025-PROFESSIONAL SERVICES-PRIV CONTRACTOR & OTHER AGENCIES,INTERMEDIATE CARE SERVICE,Third Party Payments,Revenue
Walsall Council,http://opendatacommunities.org/id/metropolitan-district-council/walsall,WC116-438,31/05/2020,Adult Social Care,ADVANCE HEALTH CARE (UK) LTD,04/05/2020,486.05,73025-PROFESSIONAL SERVICES-PRIV CONTRACTOR & OTHER AGENCIES,INTERMEDIATE CARE SERVICE,Third Party Payments,Revenue
Walsall Council,http://opendatacommunities.org/id/metropolitan-district-council/walsall,WC116-439,31/05/2020,Adult Social Care,ADVANCE HEALTH CARE (UK) LTD,04/05/2020,486.05,73025-PROFESSIONAL SERVICES-PRIV CONTRACTOR & OTHER AGENCIES,INTERMEDIATE CARE SERVICE,Third Party Payments,Revenue
Walsall Council,http://opendatacommunities.org/id/metropolitan-district-council/walsall,WC116-440,31/05/2020,Adult Social Care,ADVANCE HEALTH CARE (UK) LTD,11/05/2020,486.05,73025-PROFESSIONAL SERVICES-PRIV CONTRACTOR & OTHER AGENCIES,INTERMEDIATE CARE SERVICE,Third Party Payments,Revenue
Walsall Council,http://opendatacommunities.org/id/metropolitan-district-council/walsall,WC116-441,31/05/2020,Adult Social Care,ADVANCE HEALTH CARE (UK) LTD,11/05/2020,486.05,73025-PROFESSIONAL SERVICES-PRIV CONTRACTOR & OTHER AGENCIES,INTERMEDIATE CARE SERVICE,Third Party Payments,Revenue
Walsall Council,http://opendatacommunities.org/id/metropolitan-district-council/walsall,WC116-442,31/05/2020,Adult Social Care,ADVANCE HEALTH CARE (UK) LTD,11/05/2020,486.05,73025-PROFESSIONAL SERVICES-PRIV CONTRACTOR & OTHER AGENCIES,INTERMEDIATE CARE SERVICE,Third Party Payments,Revenue
Walsall Council,http://opendatacommunities.org/id/metropolitan-district-council/walsall,WC116-443,31/05/2020,Adult Social Care,ADVANCE HEALTH CARE (UK) LTD,12/05/2020,486.05,73025-PROFESSIONAL SERVICES-PRIV CONTRACTOR & OTHER AGENCIES,INTERMEDIATE CARE SERVICE,Third Party Payments,Revenue
Walsall Council,http://opendatacommunities.org/id/metropolitan-district-council/walsall,WC116-444,31/05/2020,Adult Social Care,ADVANCE HEALTH CARE (UK) LTD,14/05/2020,486.05,73025-PROFESSIONAL SERVICES-PRIV CONTRACTOR & OTHER AGENCIES,INTERMEDIATE CARE SERVICE,Third Party Payments,Revenue
Walsall Council,http://opendatacommunities.org/id/metropolitan-district-council/walsall,WC116-445,31/05/2020,Adult Social Care,ADVANCE HEALTH CARE (UK) LTD,14/05/2020,486.05,73025-PROFESSIONAL SERVICES-PRIV CONTRACTOR & OTHER AGENCIES,INTERMEDIATE CARE SERVICE,Third Party Payments,Revenue
Walsall Council,http://opendatacommunities.org/id/metropolitan-district-council/walsall,WC116-446,31/05/2020,Adult Social Care,ADVANCE HEALTH CARE (UK) LTD,14/05/2020,486.05,73025-PROFESSIONAL SERVICES-PRIV CONTRACTOR & OTHER AGENCIES,INTERMEDIATE CARE SERVICE,Third Party Payments,Revenue
Walsall Council,http://opendatacommunities.org/id/metropolitan-district-council/walsall,WC116-447,31/05/2020,Adult Social Care,ADVANCE HEALTH CARE (UK) LTD,14/05/2020,486.05,73025-PROFESSIONAL SERVICES-PRIV CONTRACTOR & OTHER AGENCIES,INTERMEDIATE CARE SERVICE,Third Party Payments,Revenue
Walsall Council,http://opendatacommunities.org/id/metropolitan-district-council/walsall,WC116-448,31/05/2020,Adult Social Care,ADVANCE HEALTH CARE (UK) LTD,14/05/2020,486.05,73025-PROFESSIONAL SERVICES-PRIV CONTRACTOR & OTHER AGENCIES,INTERMEDIATE CARE SERVICE,Third Party Payments,Revenue
Walsall Council,http://opendatacommunities.org/id/metropolitan-district-council/walsall,WC116-449,31/05/2020,Adult Social Care,ADVANCE HEALTH CARE (UK) LTD,20/05/2020,486.05,73025-PROFESSIONAL SERVICES-PRIV CONTRACTOR & OTHER AGENCIES,INTERMEDIATE CARE SERVICE,Third Party Payments,Revenue
Walsall Council,http://opendatacommunities.org/id/metropolitan-district-council/walsall,WC116-450,31/05/2020,Adult Social Care,ADVANCE HEALTH CARE (UK) LTD,28/05/2020,486.05,73025-PROFESSIONAL SERVICES-PRIV CONTRACTOR & OTHER AGENCIES,INTERMEDIATE CARE SERVICE,Third Party Payments,Revenue
Walsall Council,http://opendatacommunities.org/id/metropolitan-district-council/walsall,WC116-451,31/05/2020,Adult Social Care,ADVANCE HEALTH CARE (UK) LTD,28/05/2020,486.05,73025-PROFESSIONAL SERVICES-PRIV CONTRACTOR & OTHER AGENCIES,INTERMEDIATE CARE SERVICE,Third Party Payments,Revenue
Walsall Council,http://opendatacommunities.org/id/metropolitan-district-council/walsall,WC116-452,31/05/2020,Adult Social Care,ADVANCE HEALTH CARE (UK) LTD,28/05/2020,486.05,73025-PROFESSIONAL SERVICES-PRIV CONTRACTOR & OTHER AGENCIES,INTERMEDIATE CARE SERVICE,Third Party Payments,Revenue
Walsall Council,http://opendatacommunities.org/id/metropolitan-district-council/walsall,WC116-453,31/05/2020,Adult Social Care,ADVANCE HEALTH CARE (UK) LTD,28/05/2020,486.05,73025-PROFESSIONAL SERVICES-PRIV CONTRACTOR & OTHER AGENCIES,INTERMEDIATE CARE SERVICE,Third Party Payments,Revenue
Walsall Council,http://opendatacommunities.org/id/metropolitan-district-council/walsall,WC116-454,31/05/2020,Adult Social Care,ADVANCE HEALTH CARE (UK) LTD,28/05/2020,486.05,73025-PROFESSIONAL SERVICES-PRIV CONTRACTOR & OTHER AGENCIES,INTERMEDIATE CARE SERVICE,Third Party Payments,Revenue
Walsall Council,http://opendatacommunities.org/id/metropolitan-district-council/walsall,WC116-455,31/05/2020,Adult Social Care,ADVANCE HEALTH CARE (UK) LTD,28/05/2020,486.05,73025-PROFESSIONAL SERVICES-PRIV CONTRACTOR & OTHER AGENCIES,INTERMEDIATE CARE SERVICE,Third Party Payments,Revenue
Walsall Council,http://opendatacommunities.org/id/metropolitan-district-council/walsall,WC116-456,31/05/2020,Adult Social Care,ADVANCE HEALTH CARE (UK) LTD,18/05/2020,493.44,73507-DOMICILIARY CARE,LEARNING DISABILITY SUPPORT,Third Party Payments,Revenue
Walsall Council,http://opendatacommunities.org/id/metropolitan-district-council/walsall,WC116-457,31/05/2020,Adult Social Care,ADVANCE HEALTH CARE (UK) LTD,11/05/2020,501.15,73507-DOMICILIARY CARE,PHYSICAL SUPPORT,Third Party Payments,Revenue
Walsall Council,http://opendatacommunities.org/id/metropolitan-district-council/walsall,WC116-458,31/05/2020,Adult Social Care,ADVANCE HEALTH CARE (UK) LTD,11/05/2020,501.15,73507-DOMICILIARY CARE,PHYSICAL SUPPORT,Third Party Payments,Revenue
Walsall Council,http://opendatacommunities.org/id/metropolitan-district-council/walsall,WC116-459,31/05/2020,Adult Social Care,ADVANCE HEALTH CARE (UK) LTD,12/05/2020,501.15,73507-DOMICILIARY CARE,PHYSICAL SUPPORT,Third Party Payments,Revenue
Walsall Council,http://opendatacommunities.org/id/metropolitan-district-council/walsall,WC116-460,31/05/2020,Adult Social Care,ADVANCE HEALTH CARE (UK) LTD,12/05/2020,501.15,73507-DOMICILIARY CARE,PHYSICAL SUPPORT,Third Party Payments,Revenue
Walsall Council,http://opendatacommunities.org/id/metropolitan-district-council/walsall,WC116-461,31/05/2020,Adult Social Care,ADVANCE HEALTH CARE (UK) LTD,22/05/2020,501.15,73507-DOMICILIARY CARE,PHYSICAL SUPPORT,Third Party Payments,Revenue
Walsall Council,http://opendatacommunities.org/id/metropolitan-district-council/walsall,WC116-462,31/05/2020,Adult Social Care,ADVANCE HEALTH CARE (UK) LTD,22/05/2020,501.15,73507-DOMICILIARY CARE,PHYSICAL SUPPORT,Third Party Payments,Revenue
Walsall Council,http://opendatacommunities.org/id/metropolitan-district-council/walsall,WC116-463,31/05/2020,Adult Social Care,ADVANCE HEALTH CARE (UK) LTD,22/05/2020,501.15,73507-DOMICILIARY CARE,PHYSICAL SUPPORT,Third Party Payments,Revenue
Walsall Council,http://opendatacommunities.org/id/metropolitan-district-council/walsall,WC116-464,31/05/2020,Adult Social Care,ADVANCE HEALTH CARE (UK) LTD,22/05/2020,501.15,73507-DOMICILIARY CARE,PHYSICAL SUPPORT,Third Party Payments,Revenue
Walsall Council,http://opendatacommunities.org/id/metropolitan-district-council/walsall,WC116-465,31/05/2020,Adult Social Care,ADVANCE HEALTH CARE (UK) LTD,07/05/2020,516.91,73025-PROFESSIONAL SERVICES-PRIV CONTRACTOR & OTHER AGENCIES,INTERMEDIATE CARE SERVICE,Third Party Payments,Revenue
Walsall Council,http://opendatacommunities.org/id/metropolitan-district-council/walsall,WC116-466,31/05/2020,Adult Social Care,ADVANCE HEALTH CARE (UK) LTD,11/05/2020,524.28,73507-DOMICILIARY CARE,PHYSICAL SUPPORT,Third Party Payments,Revenue
Walsall Council,http://opendatacommunities.org/id/metropolitan-district-council/walsall,WC116-467,31/05/2020,Adult Social Care,ADVANCE HEALTH CARE (UK) LTD,12/05/2020,524.28,73507-DOMICILIARY CARE,PHYSICAL SUPPORT,Third Party Payments,Revenue
Walsall Council,http://opendatacommunities.org/id/metropolitan-district-council/walsall,WC116-468,31/05/2020,Adult Social Care,ADVANCE HEALTH CARE (UK) LTD,22/05/2020,524.28,73507-DOMICILIARY CARE,PHYSICAL SUPPORT,Third Party Payments,Revenue
Walsall Council,http://opendatacommunities.org/id/metropolitan-district-council/walsall,WC116-469,31/05/2020,Adult Social Care,ADVANCE HEALTH CARE (UK) LTD,22/05/2020,524.28,73507-DOMICILIARY CARE,PHYSICAL SUPPORT,Third Party Payments,Revenue
Walsall Council,http://opendatacommunities.org/id/metropolitan-district-council/walsall,WC116-470,31/05/2020,Adult Social Care,ADVANCE HEALTH CARE (UK) LTD,11/05/2020,539.70,73507-DOMICILIARY CARE,PHYSICAL SUPPORT,Third Party Payments,Revenue
Walsall Council,http://opendatacommunities.org/id/metropolitan-district-council/walsall,WC116-471,31/05/2020,Adult Social Care,ADVANCE HEALTH CARE (UK) LTD,11/05/2020,539.70,73507-DOMICILIARY CARE,PHYSICAL SUPPORT,Third Party Payments,Revenue
Walsall Council,http://opendatacommunities.org/id/metropolitan-district-council/walsall,WC116-472,31/05/2020,Adult Social Care,ADVANCE HEALTH CARE (UK) LTD,12/05/2020,539.70,73507-DOMICILIARY CARE,PHYSICAL SUPPORT,Third Party Payments,Revenue
Walsall Council,http://opendatacommunities.org/id/metropolitan-district-council/walsall,WC116-473,31/05/2020,Adult Social Care,ADVANCE HEALTH CARE (UK) LTD,12/05/2020,539.70,73507-DOMICILIARY CARE,PHYSICAL SUPPORT,Third Party Payments,Revenue
Walsall Council,http://opendatacommunities.org/id/metropolitan-district-council/walsall,WC116-474,31/05/2020,Adult Social Care,ADVANCE HEALTH CARE (UK) LTD,22/05/2020,539.70,73507-DOMICILIARY CARE,PHYSICAL SUPPORT,Third Party Payments,Revenue
Walsall Council,http://opendatacommunities.org/id/metropolitan-district-council/walsall,WC116-475,31/05/2020,Adult Social Care,ADVANCE HEALTH CARE (UK) LTD,22/05/2020,539.70,73507-DOMICILIARY CARE,PHYSICAL SUPPORT,Third Party Payments,Revenue
Walsall Council,http://opendatacommunities.org/id/metropolitan-district-council/walsall,WC116-476,31/05/2020,Adult Social Care,ADVANCE HEALTH CARE (UK) LTD,22/05/2020,539.70,73507-DOMICILIARY CARE,PHYSICAL SUPPORT,Third Party Payments,Revenue
Walsall Council,http://opendatacommunities.org/id/metropolitan-district-council/walsall,WC116-477,31/05/2020,Adult Social Care,ADVANCE HEALTH CARE (UK) LTD,22/05/2020,539.70,73507-DOMICILIARY CARE,PHYSICAL SUPPORT,Third Party Payments,Revenue
Walsall Council,http://opendatacommunities.org/id/metropolitan-district-council/walsall,WC116-478,31/05/2020,Adult Social Care,ADVANCE HEALTH CARE (UK) LTD,04/05/2020,555.48,73025-PROFESSIONAL SERVICES-PRIV CONTRACTOR & OTHER AGENCIES,INTERMEDIATE CARE SERVICE,Third Party Payments,Revenue
Walsall Council,http://opendatacommunities.org/id/metropolitan-district-council/walsall,WC116-479,31/05/2020,Adult Social Care,ADVANCE HEALTH CARE (UK) LTD,22/05/2020,573.11,73507-DOMICILIARY CARE,PHYSICAL SUPPORT,Third Party Payments,Revenue
Walsall Council,http://opendatacommunities.org/id/metropolitan-district-council/walsall,WC116-480,31/05/2020,Adult Social Care,ADVANCE HEALTH CARE (UK) LTD,11/05/2020,593.67,73507-DOMICILIARY CARE,PHYSICAL SUPPORT,Third Party Payments,Revenue
Walsall Council,http://opendatacommunities.org/id/metropolitan-district-council/walsall,WC116-481,31/05/2020,Adult Social Care,ADVANCE HEALTH CARE (UK) LTD,12/05/2020,593.67,73507-DOMICILIARY CARE,PHYSICAL SUPPORT,Third Party Payments,Revenue
Walsall Council,http://opendatacommunities.org/id/metropolitan-district-council/walsall,WC116-482,31/05/2020,Adult Social Care,ADVANCE HEALTH CARE (UK) LTD,22/05/2020,593.67,73507-DOMICILIARY CARE,PHYSICAL SUPPORT,Third Party Payments,Revenue
Walsall Council,http://opendatacommunities.org/id/metropolitan-district-council/walsall,WC116-483,31/05/2020,Adult Social Care,ADVANCE HEALTH CARE (UK) LTD,22/05/2020,593.67,73507-DOMICILIARY CARE,PHYSICAL SUPPORT,Third Party Payments,Revenue
Walsall Council,http://opendatacommunities.org/id/metropolitan-district-council/walsall,WC116-484,31/05/2020,Adult Social Care,ADVANCE HEALTH CARE (UK) LTD,11/05/2020,593.88,73507-DOMICILIARY CARE,PHYSICAL SUPPORT,Third Party Payments,Revenue
Walsall Council,http://opendatacommunities.org/id/metropolitan-district-council/walsall,WC116-485,31/05/2020,Adult Social Care,ADVANCE HEALTH CARE (UK) LTD,12/05/2020,593.88,73507-DOMICILIARY CARE,PHYSICAL SUPPORT,Third Party Payments,Revenue
Walsall Council,http://opendatacommunities.org/id/metropolitan-district-council/walsall,WC116-486,31/05/2020,Adult Social Care,ADVANCE HEALTH CARE (UK) LTD,22/05/2020,593.88,73507-DOMICILIARY CARE,PHYSICAL SUPPORT,Third Party Payments,Revenue
Walsall Council,http://opendatacommunities.org/id/metropolitan-district-council/walsall,WC116-487,31/05/2020,Adult Social Care,ADVANCE HEALTH CARE (UK) LTD,22/05/2020,593.88,73507-DOMICILIARY CARE,PHYSICAL SUPPORT,Third Party Payments,Revenue
Walsall Council,http://opendatacommunities.org/id/metropolitan-district-council/walsall,WC116-488,31/05/2020,Adult Social Care,ADVANCE HEALTH CARE (UK) LTD,11/05/2020,629.72,73507-DOMICILIARY CARE,PHYSICAL SUPPORT,Third Party Payments,Revenue
Walsall Council,http://opendatacommunities.org/id/metropolitan-district-council/walsall,WC116-489,31/05/2020,Adult Social Care,ADVANCE HEALTH CARE (UK) LTD,12/05/2020,629.72,73507-DOMICILIARY CARE,PHYSICAL SUPPORT,Third Party Payments,Revenue
Walsall Council,http://opendatacommunities.org/id/metropolitan-district-council/walsall,WC116-490,31/05/2020,Adult Social Care,ADVANCE HEALTH CARE (UK) LTD,22/05/2020,629.72,73507-DOMICILIARY CARE,PHYSICAL SUPPORT,Third Party Payments,Revenue
Walsall Council,http://opendatacommunities.org/id/metropolitan-district-council/walsall,WC116-491,31/05/2020,Adult Social Care,ADVANCE HEALTH CARE (UK) LTD,22/05/2020,629.72,73507-DOMICILIARY CARE,PHYSICAL SUPPORT,Third Party Payments,Revenue
Walsall Council,http://opendatacommunities.org/id/metropolitan-district-council/walsall,WC116-492,31/05/2020,Adult Social Care,ADVANCE HEALTH CARE (UK) LTD,11/05/2020,647.64,73507-DOMICILIARY CARE,PHYSICAL SUPPORT,Third Party Payments,Revenue
Walsall Council,http://opendatacommunities.org/id/metropolitan-district-council/walsall,WC116-493,31/05/2020,Adult Social Care,ADVANCE HEALTH CARE (UK) LTD,11/05/2020,647.64,73507-DOMICILIARY CARE,PHYSICAL SUPPORT,Third Party Payments,Revenue
Walsall Council,http://opendatacommunities.org/id/metropolitan-district-council/walsall,WC116-494,31/05/2020,Adult Social Care,ADVANCE HEALTH CARE (UK) LTD,12/05/2020,647.64,73507-DOMICILIARY CARE,PHYSICAL SUPPORT,Third Party Payments,Revenue
Walsall Council,http://opendatacommunities.org/id/metropolitan-district-council/walsall,WC116-495,31/05/2020,Adult Social Care,ADVANCE HEALTH CARE (UK) LTD,12/05/2020,647.64,73507-DOMICILIARY CARE,PHYSICAL SUPPORT,Third Party Payments,Revenue
Walsall Council,http://opendatacommunities.org/id/metropolitan-district-council/walsall,WC116-496,31/05/2020,Adult Social Care,ADVANCE HEALTH CARE (UK) LTD,22/05/2020,647.64,73507-DOMICILIARY CARE,PHYSICAL SUPPORT,Third Party Payments,Revenue
Walsall Council,http://opendatacommunities.org/id/metropolitan-district-council/walsall,WC116-497,31/05/2020,Adult Social Care,ADVANCE HEALTH CARE (UK) LTD,22/05/2020,647.64,73507-DOMICILIARY CARE,PHYSICAL SUPPORT,Third Party Payments,Revenue
Walsall Council,http://opendatacommunities.org/id/metropolitan-district-council/walsall,WC116-498,31/05/2020,Adult Social Care,ADVANCE HEALTH CARE (UK) LTD,11/05/2020,693.90,73507-DOMICILIARY CARE,PHYSICAL SUPPORT,Third Party Payments,Revenue
Walsall Council,http://opendatacommunities.org/id/metropolitan-district-council/walsall,WC116-499,31/05/2020,Adult Social Care,ADVANCE HEALTH CARE (UK) LTD,12/05/2020,693.90,73507-DOMICILIARY CARE,PHYSICAL SUPPORT,Third Party Payments,Revenue
Walsall Council,http://opendatacommunities.org/id/metropolitan-district-council/walsall,WC116-500,31/05/2020,Adult Social Care,ADVANCE HEALTH CARE (UK) LTD,22/05/2020,693.90,73507-DOMICILIARY CARE,PHYSICAL SUPPORT,Third Party Payments,Revenue
Walsall Council,http://opendatacommunities.org/id/metropolitan-district-council/walsall,WC116-501,31/05/2020,Adult Social Care,ADVANCE HEALTH CARE (UK) LTD,22/05/2020,693.90,73507-DOMICILIARY CARE,PHYSICAL SUPPORT,Third Party Payments,Revenue
Walsall Council,http://opendatacommunities.org/id/metropolitan-district-council/walsall,WC116-502,31/05/2020,Adult Social Care,ADVANCE HEALTH CARE (UK) LTD,11/05/2020,701.61,73507-DOMICILIARY CARE,PHYSICAL SUPPORT,Third Party Payments,Revenue
Walsall Council,http://opendatacommunities.org/id/metropolitan-district-council/walsall,WC116-503,31/05/2020,Adult Social Care,ADVANCE HEALTH CARE (UK) LTD,12/05/2020,701.61,73507-DOMICILIARY CARE,PHYSICAL SUPPORT,Third Party Payments,Revenue
Walsall Council,http://opendatacommunities.org/id/metropolitan-district-council/walsall,WC116-504,31/05/2020,Adult Social Care,ADVANCE HEALTH CARE (UK) LTD,22/05/2020,701.61,73507-DOMICILIARY CARE,PHYSICAL SUPPORT,Third Party Payments,Revenue
Walsall Council,http://opendatacommunities.org/id/metropolitan-district-council/walsall,WC116-505,31/05/2020,Adult Social Care,ADVANCE HEALTH CARE (UK) LTD,22/05/2020,701.61,73507-DOMICILIARY CARE,PHYSICAL SUPPORT,Third Party Payments,Revenue
Walsall Council,http://opendatacommunities.org/id/metropolitan-district-council/walsall,WC116-506,31/05/2020,Adult Social Care,ADVANCE HEALTH CARE (UK) LTD,11/05/2020,824.97,73507-DOMICILIARY CARE,PHYSICAL SUPPORT,Third Party Payments,Revenue
Walsall Council,http://opendatacommunities.org/id/metropolitan-district-council/walsall,WC116-507,31/05/2020,Adult Social Care,ADVANCE HEALTH CARE (UK) LTD,12/05/2020,824.97,73507-DOMICILIARY CARE,PHYSICAL SUPPORT,Third Party Payments,Revenue
Walsall Council,http://opendatacommunities.org/id/metropolitan-district-council/walsall,WC116-508,31/05/2020,Adult Social Care,ADVANCE HEALTH CARE (UK) LTD,22/05/2020,824.97,73507-DOMICILIARY CARE,PHYSICAL SUPPORT,Third Party Payments,Revenue
Walsall Council,http://opendatacommunities.org/id/metropolitan-district-council/walsall,WC116-509,31/05/2020,Adult Social Care,ADVANCE HEALTH CARE (UK) LTD,22/05/2020,824.97,73507-DOMICILIARY CARE,PHYSICAL SUPPORT,Third Party Payments,Revenue
Walsall Council,http://opendatacommunities.org/id/metropolitan-district-council/walsall,WC116-510,31/05/2020,Adult Social Care,ADVANCE HEALTH CARE (UK) LTD,11/05/2020,863.52,73507-DOMICILIARY CARE,SOCIAL SUPPORT,Third Party Payments,Revenue
Walsall Council,http://opendatacommunities.org/id/metropolitan-district-council/walsall,WC116-511,31/05/2020,Adult Social Care,ADVANCE HEALTH CARE (UK) LTD,12/05/2020,863.52,73507-DOMICILIARY CARE,SOCIAL SUPPORT,Third Party Payments,Revenue
Walsall Council,http://opendatacommunities.org/id/metropolitan-district-council/walsall,WC116-512,31/05/2020,Adult Social Care,ADVANCE HEALTH CARE (UK) LTD,22/05/2020,863.52,73507-DOMICILIARY CARE,SOCIAL SUPPORT,Third Party Payments,Revenue
Walsall Council,http://opendatacommunities.org/id/metropolitan-district-council/walsall,WC116-513,31/05/2020,Adult Social Care,ADVANCE HEALTH CARE (UK) LTD,22/05/2020,863.52,73507-DOMICILIARY CARE,SOCIAL SUPPORT,Third Party Payments,Revenue
Walsall Council,http://opendatacommunities.org/id/metropolitan-district-council/walsall,WC116-514,31/05/2020,Adult Social Care,ADVANCE HEALTH CARE (UK) LTD,05/05/2020,950.90,73507-DOMICILIARY CARE,PHYSICAL SUPPORT,Third Party Payments,Revenue
Walsall Council,http://opendatacommunities.org/id/metropolitan-district-council/walsall,WC116-515,31/05/2020,Adult Social Care,ADVANCE HEALTH CARE (UK) LTD,22/05/2020,971.46,73507-DOMICILIARY CARE,SOCIAL SUPPORT,Third Party Payments,Revenue
Walsall Council,http://opendatacommunities.org/id/metropolitan-district-council/walsall,WC116-516,31/05/2020,Adult Social Care,ADVANCE HEALTH CARE (UK) LTD,05/05/2020,"1,053.70",73507-DOMICILIARY CARE,PHYSICAL SUPPORT,Third Party Payments,Revenue
Walsall Council,http://opendatacommunities.org/id/metropolitan-district-council/walsall,WC116-517,31/05/2020,Adult Social Care,ADVANCE HEALTH CARE (UK) LTD,18/05/2020,"1,290.14",73507-DOMICILIARY CARE,PHYSICAL SUPPORT,Third Party Payments,Revenue
Walsall Council,http://opendatacommunities.org/id/metropolitan-district-council/walsall,WC116-518,31/05/2020,Adult Social Care,ADVANCE HEALTH CARE (UK) LTD,05/05/2020,"1,295.28",73507-DOMICILIARY CARE,LEARNING DISABILITY SUPPORT,Third Party Payments,Revenue
Walsall Council,http://opendatacommunities.org/id/metropolitan-district-council/walsall,WC116-519,31/05/2020,Adult Social Care,ADVANCE HEALTH CARE (UK) LTD,05/05/2020,"3,225.35",73507-DOMICILIARY CARE,PHYSICAL SUPPORT,Third Party Payments,Revenue
Walsall Council,http://opendatacommunities.org/id/metropolitan-district-council/walsall,WC116-520,31/05/2020,Adult Social Care,ADVANCE HEALTH CARE (UK) LTD,04/05/2020,"16,949.20",73507-DOMICILIARY CARE,PHYSICAL SUPPORT,Third Party Payments,Revenue
Walsall Council,http://opendatacommunities.org/id/metropolitan-district-council/walsall,WC116-521,31/05/2020,Childrens,ADVANCED CONTRACTS (MIDLANDS) LTD,21/05/2020,"15,340.00",01006-SITE WORKS MAIN CONTRACTORS,CFR 1346 SUNSHINE INF & NURSERY EXPANSION,Capital,Capital
Walsall Council,http://opendatacommunities.org/id/metropolitan-district-council/walsall,WC116-522,31/05/2020,Adult Social Care,ADVINIA CARE HOMES LTD - HAMMERWICH HALL CARE HOME,07/05/2020,"1,957.52",73500-RESIDENTIAL,PHYSICAL SUPPORT,Third Party Payments,Revenue
Walsall Council,http://opendatacommunities.org/id/metropolitan-district-council/walsall,WC116-523,31/05/2020,Adult Social Care,ADVINIA CARE HOMES LTD - HAMMERWICH HALL CARE HOME,07/05/2020,"2,200.07",73501-RESIDENTIAL EMI,SOCIAL SUPPORT,Third Party Payments,Revenue
Walsall Council,http://opendatacommunities.org/id/metropolitan-district-council/walsall,WC116-524,31/05/2020,Economy & Environment,AEBI SCHMIDT UK LIMITED,20/05/2020,329.08,60500-GENERAL MATERIALS,FLEET,Supplies & Services,Revenue
Walsall Council,http://opendatacommunities.org/id/metropolitan-district-council/walsall,WC116-525,31/05/2020,Economy & Environment,AEBI SCHMIDT UK LIMITED,27/05/2020,"1,478.23",60500-GENERAL MATERIALS,FLEET,Supplies & Services,Revenue
Walsall Council,http://opendatacommunities.org/id/metropolitan-district-council/walsall,WC116-526,31/05/2020,Adult Social Care,REDACTED,01/05/2020,"2,455.56",73506-DIRECT PAYMENT,LEARNING DISABILITY SUPPORT,Third Party Payments,Revenue
Walsall Council,http://opendatacommunities.org/id/metropolitan-district-council/walsall,WC116-527,31/05/2020,Adult Social Care,ALDERGROVE MANOR LTD,07/05/2020,"2,200.07",73501-RESIDENTIAL EMI,MENTAL HEALTH SUPPORT,Third Party Payments,Revenue
Walsall Council,http://opendatacommunities.org/id/metropolitan-district-council/walsall,WC116-528,31/05/2020,Adult Social Care,ALDERGROVE MANOR LTD,07/05/2020,"2,200.07",73501-RESIDENTIAL EMI,PHYSICAL SUPPORT,Third Party Payments,Revenue
Walsall Council,http://opendatacommunities.org/id/metropolitan-district-council/walsall,WC116-529,31/05/2020,Adult Social Care,ALDERGROVE MANOR LTD,07/05/2020,"2,314.91",73502-NURSING,PHYSICAL SUPPORT,Third Party Payments,Revenue
Walsall Council,http://opendatacommunities.org/id/metropolitan-district-council/walsall,WC116-530,31/05/2020,Childrens,ALDRIDGE & BARONS LIMITED,22/05/2020,320.24,52000-WITH DRIVER-HIRE OF VEHICLES,HOME TO SCHOOL TRANSPORT,Transport,Revenue
Walsall Council,http://opendatacommunities.org/id/metropolitan-district-council/walsall,WC116-531,31/05/2020,Childrens,ALDRIDGE & BARONS LIMITED,22/05/2020,493.64,52000-WITH DRIVER-HIRE OF VEHICLES,HOME TO SCHOOL TRANSPORT,Transport,Revenue
Walsall Council,http://opendatacommunities.org/id/metropolitan-district-council/walsall,WC116-532,31/05/2020,Childrens,ALDRIDGE & BARONS LIMITED,22/05/2020,624.96,52000-WITH DRIVER-HIRE OF VEHICLES,HOME TO SCHOOL TRANSPORT,Transport,Revenue
Walsall Council,http://opendatacommunities.org/id/metropolitan-district-council/walsall,WC116-533,31/05/2020,Childrens,ALDRIDGE & BARONS LIMITED,22/05/2020,672.00,52000-WITH DRIVER-HIRE OF VEHICLES,HOME TO SCHOOL TRANSPORT,Transport,Revenue
Walsall Council,http://opendatacommunities.org/id/metropolitan-district-council/walsall,WC116-534,31/05/2020,Childrens,ALDRIDGE & BARONS LIMITED,22/05/2020,696.32,52000-WITH DRIVER-HIRE OF VEHICLES,HOME TO SCHOOL TRANSPORT,Transport,Revenue
Walsall Council,http://opendatacommunities.org/id/metropolitan-district-council/walsall,WC116-535,31/05/2020,Childrens,ALDRIDGE & BARONS LIMITED,22/05/2020,870.24,52000-WITH DRIVER-HIRE OF VEHICLES,HOME TO SCHOOL TRANSPORT,Transport,Revenue
Walsall Council,http://opendatacommunities.org/id/metropolitan-district-council/walsall,WC116-536,31/05/2020,Childrens,ALDRIDGE & BARONS LIMITED,22/05/2020,887.04,52000-WITH DRIVER-HIRE OF VEHICLES,HOME TO SCHOOL TRANSPORT,Transport,Revenue
Walsall Council,http://opendatacommunities.org/id/metropolitan-district-council/walsall,WC116-537,31/05/2020,Childrens,ALDRIDGE & BARONS LIMITED,22/05/2020,896.00,52000-WITH DRIVER-HIRE OF VEHICLES,HOME TO SCHOOL TRANSPORT,Transport,Revenue
Walsall Council,http://opendatacommunities.org/id/metropolitan-district-council/walsall,WC116-538,31/05/2020,Childrens,ALDRIDGE & BARONS LIMITED,22/05/2020,896.00,52000-WITH DRIVER-HIRE OF VEHICLES,HOME TO SCHOOL TRANSPORT,Transport,Revenue
Walsall Council,http://opendatacommunities.org/id/metropolitan-district-council/walsall,WC116-539,31/05/2020,Childrens,ALDRIDGE & BARONS LIMITED,22/05/2020,896.00,52000-WITH DRIVER-HIRE OF VEHICLES,HOME TO SCHOOL TRANSPORT,Transport,Revenue
Walsall Council,http://opendatacommunities.org/id/metropolitan-district-council/walsall,WC116-540,31/05/2020,Childrens,ALDRIDGE & BARONS LIMITED,22/05/2020,896.00,52000-WITH DRIVER-HIRE OF VEHICLES,HOME TO SCHOOL TRANSPORT,Transport,Revenue
Walsall Council,http://opendatacommunities.org/id/metropolitan-district-council/walsall,WC116-541,31/05/2020,Childrens,ALDRIDGE & BARONS LIMITED,22/05/2020,963.20,52000-WITH DRIVER-HIRE OF VEHICLES,HOME TO SCHOOL TRANSPORT,Transport,Revenue
Walsall Council,http://opendatacommunities.org/id/metropolitan-district-council/walsall,WC116-542,31/05/2020,Childrens,ALDRIDGE & BARONS LIMITED,22/05/2020,984.56,52000-WITH DRIVER-HIRE OF VEHICLES,HOME TO SCHOOL TRANSPORT,Transport,Revenue
Walsall Council,http://opendatacommunities.org/id/metropolitan-district-council/walsall,WC116-543,31/05/2020,Childrens,ALDRIDGE & BARONS LIMITED,22/05/2020,985.60,52000-WITH DRIVER-HIRE OF VEHICLES,HOME TO SCHOOL TRANSPORT,Transport,Revenue
Walsall Council,http://opendatacommunities.org/id/metropolitan-district-council/walsall,WC116-544,31/05/2020,Childrens,ALDRIDGE & BARONS LIMITED,22/05/2020,991.62,52000-WITH DRIVER-HIRE OF VEHICLES,HOME TO SCHOOL TRANSPORT,Transport,Revenue
Walsall Council,http://opendatacommunities.org/id/metropolitan-district-council/walsall,WC116-545,31/05/2020,Childrens,ALDRIDGE & BARONS LIMITED,22/05/2020,996.80,52000-WITH DRIVER-HIRE OF VEHICLES,HOME TO SCHOOL TRANSPORT,Transport,Revenue
Walsall Council,http://opendatacommunities.org/id/metropolitan-district-council/walsall,WC116-546,31/05/2020,Childrens,ALDRIDGE & BARONS LIMITED,22/05/2020,997.92,52000-WITH DRIVER-HIRE OF VEHICLES,HOME TO SCHOOL TRANSPORT,Transport,Revenue
Walsall Council,http://opendatacommunities.org/id/metropolitan-district-council/walsall,WC116-547,31/05/2020,Childrens,ALDRIDGE & BARONS LIMITED,22/05/2020,"1,000.16",52000-WITH DRIVER-HIRE OF VEHICLES,HOME TO SCHOOL TRANSPORT,Transport,Revenue
Walsall Council,http://opendatacommunities.org/id/metropolitan-district-council/walsall,WC116-548,31/05/2020,Childrens,ALDRIDGE & BARONS LIMITED,22/05/2020,"1,052.80",52000-WITH DRIVER-HIRE OF VEHICLES,HOME TO SCHOOL TRANSPORT,Transport,Revenue
Walsall Council,http://opendatacommunities.org/id/metropolitan-district-council/walsall,WC116-549,31/05/2020,Childrens,ALDRIDGE & BARONS LIMITED,22/05/2020,"1,055.60",52000-WITH DRIVER-HIRE OF VEHICLES,HOME TO SCHOOL TRANSPORT,Transport,Revenue
Walsall Council,http://opendatacommunities.org/id/metropolitan-district-council/walsall,WC116-550,31/05/2020,Childrens,ALDRIDGE & BARONS LIMITED,22/05/2020,"1,088.64",52000-WITH DRIVER-HIRE OF VEHICLES,HOME TO SCHOOL TRANSPORT,Transport,Revenue
Walsall Council,http://opendatacommunities.org/id/metropolitan-district-council/walsall,WC116-551,31/05/2020,Childrens,ALDRIDGE & BARONS LIMITED,22/05/2020,"1,113.28",52000-WITH DRIVER-HIRE OF VEHICLES,HOME TO SCHOOL TRANSPORT,Transport,Revenue
Walsall Council,http://opendatacommunities.org/id/metropolitan-district-council/walsall,WC116-552,31/05/2020,Childrens,ALDRIDGE & BARONS LIMITED,22/05/2020,"1,164.80",52000-WITH DRIVER-HIRE OF VEHICLES,HOME TO SCHOOL TRANSPORT,Transport,Revenue
Walsall Council,http://opendatacommunities.org/id/metropolitan-district-council/walsall,WC116-553,31/05/2020,Childrens,ALDRIDGE & BARONS LIMITED,22/05/2020,"1,183.84",52000-WITH DRIVER-HIRE OF VEHICLES,HOME TO SCHOOL TRANSPORT,Transport,Revenue
Walsall Council,http://opendatacommunities.org/id/metropolitan-district-council/walsall,WC116-554,31/05/2020,Childrens,ALDRIDGE & BARONS LIMITED,22/05/2020,"1,221.22",52000-WITH DRIVER-HIRE OF VEHICLES,HOME TO SCHOOL TRANSPORT,Transport,Revenue
Walsall Council,http://opendatacommunities.org/id/metropolitan-district-council/walsall,WC116-555,31/05/2020,Childrens,ALDRIDGE & BARONS LIMITED,22/05/2020,"1,288.00",52000-WITH DRIVER-HIRE OF VEHICLES,HOME TO SCHOOL TRANSPORT,Transport,Revenue
Walsall Council,http://opendatacommunities.org/id/metropolitan-district-council/walsall,WC116-556,31/05/2020,Childrens,ALDRIDGE & BARONS LIMITED,22/05/2020,"1,332.80",52000-WITH DRIVER-HIRE OF VEHICLES,HOME TO SCHOOL TRANSPORT,Transport,Revenue
Walsall Council,http://opendatacommunities.org/id/metropolitan-district-council/walsall,WC116-557,31/05/2020,Childrens,ALDRIDGE & BARONS LIMITED,22/05/2020,"1,340.64",52000-WITH DRIVER-HIRE OF VEHICLES,HOME TO SCHOOL TRANSPORT,Transport,Revenue
Walsall Council,http://opendatacommunities.org/id/metropolitan-district-council/walsall,WC116-558,31/05/2020,Childrens,ALDRIDGE & BARONS LIMITED,22/05/2020,"1,415.68",52000-WITH DRIVER-HIRE OF VEHICLES,HOME TO SCHOOL TRANSPORT,Transport,Revenue
Walsall Council,http://opendatacommunities.org/id/metropolitan-district-council/walsall,WC116-559,31/05/2020,Resources and Transformation,ALDRIDGE CENTRAL COMM ASSOC,01/05/2020,"1,250.00",66500-GRANTS TO OTHER ORGS,COMMUNITY DEVELOPMENT ADDITIONAL PAYMENTS,Third Party Payments,Revenue
Walsall Council,http://opendatacommunities.org/id/metropolitan-district-council/walsall,WC116-560,31/05/2020,Resources and Transformation,ALDRIDGE CENTRAL COMM ASSOC,04/05/2020,"1,250.00",66500-GRANTS TO OTHER ORGS,COMMUNITY DEVELOPMENT ADDITIONAL PAYMENTS,Third Party Payments,Revenue
Walsall Council,http://opendatacommunities.org/id/metropolitan-district-council/walsall,WC116-561,31/05/2020,Adult Social Care,REDACTED,01/05/2020,"1,480.32",73506-DIRECT PAYMENT,PHYSICAL SUPPORT,Third Party Payments,Revenue
Walsall Council,http://opendatacommunities.org/id/metropolitan-district-council/walsall,WC116-562,31/05/2020,Adult Social Care,ALEXANDRA HOUSE CARE SERVICES LTD T/A STONEBRIDGE NURSING HOME,07/05/2020,"7,305.67",73500-RESIDENTIAL,LEARNING DISABILITY SUPPORT,Third Party Payments,Revenue
Walsall Council,http://opendatacommunities.org/id/metropolitan-district-council/walsall,WC116-563,31/05/2020,Adult Social Care,REDACTED,01/05/2020,"1,943.20",73506-DIRECT PAYMENT,PHYSICAL SUPPORT,Third Party Payments,Revenue
Walsall Council,http://opendatacommunities.org/id/metropolitan-district-council/walsall,WC116-564,31/05/2020,Adult Social Care,REDACTED,01/05/2020,"1,879.46",73506-DIRECT PAYMENT,PHYSICAL SUPPORT,Third Party Payments,Revenue
Walsall Council,http://opendatacommunities.org/id/metropolitan-district-council/walsall,WC116-565,31/05/2020,Adult Social Care,REDACTED,01/05/2020,"11,158.88",73506-DIRECT PAYMENT,LEARNING DISABILITY SUPPORT,Third Party Payments,Revenue
Walsall Council,http://opendatacommunities.org/id/metropolitan-district-council/walsall,WC116-566,31/05/2020,Adult Social Care,REDACTED,05/05/2020,"1,332.88",73510-SHARED LIVES,LEARNING DISABILITY SUPPORT,Third Party Payments,Revenue
Walsall Council,http://opendatacommunities.org/id/metropolitan-district-council/walsall,WC116-567,31/05/2020,Childrens,REDACTED,04/05/2020,312.24,74509-SPECIAL GUARDIANSHIP ORDERS,ADOPTION ALLOWANCES,Transfer Payments,Revenue
Walsall Council,http://opendatacommunities.org/id/metropolitan-district-council/walsall,WC116-568,31/05/2020,Economy & Environment,REDACTED,06/05/2020,800.00,63253-PAYMENT TO CONTRACTOR,GENERAL HEALTH PROTECTION,Third Party Payments,Revenue
Walsall Council,http://opendatacommunities.org/id/metropolitan-district-council/walsall,WC116-569,31/05/2020,Adult Social Care,REDACTED,01/05/2020,"2,043.56",73506-DIRECT PAYMENT,SOCIAL SUPPORT,Third Party Payments,Revenue
Walsall Council,http://opendatacommunities.org/id/metropolitan-district-council/walsall,WC116-570,31/05/2020,Adult Social Care,ALLIED PUBLICITY SERVICES (MANCHESTER) LIMITED T/A APS GROUP,07/05/2020,893.68,63000-PROFESSIONAL FEES AND SERVICES,BLUE BADGES,Supplies & Services,Revenue
Walsall Council,http://opendatacommunities.org/id/metropolitan-district-council/walsall,WC116-571,31/05/2020,Adult Social Care,ALLIED PUBLICITY SERVICES (MANCHESTER) LIMITED T/A APS GROUP,01/05/2020,"1,234.18",63000-PROFESSIONAL FEES AND SERVICES,BLUE BADGES,Supplies & Services,Revenue
Walsall Council,http://opendatacommunities.org/id/metropolitan-district-council/walsall,WC116-572,31/05/2020,Adult Social Care,ALMA COURT,07/05/2020,"5,691.20",73500-RESIDENTIAL,PHYSICAL SUPPORT,Third Party Payments,Revenue
Walsall Council,http://opendatacommunities.org/id/metropolitan-district-council/walsall,WC116-573,31/05/2020,Adult Social Care,ALMA COURT,07/05/2020,"6,168.50",73503-NURSING EMI,PHYSICAL SUPPORT,Third Party Payments,Revenue
Walsall Council,http://opendatacommunities.org/id/metropolitan-district-council/walsall,WC116-574,31/05/2020,Adult Social Care,ALMA COURT,07/05/2020,"6,504.23",73500-RESIDENTIAL,MENTAL HEALTH SUPPORT,Third Party Payments,Revenue
Walsall Council,http://opendatacommunities.org/id/metropolitan-district-council/walsall,WC116-575,31/05/2020,Adult Social Care,ALPHA HEALTH CARE LTD,07/05/2020,"-2,642.12",73501-RESIDENTIAL EMI,MENTAL HEALTH SUPPORT,Third Party Payments,Revenue
Walsall Council,http://opendatacommunities.org/id/metropolitan-district-council/walsall,WC116-576,31/05/2020,Adult Social Care,ALPHA HEALTH CARE LTD,07/05/2020,298.57,73503-NURSING EMI,PHYSICAL SUPPORT,Third Party Payments,Revenue
Walsall Council,http://opendatacommunities.org/id/metropolitan-district-council/walsall,WC116-577,31/05/2020,Adult Social Care,ALPHA HEALTH CARE LTD,15/05/2020,542.86,73025-PROFESSIONAL SERVICES-PRIV CONTRACTOR & OTHER AGENCIES,TRANSITIONAL CARE SUPPORT TEAM,Third Party Payments,Revenue
Walsall Council,http://opendatacommunities.org/id/metropolitan-district-council/walsall,WC116-578,31/05/2020,Adult Social Care,ALPHA HEALTH CARE LTD,07/05/2020,"1,380.52",73501-RESIDENTIAL EMI,PHYSICAL SUPPORT,Third Party Payments,Revenue
Walsall Council,http://opendatacommunities.org/id/metropolitan-district-council/walsall,WC116-579,31/05/2020,Adult Social Care,ALPHA HEALTH CARE LTD,07/05/2020,"1,957.52",73500-RESIDENTIAL,MENTAL HEALTH SUPPORT,Third Party Payments,Revenue
Walsall Council,http://opendatacommunities.org/id/metropolitan-district-council/walsall,WC116-580,31/05/2020,Adult Social Care,ALPHA HEALTH CARE LTD,07/05/2020,"2,105.95",73503-NURSING EMI,MENTAL HEALTH SUPPORT,Third Party Payments,Revenue
Walsall Council,http://opendatacommunities.org/id/metropolitan-district-council/walsall,WC116-581,31/05/2020,Adult Social Care,ALPHA HEALTH CARE LTD,07/05/2020,"2,314.91",73502-NURSING,PHYSICAL SUPPORT,Third Party Payments,Revenue
Walsall Council,http://opendatacommunities.org/id/metropolitan-district-council/walsall,WC116-582,31/05/2020,Adult Social Care,ALPHA HEALTH CARE LTD,07/05/2020,"2,483.55",73501-RESIDENTIAL EMI,SUPPORT WITH MEMORY & COGNITION,Third Party Payments,Revenue
Walsall Council,http://opendatacommunities.org/id/metropolitan-district-council/walsall,WC116-583,31/05/2020,Adult Social Care,ALPHA HEALTH CARE LTD,07/05/2020,"2,587.38",73503-NURSING EMI,PHYSICAL SUPPORT,Third Party Payments,Revenue
Walsall Council,http://opendatacommunities.org/id/metropolitan-district-council/walsall,WC116-584,31/05/2020,Adult Social Care,ALPHA HEALTH CARE LTD,07/05/2020,"2,587.38",73503-NURSING EMI,MENTAL HEALTH SUPPORT,Third Party Payments,Revenue
Walsall Council,http://opendatacommunities.org/id/metropolitan-district-council/walsall,WC116-585,31/05/2020,Adult Social Care,ALPHA HEALTH CARE LTD,07/05/2020,"2,787.38",73503-NURSING EMI,PHYSICAL SUPPORT,Third Party Payments,Revenue
Walsall Council,http://opendatacommunities.org/id/metropolitan-district-council/walsall,WC116-586,31/05/2020,Adult Social Care,ALPHA HEALTH CARE LTD,07/05/2020,"3,067.06",73503-NURSING EMI,SUPPORT WITH MEMORY & COGNITION,Third Party Payments,Revenue
Walsall Council,http://opendatacommunities.org/id/metropolitan-district-council/walsall,WC116-587,31/05/2020,Adult Social Care,ALPHA HEALTH CARE LTD,07/05/2020,"3,111.10",73503-NURSING EMI,MENTAL HEALTH SUPPORT,Third Party Payments,Revenue
Walsall Council,http://opendatacommunities.org/id/metropolitan-district-council/walsall,WC116-588,31/05/2020,Adult Social Care,ALPHA HEALTH CARE LTD,07/05/2020,"3,111.10",73503-NURSING EMI,MENTAL HEALTH SUPPORT,Third Party Payments,Revenue
Walsall Council,http://opendatacommunities.org/id/metropolitan-district-council/walsall,WC116-589,31/05/2020,Adult Social Care,ALPHA HEALTH CARE LTD,07/05/2020,"3,111.10",73503-NURSING EMI,PHYSICAL SUPPORT,Third Party Payments,Revenue
Walsall Council,http://opendatacommunities.org/id/metropolitan-district-council/walsall,WC116-590,31/05/2020,Adult Social Care,ALPHA HEALTH CARE LTD,07/05/2020,"3,111.14",73503-NURSING EMI,PHYSICAL SUPPORT,Third Party Payments,Revenue
Walsall Council,http://opendatacommunities.org/id/metropolitan-district-council/walsall,WC116-591,31/05/2020,Adult Social Care,ALPHA HEALTH CARE LTD,07/05/2020,"3,167.06",73503-NURSING EMI,SOCIAL SUPPORT,Third Party Payments,Revenue
Walsall Council,http://opendatacommunities.org/id/metropolitan-district-council/walsall,WC116-592,31/05/2020,Adult Social Care,ALPHA HEALTH CARE LTD,07/05/2020,"3,167.18",73503-NURSING EMI,PHYSICAL SUPPORT,Third Party Payments,Revenue
Walsall Council,http://opendatacommunities.org/id/metropolitan-district-council/walsall,WC116-593,31/05/2020,Adult Social Care,ALPHA HEALTH CARE LTD,15/05/2020,"3,214.29",73025-PROFESSIONAL SERVICES-PRIV CONTRACTOR & OTHER AGENCIES,TRANSITIONAL CARE SUPPORT TEAM,Third Party Payments,Revenue
Walsall Council,http://opendatacommunities.org/id/metropolitan-district-council/walsall,WC116-594,31/05/2020,Adult Social Care,ALPHA HEALTH CARE LTD,07/05/2020,"3,263.55",73501-RESIDENTIAL EMI,PHYSICAL SUPPORT,Third Party Payments,Revenue
Walsall Council,http://opendatacommunities.org/id/metropolitan-district-council/walsall,WC116-595,31/05/2020,Adult Social Care,ALPHA HEALTH CARE LTD,07/05/2020,"3,519.66",73503-NURSING EMI,PHYSICAL SUPPORT,Third Party Payments,Revenue
Walsall Council,http://opendatacommunities.org/id/metropolitan-district-council/walsall,WC116-596,31/05/2020,Adult Social Care,ALPHA HEALTH CARE LTD,07/05/2020,"9,863.30",73503-NURSING EMI,PHYSICAL SUPPORT,Third Party Payments,Revenue
Walsall Council,http://opendatacommunities.org/id/metropolitan-district-council/walsall,WC116-597,31/05/2020,Childrens,ALPHA TRAINING ACADEMY UK LTD,11/05/2020,"1,120.00",77300-ISB-FORMULA ALLOCATION,OUT OF BOROUGH SCHOOLS,Transfer Payments,Revenue
Walsall Council,http://opendatacommunities.org/id/metropolitan-district-council/walsall,WC116-598,31/05/2020,Childrens,ALPHABIOLABS,01/05/2020,399.00,63000-PROFESSIONAL FEES AND SERVICES,SAFEGUARDING & FAMILY SUPPORT,Supplies & Services,Revenue
Walsall Council,http://opendatacommunities.org/id/metropolitan-district-council/walsall,WC116-599,31/05/2020,Childrens,REDACTED,04/05/2020,318.08,74510-RESIDENTS ORDERS,ADOPTION ALLOWANCES,Third Party Payments,Revenue
Walsall Council,http://opendatacommunities.org/id/metropolitan-district-council/walsall,WC116-600,31/05/2020,Childrens,REDACTED,04/05/2020,370.28,74510-RESIDENTS ORDERS,ADOPTION ALLOWANCES,Third Party Payments,Revenue
Walsall Council,http://opendatacommunities.org/id/metropolitan-district-council/walsall,WC116-601,31/05/2020,Adult Social Care,REDACTED,01/05/2020,"1,515.00",73506-DIRECT PAYMENT,LEARNING DISABILITY SUPPORT,Third Party Payments,Revenue
Walsall Council,http://opendatacommunities.org/id/metropolitan-district-council/walsall,WC116-602,31/05/2020,Childrens,REDACTED,04/05/2020,808.04,74009-ADOPTION ALLOWANCE,ADOPTION ALLOWANCES,Transfer Payments,Revenue
Walsall Council,http://opendatacommunities.org/id/metropolitan-district-council/walsall,WC116-603,31/05/2020,Childrens,REDACTED,15/05/2020,600.00,74501-MAINTENANCE ALLOWANCE-FOSTER CARERS,INTERNAL FOSTER CARE PROVISION,Transfer Payments,Revenue
Walsall Council,http://opendatacommunities.org/id/metropolitan-district-council/walsall,WC116-604,31/05/2020,Childrens,REDACTED,15/05/2020,"1,000.00",74508-INTERNAL FOSTER CARERS-CARER FEES,INTERNAL FOSTER CARE PROVISION,Transfer Payments,Revenue
Walsall Council,http://opendatacommunities.org/id/metropolitan-district-council/walsall,WC116-605,31/05/2020,Adult Social Care,REDACTED,01/05/2020,"1,064.72",73506-DIRECT PAYMENT,LEARNING DISABILITY SUPPORT,Third Party Payments,Revenue
Walsall Council,http://opendatacommunities.org/id/metropolitan-district-council/walsall,WC116-606,31/05/2020,Resources and Transformation,AMEY LG LIMITED,20/05/2020,729.34,60008-REPAIR & MAINTENANCE OF FURNITURE & EQUIPMENT,CCTV,Supplies & Services,Revenue
Walsall Council,http://opendatacommunities.org/id/metropolitan-district-council/walsall,WC116-607,31/05/2020,Economy & Environment,AMEY LG LIMITED,05/05/2020,"1,286.34",42003-ELECTRICITY-ENERGY COSTS,TRAFFIC CONTROL,Premises,Revenue
Walsall Council,http://opendatacommunities.org/id/metropolitan-district-council/walsall,WC116-608,31/05/2020,Economy & Environment,AMEY LG LIMITED,06/05/2020,"1,848.91",01002-PROJECT FEES,CFR 1366 M6 J10 DESIGNATED FUNDS NMU ROUTE,Capital,Capital
Walsall Council,http://opendatacommunities.org/id/metropolitan-district-council/walsall,WC116-609,31/05/2020,Economy & Environment,AMEY LG LIMITED,14/05/2020,"5,232.97",73025-PROFESSIONAL SERVICES-PRIV CONTRACTOR & OTHER AGENCIES,TRAFFIC MANAGEMENT,Third Party Payments,Revenue
Walsall Council,http://opendatacommunities.org/id/metropolitan-district-council/walsall,WC116-610,31/05/2020,Economy & Environment,AMEY OW LTD,11/05/2020,"1,853.44",01002-PROJECT FEES,CFR 1355 WESTERN OPPORTUNITY AREA 1 A454 CORRIDOR,Capital,Capital
Walsall Council,http://opendatacommunities.org/id/metropolitan-district-council/walsall,WC116-611,31/05/2020,Childrens,AMG NURSING CARE SERVICES,27/05/2020,370.24,63000-PROFESSIONAL FEES AND SERVICES,DIRECTLY COMMISSIONED NURSING SERVICES,Supplies & Services,Revenue
Walsall Council,http://opendatacommunities.org/id/metropolitan-district-council/walsall,WC116-612,31/05/2020,Adult Social Care,AMG NURSING CARE SERVICES,05/05/2020,"2,034.40",73508-COMMUNITY SUPPORTED LIVING/SUPPORTED ACCOMMODATION,PHYSICAL SUPPORT,Third Party Payments,Revenue
Walsall Council,http://opendatacommunities.org/id/metropolitan-district-council/walsall,WC116-613,31/05/2020,Adult Social Care,AMG NURSING CARE SERVICES,18/05/2020,"2,034.40",73508-COMMUNITY SUPPORTED LIVING/SUPPORTED ACCOMMODATION,PHYSICAL SUPPORT,Third Party Payments,Revenue
Walsall Council,http://opendatacommunities.org/id/metropolitan-district-council/walsall,WC116-614,31/05/2020,Adult Social Care,AMG NURSING CARE SERVICES,11/05/2020,"3,507.83",73508-COMMUNITY SUPPORTED LIVING/SUPPORTED ACCOMMODATION,PHYSICAL SUPPORT,Third Party Payments,Revenue
Walsall Council,http://opendatacommunities.org/id/metropolitan-district-council/walsall,WC116-615,31/05/2020,Adult Social Care,AMG NURSING CARE SERVICES,05/05/2020,"5,355.84",73508-COMMUNITY SUPPORTED LIVING/SUPPORTED ACCOMMODATION,PHYSICAL SUPPORT,Third Party Payments,Revenue
Walsall Council,http://opendatacommunities.org/id/metropolitan-district-council/walsall,WC116-616,31/05/2020,Adult Social Care,AMG NURSING CARE SERVICES,18/05/2020,"5,355.84",73508-COMMUNITY SUPPORTED LIVING/SUPPORTED ACCOMMODATION,PHYSICAL SUPPORT,Third Party Payments,Revenue
Walsall Council,http://opendatacommunities.org/id/metropolitan-district-council/walsall,WC116-617,31/05/2020,Childrens,REDACTED,04/05/2020,150.00,74503-BIRTHDAY ALLOWANCE-FOSTER CARERS,FAMILY & FRIENDS FOSTER CARE PROVISION,Transfer Payments,Revenue
Walsall Council,http://opendatacommunities.org/id/metropolitan-district-council/walsall,WC116-618,31/05/2020,Childrens,REDACTED,04/05/2020,720.00,74501-MAINTENANCE ALLOWANCE-FOSTER CARERS,FAMILY & FRIENDS FOSTER CARE PROVISION,Transfer Payments,Revenue
Walsall Council,http://opendatacommunities.org/id/metropolitan-district-council/walsall,WC116-619,31/05/2020,Childrens,REDACTED,04/05/2020,340.00,74508-INTERNAL FOSTER CARERS-CARER FEES,FAMILY & FRIENDS FOSTER CARE PROVISION,Transfer Payments,Revenue
Walsall Council,http://opendatacommunities.org/id/metropolitan-district-council/walsall,WC116-620,31/05/2020,Childrens,REDACTED,04/05/2020,600.00,74501-MAINTENANCE ALLOWANCE-FOSTER CARERS,FAMILY & FRIENDS FOSTER CARE PROVISION,Transfer Payments,Revenue
Walsall Council,http://opendatacommunities.org/id/metropolitan-district-council/walsall,WC116-621,31/05/2020,Childrens,REDACTED,04/05/2020,425.08,74510-RESIDENTS ORDERS,ADOPTION ALLOWANCES,Third Party Payments,Revenue
Walsall Council,http://opendatacommunities.org/id/metropolitan-district-council/walsall,WC116-622,31/05/2020,Adult Social Care,ANCHOR CARE HOMES LTD,07/05/2020,"2,200.07",73501-RESIDENTIAL EMI,PHYSICAL SUPPORT,Third Party Payments,Revenue
Walsall Council,http://opendatacommunities.org/id/metropolitan-district-council/walsall,WC116-623,31/05/2020,Adult Social Care,ANCHOR CAREHOMES LTD - HARDEN HALL,07/05/2020,"1,957.52",73500-RESIDENTIAL,PHYSICAL SUPPORT,Third Party Payments,Revenue
Walsall Council,http://opendatacommunities.org/id/metropolitan-district-council/walsall,WC116-624,31/05/2020,Adult Social Care,ANCHOR CAREHOMES LTD - HARDEN HALL,07/05/2020,"1,957.52",73500-RESIDENTIAL,PHYSICAL SUPPORT,Third Party Payments,Revenue
Walsall Council,http://opendatacommunities.org/id/metropolitan-district-council/walsall,WC116-625,31/05/2020,Adult Social Care,ANCHOR CAREHOMES LTD - HARDEN HALL,07/05/2020,"1,957.52",73500-RESIDENTIAL,SUPPORT WITH MEMORY & COGNITION,Third Party Payments,Revenue
Walsall Council,http://opendatacommunities.org/id/metropolitan-district-council/walsall,WC116-626,31/05/2020,Adult Social Care,ANCHOR CAREHOMES LTD - HARDEN HALL,07/05/2020,"1,957.52",73500-RESIDENTIAL,SUPPORT WITH MEMORY & COGNITION,Third Party Payments,Revenue
Walsall Council,http://opendatacommunities.org/id/metropolitan-district-council/walsall,WC116-627,31/05/2020,Adult Social Care,ANCHOR CAREHOMES LTD - HARDEN HALL,07/05/2020,"2,108.68",73500-RESIDENTIAL,PHYSICAL SUPPORT,Third Party Payments,Revenue
Walsall Council,http://opendatacommunities.org/id/metropolitan-district-council/walsall,WC116-628,31/05/2020,Adult Social Care,ANCHOR CAREHOMES LTD - HARDEN HALL,07/05/2020,"2,117.52",73500-RESIDENTIAL,PHYSICAL SUPPORT,Third Party Payments,Revenue
Walsall Council,http://opendatacommunities.org/id/metropolitan-district-council/walsall,WC116-629,31/05/2020,Adult Social Care,ANCHOR CAREHOMES LTD - HARDEN HALL,07/05/2020,"2,163.55",73501-RESIDENTIAL EMI,PHYSICAL SUPPORT,Third Party Payments,Revenue
Walsall Council,http://opendatacommunities.org/id/metropolitan-district-council/walsall,WC116-630,31/05/2020,Adult Social Care,ANCHOR CAREHOMES LTD - HARDEN HALL,07/05/2020,"2,200.07",73501-RESIDENTIAL EMI,MENTAL HEALTH SUPPORT,Third Party Payments,Revenue
Walsall Council,http://opendatacommunities.org/id/metropolitan-district-council/walsall,WC116-631,31/05/2020,Adult Social Care,ANCHOR CAREHOMES LTD - HARDEN HALL,07/05/2020,"2,200.07",73501-RESIDENTIAL EMI,SUPPORT WITH MEMORY & COGNITION,Third Party Payments,Revenue
Walsall Council,http://opendatacommunities.org/id/metropolitan-district-council/walsall,WC116-632,31/05/2020,Adult Social Care,ANCHOR CAREHOMES LTD - HARDEN HALL,07/05/2020,"2,200.07",73501-RESIDENTIAL EMI,MENTAL HEALTH SUPPORT,Third Party Payments,Revenue
Walsall Council,http://opendatacommunities.org/id/metropolitan-district-council/walsall,WC116-633,31/05/2020,Adult Social Care,ANCHOR CAREHOMES LTD - HARDEN HALL,07/05/2020,"2,200.07",73501-RESIDENTIAL EMI,MENTAL HEALTH SUPPORT,Third Party Payments,Revenue
Walsall Council,http://opendatacommunities.org/id/metropolitan-district-council/walsall,WC116-634,31/05/2020,Adult Social Care,ANCHOR CAREHOMES LTD - HARDEN HALL,07/05/2020,"2,200.07",73501-RESIDENTIAL EMI,PHYSICAL SUPPORT,Third Party Payments,Revenue
Walsall Council,http://opendatacommunities.org/id/metropolitan-district-council/walsall,WC116-635,31/05/2020,Adult Social Care,ANCHOR CAREHOMES LTD - HARDEN HALL,07/05/2020,"2,200.07",73501-RESIDENTIAL EMI,MENTAL HEALTH SUPPORT,Third Party Payments,Revenue
Walsall Council,http://opendatacommunities.org/id/metropolitan-district-council/walsall,WC116-636,31/05/2020,Adult Social Care,ANCHOR CAREHOMES LTD - HARDEN HALL,07/05/2020,"2,200.07",73501-RESIDENTIAL EMI,PHYSICAL SUPPORT,Third Party Payments,Revenue
Walsall Council,http://opendatacommunities.org/id/metropolitan-district-council/walsall,WC116-637,31/05/2020,Adult Social Care,ANCHOR CAREHOMES LTD - HARDEN HALL,07/05/2020,"2,200.07",73501-RESIDENTIAL EMI,PHYSICAL SUPPORT,Third Party Payments,Revenue
Walsall Council,http://opendatacommunities.org/id/metropolitan-district-council/walsall,WC116-638,31/05/2020,Adult Social Care,ANCHOR CAREHOMES LTD - HARDEN HALL,07/05/2020,"2,200.07",73501-RESIDENTIAL EMI,PHYSICAL SUPPORT,Third Party Payments,Revenue
Walsall Council,http://opendatacommunities.org/id/metropolitan-district-council/walsall,WC116-639,31/05/2020,Adult Social Care,ANCHOR CAREHOMES LTD - HARDEN HALL,07/05/2020,"2,200.07",73501-RESIDENTIAL EMI,PHYSICAL SUPPORT,Third Party Payments,Revenue
Walsall Council,http://opendatacommunities.org/id/metropolitan-district-council/walsall,WC116-640,31/05/2020,Adult Social Care,ANCHOR CAREHOMES LTD - HARDEN HALL,07/05/2020,"2,200.07",73501-RESIDENTIAL EMI,MENTAL HEALTH SUPPORT,Third Party Payments,Revenue
Walsall Council,http://opendatacommunities.org/id/metropolitan-district-council/walsall,WC116-641,31/05/2020,Adult Social Care,ANCHOR CAREHOMES LTD - HARDEN HALL,07/05/2020,"2,200.07",73501-RESIDENTIAL EMI,PHYSICAL SUPPORT,Third Party Payments,Revenue
Walsall Council,http://opendatacommunities.org/id/metropolitan-district-council/walsall,WC116-642,31/05/2020,Adult Social Care,ANCHOR CAREHOMES LTD - HARDEN HALL,07/05/2020,"2,227.83",73501-RESIDENTIAL EMI,PHYSICAL SUPPORT,Third Party Payments,Revenue
Walsall Council,http://opendatacommunities.org/id/metropolitan-district-council/walsall,WC116-643,31/05/2020,Adult Social Care,ANCHOR CAREHOMES LTD - HARDEN HALL,07/05/2020,"2,237.52",73500-RESIDENTIAL,SENSORY SUPPORT,Third Party Payments,Revenue
Walsall Council,http://opendatacommunities.org/id/metropolitan-district-council/walsall,WC116-644,31/05/2020,Adult Social Care,ANCHOR CAREHOMES LTD - HARDEN HALL,07/05/2020,"2,277.52",73500-RESIDENTIAL,PHYSICAL SUPPORT,Third Party Payments,Revenue
Walsall Council,http://opendatacommunities.org/id/metropolitan-district-council/walsall,WC116-645,31/05/2020,Adult Social Care,ANCHOR CAREHOMES LTD - HARDEN HALL,07/05/2020,"2,277.52",73500-RESIDENTIAL,SOCIAL SUPPORT,Third Party Payments,Revenue
Walsall Council,http://opendatacommunities.org/id/metropolitan-district-council/walsall,WC116-646,31/05/2020,Adult Social Care,ANCHOR CAREHOMES LTD - HARDEN HALL,07/05/2020,"2,372.39",73501-RESIDENTIAL EMI,SENSORY SUPPORT,Third Party Payments,Revenue
Walsall Council,http://opendatacommunities.org/id/metropolitan-district-council/walsall,WC116-647,31/05/2020,Adult Social Care,ANCHOR CAREHOMES LTD - HARDEN HALL,07/05/2020,"2,448.68",73500-RESIDENTIAL,PHYSICAL SUPPORT,Third Party Payments,Revenue
Walsall Council,http://opendatacommunities.org/id/metropolitan-district-council/walsall,WC116-648,31/05/2020,Adult Social Care,ANCHOR CAREHOMES LTD - HARDEN HALL,07/05/2020,"2,520.07",73501-RESIDENTIAL EMI,SUPPORT WITH MEMORY & COGNITION,Third Party Payments,Revenue
Walsall Council,http://opendatacommunities.org/id/metropolitan-district-council/walsall,WC116-649,31/05/2020,Adult Social Care,ANCHOR CAREHOMES LTD - HARDEN HALL,07/05/2020,"2,540.07",73501-RESIDENTIAL EMI,PHYSICAL SUPPORT,Third Party Payments,Revenue
Walsall Council,http://opendatacommunities.org/id/metropolitan-district-council/walsall,WC116-650,31/05/2020,Adult Social Care,ANCHOR CAREHOMES LTD - HARDEN HALL,07/05/2020,"2,540.07",73501-RESIDENTIAL EMI,PHYSICAL SUPPORT,Third Party Payments,Revenue
Walsall Council,http://opendatacommunities.org/id/metropolitan-district-council/walsall,WC116-651,31/05/2020,Adult Social Care,ANCHOR CAREHOMES LTD - HARDEN HALL,07/05/2020,"2,540.07",73501-RESIDENTIAL EMI,PHYSICAL SUPPORT,Third Party Payments,Revenue
Walsall Council,http://opendatacommunities.org/id/metropolitan-district-council/walsall,WC116-652,31/05/2020,Adult Social Care,ANCHOR CAREHOMES LTD - HARDEN HALL,07/05/2020,"2,560.07",73501-RESIDENTIAL EMI,PHYSICAL SUPPORT,Third Party Payments,Revenue
Walsall Council,http://opendatacommunities.org/id/metropolitan-district-council/walsall,WC116-653,31/05/2020,Adult Social Care,ANCHOR CAREHOMES LTD - HARDEN HALL,07/05/2020,"2,560.07",73501-RESIDENTIAL EMI,PHYSICAL SUPPORT,Third Party Payments,Revenue
Walsall Council,http://opendatacommunities.org/id/metropolitan-district-council/walsall,WC116-654,31/05/2020,Adult Social Care,ANCHOR CAREHOMES LTD - HARDEN HALL,07/05/2020,"2,560.07",73501-RESIDENTIAL EMI,SOCIAL SUPPORT,Third Party Payments,Revenue
Walsall Council,http://opendatacommunities.org/id/metropolitan-district-council/walsall,WC116-655,31/05/2020,Adult Social Care,ANCHOR CAREHOMES LTD - HARDEN HALL,07/05/2020,"2,560.07",73501-RESIDENTIAL EMI,PHYSICAL SUPPORT,Third Party Payments,Revenue
Walsall Council,http://opendatacommunities.org/id/metropolitan-district-council/walsall,WC116-656,31/05/2020,Childrens,REDACTED,04/05/2020,312.24,74509-SPECIAL GUARDIANSHIP ORDERS,ADOPTION ALLOWANCES,Transfer Payments,Revenue
Walsall Council,http://opendatacommunities.org/id/metropolitan-district-council/walsall,WC116-657,31/05/2020,Childrens,REDACTED,15/05/2020,720.00,74501-MAINTENANCE ALLOWANCE-FOSTER CARERS,INTERNAL FOSTER CARE PROVISION,Transfer Payments,Revenue
Walsall Council,http://opendatacommunities.org/id/metropolitan-district-council/walsall,WC116-658,31/05/2020,Childrens,REDACTED,15/05/2020,"2,400.00",74508-INTERNAL FOSTER CARERS-CARER FEES,INTERNAL FOSTER CARE PROVISION,Transfer Payments,Revenue
Walsall Council,http://opendatacommunities.org/id/metropolitan-district-council/walsall,WC116-659,31/05/2020,Adult Social Care,REDACTED,01/05/2020,535.08,73506-DIRECT PAYMENT,LEARNING DISABILITY SUPPORT,Third Party Payments,Revenue
Walsall Council,http://opendatacommunities.org/id/metropolitan-district-council/walsall,WC116-660,31/05/2020,Adult Social Care,REDACTED,01/05/2020,"2,683.36",73506-DIRECT PAYMENT,PHYSICAL SUPPORT,Third Party Payments,Revenue
Walsall Council,http://opendatacommunities.org/id/metropolitan-district-council/walsall,WC116-661,31/05/2020,Childrens,ANDREWS ELECTRICAL LTD,13/05/2020,"1,998.00",01006-SITE WORKS MAIN CONTRACTORS,CFR 1297 OLD CHURCH PRIMARY SCHOOL EXPANSION,Capital,Capital
Walsall Council,http://opendatacommunities.org/id/metropolitan-district-council/walsall,WC116-662,31/05/2020,Childrens,REDACTED,04/05/2020,368.76,74509-SPECIAL GUARDIANSHIP ORDERS,ADOPTION ALLOWANCES,Transfer Payments,Revenue
Walsall Council,http://opendatacommunities.org/id/metropolitan-district-council/walsall,WC116-663,31/05/2020,Childrens,REDACTED,04/05/2020,368.76,74509-SPECIAL GUARDIANSHIP ORDERS,ADOPTION ALLOWANCES,Transfer Payments,Revenue
Walsall Council,http://opendatacommunities.org/id/metropolitan-district-council/walsall,WC116-664,31/05/2020,Childrens,REDACTED,04/05/2020,500.16,74509-SPECIAL GUARDIANSHIP ORDERS,ADOPTION ALLOWANCES,Transfer Payments,Revenue
Walsall Council,http://opendatacommunities.org/id/metropolitan-district-council/walsall,WC116-665,31/05/2020,Childrens,REDACTED,04/05/2020,312.04,74509-SPECIAL GUARDIANSHIP ORDERS,ADOPTION ALLOWANCES,Transfer Payments,Revenue
Walsall Council,http://opendatacommunities.org/id/metropolitan-district-council/walsall,WC116-666,31/05/2020,Childrens,ANGELS WITHOUT WINGS,12/05/2020,"4,951.25",63000-PROFESSIONAL FEES AND SERVICES,ADOPTION TEAM,Supplies & Services,Revenue
Walsall Council,http://opendatacommunities.org/id/metropolitan-district-council/walsall,WC116-667,31/05/2020,Childrens,ANGELS WITHOUT WINGS,28/05/2020,"4,951.25",74009-ADOPTION ALLOWANCE,ADOPTION TEAM,Transfer Payments,Revenue
Walsall Council,http://opendatacommunities.org/id/metropolitan-district-council/walsall,WC116-668,31/05/2020,Economy & Environment,REDACTED,20/05/2020,250.00,62523-EVENTS AND VISUAL ARTS,GARMAN RYAN,Supplies & Services,Revenue
Walsall Council,http://opendatacommunities.org/id/metropolitan-district-council/walsall,WC116-669,31/05/2020,Economy & Environment,REDACTED,12/05/2020,"1,000.00",63000-PROFESSIONAL FEES AND SERVICES,NAG - ART GALLERY MARKETING,Supplies & Services,Revenue
Walsall Council,http://opendatacommunities.org/id/metropolitan-district-council/walsall,WC116-670,31/05/2020,Adult Social Care,REDACTED,01/05/2020,"1,264.44",73506-DIRECT PAYMENT,PHYSICAL SUPPORT,Third Party Payments,Revenue
Walsall Council,http://opendatacommunities.org/id/metropolitan-district-council/walsall,WC116-671,31/05/2020,Adult Social Care,ANSON COURT RESIDENTIAL HOME,07/05/2020,918.23,73504-SHORT STAY RESIDENTIAL,PHYSICAL SUPPORT,Third Party Payments,Revenue
Walsall Council,http://opendatacommunities.org/id/metropolitan-district-council/walsall,WC116-672,31/05/2020,Adult Social Care,ANSON COURT RESIDENTIAL HOME,07/05/2020,"1,022.00",73500-RESIDENTIAL,PHYSICAL SUPPORT,Third Party Payments,Revenue
Walsall Council,http://opendatacommunities.org/id/metropolitan-district-council/walsall,WC116-673,31/05/2020,Adult Social Care,ANSON COURT RESIDENTIAL HOME,07/05/2020,"1,216.78",73501-RESIDENTIAL EMI,PHYSICAL SUPPORT,Third Party Payments,Revenue
Walsall Council,http://opendatacommunities.org/id/metropolitan-district-council/walsall,WC116-674,31/05/2020,Adult Social Care,ANSON COURT RESIDENTIAL HOME,20/05/2020,"1,433.14",73025-PROFESSIONAL SERVICES-PRIV CONTRACTOR & OTHER AGENCIES,TRANSITIONAL CARE SUPPORT TEAM,Third Party Payments,Revenue
Walsall Council,http://opendatacommunities.org/id/metropolitan-district-council/walsall,WC116-675,31/05/2020,Adult Social Care,ANSON COURT RESIDENTIAL HOME,07/05/2020,"2,200.07",73501-RESIDENTIAL EMI,SOCIAL SUPPORT,Third Party Payments,Revenue
Walsall Council,http://opendatacommunities.org/id/metropolitan-district-council/walsall,WC116-676,31/05/2020,Adult Social Care,ANSON COURT RESIDENTIAL HOME,07/05/2020,"2,200.07",73501-RESIDENTIAL EMI,MENTAL HEALTH SUPPORT,Third Party Payments,Revenue
Walsall Council,http://opendatacommunities.org/id/metropolitan-district-council/walsall,WC116-677,31/05/2020,Adult Social Care,ANSON COURT RESIDENTIAL HOME,07/05/2020,"2,200.07",73501-RESIDENTIAL EMI,PHYSICAL SUPPORT,Third Party Payments,Revenue
Walsall Council,http://opendatacommunities.org/id/metropolitan-district-council/walsall,WC116-678,31/05/2020,Adult Social Care,ANSON COURT RESIDENTIAL HOME,07/05/2020,"2,200.07",73501-RESIDENTIAL EMI,PHYSICAL SUPPORT,Third Party Payments,Revenue
Walsall Council,http://opendatacommunities.org/id/metropolitan-district-council/walsall,WC116-679,31/05/2020,Adult Social Care,ANSON COURT RESIDENTIAL HOME,07/05/2020,"2,200.07",73501-RESIDENTIAL EMI,SOCIAL SUPPORT,Third Party Payments,Revenue
Walsall Council,http://opendatacommunities.org/id/metropolitan-district-council/walsall,WC116-680,31/05/2020,Adult Social Care,ANSON COURT RESIDENTIAL HOME,07/05/2020,"2,200.07",73501-RESIDENTIAL EMI,MENTAL HEALTH SUPPORT,Third Party Payments,Revenue
Walsall Council,http://opendatacommunities.org/id/metropolitan-district-council/walsall,WC116-681,31/05/2020,Adult Social Care,ANSON COURT RESIDENTIAL HOME,07/05/2020,"2,200.07",73501-RESIDENTIAL EMI,SUPPORT WITH MEMORY & COGNITION,Third Party Payments,Revenue
Walsall Council,http://opendatacommunities.org/id/metropolitan-district-council/walsall,WC116-682,31/05/2020,Adult Social Care,ANSON COURT RESIDENTIAL HOME,07/05/2020,"2,200.07",73501-RESIDENTIAL EMI,PHYSICAL SUPPORT,Third Party Payments,Revenue
Walsall Council,http://opendatacommunities.org/id/metropolitan-district-council/walsall,WC116-683,31/05/2020,Adult Social Care,ANSON COURT RESIDENTIAL HOME,07/05/2020,"2,200.07",73501-RESIDENTIAL EMI,SUPPORT WITH MEMORY & COGNITION,Third Party Payments,Revenue
Walsall Council,http://opendatacommunities.org/id/metropolitan-district-council/walsall,WC116-684,31/05/2020,Adult Social Care,ANSON COURT RESIDENTIAL HOME,07/05/2020,"2,280.07",73501-RESIDENTIAL EMI,MENTAL HEALTH SUPPORT,Third Party Payments,Revenue
Walsall Council,http://opendatacommunities.org/id/metropolitan-district-council/walsall,WC116-685,31/05/2020,Adult Social Care,ANSON COURT RESIDENTIAL HOME,07/05/2020,"2,320.07",73501-RESIDENTIAL EMI,PHYSICAL SUPPORT,Third Party Payments,Revenue
Walsall Council,http://opendatacommunities.org/id/metropolitan-district-council/walsall,WC116-686,31/05/2020,Adult Social Care,ANSON COURT RESIDENTIAL HOME,07/05/2020,"2,320.07",73501-RESIDENTIAL EMI,MENTAL HEALTH SUPPORT,Third Party Payments,Revenue
Walsall Council,http://opendatacommunities.org/id/metropolitan-district-council/walsall,WC116-687,31/05/2020,Adult Social Care,ANSON COURT RESIDENTIAL HOME,07/05/2020,"2,354.80",73500-RESIDENTIAL,SUPPORT WITH MEMORY & COGNITION,Third Party Payments,Revenue
Walsall Council,http://opendatacommunities.org/id/metropolitan-district-council/walsall,WC116-688,31/05/2020,Adult Social Care,ANSON COURT RESIDENTIAL HOME,07/05/2020,"2,400.07",73501-RESIDENTIAL EMI,SOCIAL SUPPORT,Third Party Payments,Revenue
Walsall Council,http://opendatacommunities.org/id/metropolitan-district-council/walsall,WC116-689,31/05/2020,Adult Social Care,ANSON COURT RESIDENTIAL HOME,07/05/2020,"2,400.07",73501-RESIDENTIAL EMI,PHYSICAL SUPPORT,Third Party Payments,Revenue
Walsall Council,http://opendatacommunities.org/id/metropolitan-district-council/walsall,WC116-690,31/05/2020,Adult Social Care,ANSON COURT RESIDENTIAL HOME,07/05/2020,"2,400.07",73501-RESIDENTIAL EMI,SOCIAL SUPPORT,Third Party Payments,Revenue
Walsall Council,http://opendatacommunities.org/id/metropolitan-district-council/walsall,WC116-691,31/05/2020,Adult Social Care,ANSON COURT RESIDENTIAL HOME,07/05/2020,"2,400.07",73501-RESIDENTIAL EMI,PHYSICAL SUPPORT,Third Party Payments,Revenue
Walsall Council,http://opendatacommunities.org/id/metropolitan-district-council/walsall,WC116-692,31/05/2020,Adult Social Care,ANSON COURT RESIDENTIAL HOME,07/05/2020,"2,555.78",73501-RESIDENTIAL EMI,PHYSICAL SUPPORT,Third Party Payments,Revenue
Walsall Council,http://opendatacommunities.org/id/metropolitan-district-council/walsall,WC116-693,31/05/2020,Adult Social Care,ANSON COURT RESIDENTIAL HOME,20/05/2020,"3,749.28",73025-PROFESSIONAL SERVICES-PRIV CONTRACTOR & OTHER AGENCIES,TRANSITIONAL CARE SUPPORT TEAM,Third Party Payments,Revenue
Walsall Council,http://opendatacommunities.org/id/metropolitan-district-council/walsall,WC116-694,31/05/2020,Childrens,REDACTED,04/05/2020,333.12,74509-SPECIAL GUARDIANSHIP ORDERS,ADOPTION ALLOWANCES,Transfer Payments,Revenue
Walsall Council,http://opendatacommunities.org/id/metropolitan-district-council/walsall,WC116-695,31/05/2020,Economy & Environment,APCOA PARKING SERVICES (UK) LTD,01/05/2020,"41,616.88",73025-PROFESSIONAL SERVICES-PRIV CONTRACTOR & OTHER AGENCIES,PARKING SERVICES,Third Party Payments,Revenue
Walsall Council,http://opendatacommunities.org/id/metropolitan-district-council/walsall,WC116-696,31/05/2020,Economy & Environment,APCOA PARKING SERVICES (UK) LTD,15/05/2020,"52,882.07",73025-PROFESSIONAL SERVICES-PRIV CONTRACTOR & OTHER AGENCIES,PARKING SERVICES,Third Party Payments,Revenue
Walsall Council,http://opendatacommunities.org/id/metropolitan-district-council/walsall,WC116-697,31/05/2020,Childrens,APP CARZ,22/05/2020,336.00,52000-WITH DRIVER-HIRE OF VEHICLES,HOME TO SCHOOL TRANSPORT,Transport,Revenue
Walsall Council,http://opendatacommunities.org/id/metropolitan-district-council/walsall,WC116-698,31/05/2020,Childrens,APP CARZ,22/05/2020,336.00,52000-WITH DRIVER-HIRE OF VEHICLES,HOME TO SCHOOL TRANSPORT,Transport,Revenue
Walsall Council,http://opendatacommunities.org/id/metropolitan-district-council/walsall,WC116-699,31/05/2020,Childrens,APP CARZ,22/05/2020,416.64,52000-WITH DRIVER-HIRE OF VEHICLES,HOME TO SCHOOL TRANSPORT,Transport,Revenue
Walsall Council,http://opendatacommunities.org/id/metropolitan-district-council/walsall,WC116-700,31/05/2020,Childrens,APP CARZ,22/05/2020,418.88,52000-WITH DRIVER-HIRE OF VEHICLES,HOME TO SCHOOL TRANSPORT,Transport,Revenue
Walsall Council,http://opendatacommunities.org/id/metropolitan-district-council/walsall,WC116-701,31/05/2020,Childrens,APP CARZ,22/05/2020,560.00,52000-WITH DRIVER-HIRE OF VEHICLES,HOME TO SCHOOL TRANSPORT,Transport,Revenue
Walsall Council,http://opendatacommunities.org/id/metropolitan-district-council/walsall,WC116-702,31/05/2020,Childrens,APP CARZ,22/05/2020,560.00,52000-WITH DRIVER-HIRE OF VEHICLES,HOME TO SCHOOL TRANSPORT,Transport,Revenue
Walsall Council,http://opendatacommunities.org/id/metropolitan-district-council/walsall,WC116-703,31/05/2020,Childrens,APP CARZ,22/05/2020,600.32,52000-WITH DRIVER-HIRE OF VEHICLES,HOME TO SCHOOL TRANSPORT,Transport,Revenue
Walsall Council,http://opendatacommunities.org/id/metropolitan-district-council/walsall,WC116-704,31/05/2020,Childrens,APP CARZ,22/05/2020,616.00,52000-WITH DRIVER-HIRE OF VEHICLES,HOME TO SCHOOL TRANSPORT,Transport,Revenue
Walsall Council,http://opendatacommunities.org/id/metropolitan-district-council/walsall,WC116-705,31/05/2020,Childrens,APP CARZ,22/05/2020,627.20,52000-WITH DRIVER-HIRE OF VEHICLES,HOME TO SCHOOL TRANSPORT,Transport,Revenue
Walsall Council,http://opendatacommunities.org/id/metropolitan-district-council/walsall,WC116-706,31/05/2020,Childrens,APP CARZ,22/05/2020,672.00,52000-WITH DRIVER-HIRE OF VEHICLES,HOME TO SCHOOL TRANSPORT,Transport,Revenue
Walsall Council,http://opendatacommunities.org/id/metropolitan-district-council/walsall,WC116-707,31/05/2020,Childrens,APP CARZ,22/05/2020,"1,360.00",52000-WITH DRIVER-HIRE OF VEHICLES,HOME TO SCHOOL TRANSPORT,Transport,Revenue
Walsall Council,http://opendatacommunities.org/id/metropolitan-district-council/walsall,WC116-708,31/05/2020,Childrens,APPLE TRANSCRIPTION LIMITED,01/05/2020,394.80,73014-LEGAL FEES-PRIV CONTRACTOR FEES,GENERAL MANAGEMENT SUPPORT (INC LEGAL),Third Party Payments,Revenue
Walsall Council,http://opendatacommunities.org/id/metropolitan-district-council/walsall,WC116-709,31/05/2020,Adult Social Care,ARBORETUM NURSING HOME.,21/05/2020,"-2,554.29",73025-PROFESSIONAL SERVICES-PRIV CONTRACTOR & OTHER AGENCIES,TRANSITIONAL CARE SUPPORT TEAM,Third Party Payments,Revenue
Walsall Council,http://opendatacommunities.org/id/metropolitan-district-council/walsall,WC116-710,31/05/2020,Adult Social Care,ARBORETUM NURSING HOME.,06/05/2020,"-1,064.29",73025-PROFESSIONAL SERVICES-PRIV CONTRACTOR & OTHER AGENCIES,TRANSITIONAL CARE SUPPORT TEAM,Third Party Payments,Revenue
Walsall Council,http://opendatacommunities.org/id/metropolitan-district-council/walsall,WC116-711,31/05/2020,Adult Social Care,ARBORETUM NURSING HOME.,07/05/2020,-638.57,73025-PROFESSIONAL SERVICES-PRIV CONTRACTOR & OTHER AGENCIES,TRANSITIONAL CARE SUPPORT TEAM,Third Party Payments,Revenue
Walsall Council,http://opendatacommunities.org/id/metropolitan-district-council/walsall,WC116-712,31/05/2020,Adult Social Care,ARBORETUM NURSING HOME.,07/05/2020,-559.55,73025-PROFESSIONAL SERVICES-PRIV CONTRACTOR & OTHER AGENCIES,TRANSITIONAL CARE SUPPORT TEAM,Third Party Payments,Revenue
Walsall Council,http://opendatacommunities.org/id/metropolitan-district-council/walsall,WC116-713,31/05/2020,Adult Social Care,ARBORETUM NURSING HOME.,07/05/2020,-319.29,73025-PROFESSIONAL SERVICES-PRIV CONTRACTOR & OTHER AGENCIES,TRANSITIONAL CARE SUPPORT TEAM,Third Party Payments,Revenue
Walsall Council,http://opendatacommunities.org/id/metropolitan-district-council/walsall,WC116-714,31/05/2020,Adult Social Care,ARBORETUM NURSING HOME.,07/05/2020,256.71,73502-NURSING,PHYSICAL SUPPORT,Third Party Payments,Revenue
Walsall Council,http://opendatacommunities.org/id/metropolitan-district-council/walsall,WC116-715,31/05/2020,Adult Social Care,ARBORETUM NURSING HOME.,14/05/2020,447.64,73025-PROFESSIONAL SERVICES-PRIV CONTRACTOR & OTHER AGENCIES,TRANSITIONAL CARE SUPPORT TEAM,Third Party Payments,Revenue
Walsall Council,http://opendatacommunities.org/id/metropolitan-district-council/walsall,WC116-716,31/05/2020,Adult Social Care,ARBORETUM NURSING HOME.,07/05/2020,552.00,73502-NURSING,PHYSICAL SUPPORT,Third Party Payments,Revenue
Walsall Council,http://opendatacommunities.org/id/metropolitan-district-council/walsall,WC116-717,31/05/2020,Adult Social Care,ARBORETUM NURSING HOME.,07/05/2020,745.00,73025-PROFESSIONAL SERVICES-PRIV CONTRACTOR & OTHER AGENCIES,TRANSITIONAL CARE SUPPORT TEAM,Third Party Payments,Revenue
Walsall Council,http://opendatacommunities.org/id/metropolitan-district-council/walsall,WC116-718,31/05/2020,Adult Social Care,ARBORETUM NURSING HOME.,13/05/2020,745.00,73025-PROFESSIONAL SERVICES-PRIV CONTRACTOR & OTHER AGENCIES,TRANSITIONAL CARE SUPPORT TEAM,Third Party Payments,Revenue
Walsall Council,http://opendatacommunities.org/id/metropolitan-district-council/walsall,WC116-719,31/05/2020,Adult Social Care,ARBORETUM NURSING HOME.,14/05/2020,745.00,73025-PROFESSIONAL SERVICES-PRIV CONTRACTOR & OTHER AGENCIES,TRANSITIONAL CARE SUPPORT TEAM,Third Party Payments,Revenue
Walsall Council,http://opendatacommunities.org/id/metropolitan-district-council/walsall,WC116-720,31/05/2020,Adult Social Care,ARBORETUM NURSING HOME.,07/05/2020,"1,887.05",73502-NURSING,PHYSICAL SUPPORT,Third Party Payments,Revenue
Walsall Council,http://opendatacommunities.org/id/metropolitan-district-council/walsall,WC116-721,31/05/2020,Adult Social Care,ARBORETUM NURSING HOME.,07/05/2020,"2,314.91",73502-NURSING,PHYSICAL SUPPORT,Third Party Payments,Revenue
Walsall Council,http://opendatacommunities.org/id/metropolitan-district-council/walsall,WC116-722,31/05/2020,Adult Social Care,ARBORETUM NURSING HOME.,07/05/2020,"2,314.91",73502-NURSING,PHYSICAL SUPPORT,Third Party Payments,Revenue
Walsall Council,http://opendatacommunities.org/id/metropolitan-district-council/walsall,WC116-723,31/05/2020,Adult Social Care,ARBORETUM NURSING HOME.,07/05/2020,"2,394.91",73502-NURSING,PHYSICAL SUPPORT,Third Party Payments,Revenue
Walsall Council,http://opendatacommunities.org/id/metropolitan-district-council/walsall,WC116-724,31/05/2020,Adult Social Care,ARBORETUM NURSING HOME.,07/05/2020,"2,414.91",73502-NURSING,PHYSICAL SUPPORT,Third Party Payments,Revenue
Walsall Council,http://opendatacommunities.org/id/metropolitan-district-council/walsall,WC116-725,31/05/2020,Adult Social Care,ARBORETUM NURSING HOME.,07/05/2020,"2,428.15",73503-NURSING EMI,PHYSICAL SUPPORT,Third Party Payments,Revenue
Walsall Council,http://opendatacommunities.org/id/metropolitan-district-council/walsall,WC116-726,31/05/2020,Adult Social Care,ARBORETUM NURSING HOME.,07/05/2020,"2,434.91",73502-NURSING,PHYSICAL SUPPORT,Third Party Payments,Revenue
Walsall Council,http://opendatacommunities.org/id/metropolitan-district-council/walsall,WC116-727,31/05/2020,Adult Social Care,ARBORETUM NURSING HOME.,07/05/2020,"2,474.91",73502-NURSING,SOCIAL SUPPORT,Third Party Payments,Revenue
Walsall Council,http://opendatacommunities.org/id/metropolitan-district-council/walsall,WC116-728,31/05/2020,Adult Social Care,ARBORETUM NURSING HOME.,07/05/2020,"2,474.91",73502-NURSING,PHYSICAL SUPPORT,Third Party Payments,Revenue
Walsall Council,http://opendatacommunities.org/id/metropolitan-district-council/walsall,WC116-729,31/05/2020,Adult Social Care,ARBORETUM NURSING HOME.,07/05/2020,"2,474.91",73502-NURSING,SOCIAL SUPPORT,Third Party Payments,Revenue
Walsall Council,http://opendatacommunities.org/id/metropolitan-district-council/walsall,WC116-730,31/05/2020,Adult Social Care,ARBORETUM NURSING HOME.,07/05/2020,"2,474.91",73502-NURSING,PHYSICAL SUPPORT,Third Party Payments,Revenue
Walsall Council,http://opendatacommunities.org/id/metropolitan-district-council/walsall,WC116-731,31/05/2020,Adult Social Care,ARBORETUM NURSING HOME.,07/05/2020,"2,474.91",73502-NURSING,PHYSICAL SUPPORT,Third Party Payments,Revenue
Walsall Council,http://opendatacommunities.org/id/metropolitan-district-council/walsall,WC116-732,31/05/2020,Adult Social Care,ARBORETUM NURSING HOME.,07/05/2020,"2,723.19",73502-NURSING,SOCIAL SUPPORT,Third Party Payments,Revenue
Walsall Council,http://opendatacommunities.org/id/metropolitan-district-council/walsall,WC116-733,31/05/2020,Adult Social Care,ARBORETUM NURSING HOME.,04/05/2020,"2,980.00",73025-PROFESSIONAL SERVICES-PRIV CONTRACTOR & OTHER AGENCIES,TRANSITIONAL CARE SUPPORT TEAM,Third Party Payments,Revenue
Walsall Council,http://opendatacommunities.org/id/metropolitan-district-council/walsall,WC116-734,31/05/2020,Adult Social Care,ARBORETUM NURSING HOME.,05/05/2020,"2,980.00",73025-PROFESSIONAL SERVICES-PRIV CONTRACTOR & OTHER AGENCIES,TRANSITIONAL CARE SUPPORT TEAM,Third Party Payments,Revenue
Walsall Council,http://opendatacommunities.org/id/metropolitan-district-council/walsall,WC116-735,31/05/2020,Adult Social Care,ARBORETUM NURSING HOME.,14/05/2020,"2,980.00",73025-PROFESSIONAL SERVICES-PRIV CONTRACTOR & OTHER AGENCIES,TRANSITIONAL CARE SUPPORT TEAM,Third Party Payments,Revenue
Walsall Council,http://opendatacommunities.org/id/metropolitan-district-council/walsall,WC116-736,31/05/2020,Adult Social Care,ARBORETUM NURSING HOME.,26/05/2020,"11,920.00",73025-PROFESSIONAL SERVICES-PRIV CONTRACTOR & OTHER AGENCIES,TRANSITIONAL CARE SUPPORT TEAM,Third Party Payments,Revenue
Walsall Council,http://opendatacommunities.org/id/metropolitan-district-council/walsall,WC116-737,31/05/2020,Economy & Environment,ARCADIS,11/05/2020,"23,683.40",63102-CONSULTANTS FEES - CORPORATE,DEVELOPMENT TEAM,Supplies & Services,Revenue
Walsall Council,http://opendatacommunities.org/id/metropolitan-district-council/walsall,WC116-738,31/05/2020,Economy & Environment,ARCO GROUP,04/05/2020,263.20,60514-MATERIALS TO STORES,FLEET PARTS STOCK ACCOUNT,Supplies & Services,Revenue
Walsall Council,http://opendatacommunities.org/id/metropolitan-district-council/walsall,WC116-739,31/05/2020,Adult Social Care,ARJO UK LTD,04/05/2020,"2,193.45",60007-REPAIR OF EQUIPMENT-EQUIPMENT,INTERMEDIATE CARE SERVICE,Supplies & Services,Revenue
Walsall Council,http://opendatacommunities.org/id/metropolitan-district-council/walsall,WC116-740,31/05/2020,Resources and Transformation,ASCENDANT SOLUTIONS LTD,06/05/2020,"10,000.00",63800-COMPUTER EQUIPMENT AND SUPPLIES,REVENUES,Supplies & Services,Revenue
Walsall Council,http://opendatacommunities.org/id/metropolitan-district-council/walsall,WC116-741,31/05/2020,Adult Social Care,ASH GRANGE CARE HOME,07/05/2020,"-1,071.86",73502-NURSING,PHYSICAL SUPPORT,Third Party Payments,Revenue
Walsall Council,http://opendatacommunities.org/id/metropolitan-district-council/walsall,WC116-742,31/05/2020,Adult Social Care,ASH GRANGE CARE HOME,07/05/2020,274.08,73503-NURSING EMI,PHYSICAL SUPPORT,Third Party Payments,Revenue
Walsall Council,http://opendatacommunities.org/id/metropolitan-district-council/walsall,WC116-743,31/05/2020,Adult Social Care,ASH GRANGE CARE HOME,07/05/2020,"1,957.52",73500-RESIDENTIAL,SUPPORT WITH MEMORY & COGNITION,Third Party Payments,Revenue
Walsall Council,http://opendatacommunities.org/id/metropolitan-district-council/walsall,WC116-744,31/05/2020,Adult Social Care,ASH GRANGE CARE HOME,07/05/2020,"1,957.52",73500-RESIDENTIAL,MENTAL HEALTH SUPPORT,Third Party Payments,Revenue
Walsall Council,http://opendatacommunities.org/id/metropolitan-district-council/walsall,WC116-745,31/05/2020,Adult Social Care,ASH GRANGE CARE HOME,07/05/2020,"2,314.91",73502-NURSING,SUPPORT WITH MEMORY & COGNITION,Third Party Payments,Revenue
Walsall Council,http://opendatacommunities.org/id/metropolitan-district-council/walsall,WC116-746,31/05/2020,Adult Social Care,ASH GRANGE CARE HOME,07/05/2020,"2,314.91",73502-NURSING,PHYSICAL SUPPORT,Third Party Payments,Revenue
Walsall Council,http://opendatacommunities.org/id/metropolitan-district-council/walsall,WC116-747,31/05/2020,Adult Social Care,ASH GRANGE CARE HOME,07/05/2020,"2,314.91",73502-NURSING,PHYSICAL SUPPORT,Third Party Payments,Revenue
Walsall Council,http://opendatacommunities.org/id/metropolitan-district-council/walsall,WC116-748,31/05/2020,Adult Social Care,ASH GRANGE CARE HOME,07/05/2020,"2,314.91",73502-NURSING,PHYSICAL SUPPORT,Third Party Payments,Revenue
Walsall Council,http://opendatacommunities.org/id/metropolitan-district-council/walsall,WC116-749,31/05/2020,Adult Social Care,ASH GRANGE CARE HOME,07/05/2020,"2,314.91",73502-NURSING,PHYSICAL SUPPORT,Third Party Payments,Revenue
Walsall Council,http://opendatacommunities.org/id/metropolitan-district-council/walsall,WC116-750,31/05/2020,Adult Social Care,ASH GRANGE CARE HOME,07/05/2020,"2,314.91",73502-NURSING,MENTAL HEALTH SUPPORT,Third Party Payments,Revenue
Walsall Council,http://opendatacommunities.org/id/metropolitan-district-council/walsall,WC116-751,31/05/2020,Adult Social Care,ASH GRANGE CARE HOME,07/05/2020,"2,314.91",73502-NURSING,PHYSICAL SUPPORT,Third Party Payments,Revenue
Walsall Council,http://opendatacommunities.org/id/metropolitan-district-council/walsall,WC116-752,31/05/2020,Adult Social Care,ASH GRANGE CARE HOME,07/05/2020,"2,314.91",73502-NURSING,PHYSICAL SUPPORT,Third Party Payments,Revenue
Walsall Council,http://opendatacommunities.org/id/metropolitan-district-council/walsall,WC116-753,31/05/2020,Adult Social Care,ASH GRANGE CARE HOME,07/05/2020,"2,314.91",73502-NURSING,PHYSICAL SUPPORT,Third Party Payments,Revenue
Walsall Council,http://opendatacommunities.org/id/metropolitan-district-council/walsall,WC116-754,31/05/2020,Adult Social Care,ASH GRANGE CARE HOME,07/05/2020,"2,314.91",73502-NURSING,MENTAL HEALTH SUPPORT,Third Party Payments,Revenue
Walsall Council,http://opendatacommunities.org/id/metropolitan-district-council/walsall,WC116-755,31/05/2020,Adult Social Care,ASH GRANGE CARE HOME,07/05/2020,"2,314.91",73502-NURSING,MENTAL HEALTH SUPPORT,Third Party Payments,Revenue
Walsall Council,http://opendatacommunities.org/id/metropolitan-district-council/walsall,WC116-756,31/05/2020,Adult Social Care,ASH GRANGE CARE HOME,07/05/2020,"2,434.91",73502-NURSING,PHYSICAL SUPPORT,Third Party Payments,Revenue
Walsall Council,http://opendatacommunities.org/id/metropolitan-district-council/walsall,WC116-757,31/05/2020,Adult Social Care,ASH GRANGE CARE HOME,07/05/2020,"2,474.91",73502-NURSING,PHYSICAL SUPPORT,Third Party Payments,Revenue
Walsall Council,http://opendatacommunities.org/id/metropolitan-district-council/walsall,WC116-758,31/05/2020,Adult Social Care,ASH GRANGE CARE HOME,07/05/2020,"2,514.91",73502-NURSING,PHYSICAL SUPPORT,Third Party Payments,Revenue
Walsall Council,http://opendatacommunities.org/id/metropolitan-district-council/walsall,WC116-759,31/05/2020,Adult Social Care,ASH GRANGE CARE HOME,07/05/2020,"2,514.91",73502-NURSING,SOCIAL SUPPORT,Third Party Payments,Revenue
Walsall Council,http://opendatacommunities.org/id/metropolitan-district-council/walsall,WC116-760,31/05/2020,Adult Social Care,ASH GRANGE CARE HOME,07/05/2020,"2,561.72",73500-RESIDENTIAL,LEARNING DISABILITY SUPPORT,Third Party Payments,Revenue
Walsall Council,http://opendatacommunities.org/id/metropolitan-district-council/walsall,WC116-761,31/05/2020,Adult Social Care,ASH GRANGE CARE HOME,07/05/2020,"2,587.38",73503-NURSING EMI,PHYSICAL SUPPORT,Third Party Payments,Revenue
Walsall Council,http://opendatacommunities.org/id/metropolitan-district-council/walsall,WC116-762,31/05/2020,Adult Social Care,ASH GRANGE CARE HOME,07/05/2020,"2,587.38",73503-NURSING EMI,PHYSICAL SUPPORT,Third Party Payments,Revenue
Walsall Council,http://opendatacommunities.org/id/metropolitan-district-council/walsall,WC116-763,31/05/2020,Adult Social Care,ASH GRANGE CARE HOME,07/05/2020,"2,587.38",73503-NURSING EMI,PHYSICAL SUPPORT,Third Party Payments,Revenue
Walsall Council,http://opendatacommunities.org/id/metropolitan-district-council/walsall,WC116-764,31/05/2020,Adult Social Care,ASH GRANGE CARE HOME,07/05/2020,"2,594.91",73502-NURSING,SOCIAL SUPPORT,Third Party Payments,Revenue
Walsall Council,http://opendatacommunities.org/id/metropolitan-district-council/walsall,WC116-765,31/05/2020,Adult Social Care,ASH GRANGE CARE HOME,07/05/2020,"2,634.91",73502-NURSING,PHYSICAL SUPPORT,Third Party Payments,Revenue
Walsall Council,http://opendatacommunities.org/id/metropolitan-district-council/walsall,WC116-766,31/05/2020,Adult Social Care,ASH GRANGE CARE HOME,07/05/2020,"2,946.15",73502-NURSING,PHYSICAL SUPPORT,Third Party Payments,Revenue
Walsall Council,http://opendatacommunities.org/id/metropolitan-district-council/walsall,WC116-767,31/05/2020,Adult Social Care,ASH GRANGE CARE HOME,07/05/2020,"3,582.56",73500-RESIDENTIAL,PHYSICAL SUPPORT,Third Party Payments,Revenue
Walsall Council,http://opendatacommunities.org/id/metropolitan-district-council/walsall,WC116-768,31/05/2020,Adult Social Care,REDACTED,01/05/2020,"1,239.04",73506-DIRECT PAYMENT,LEARNING DISABILITY SUPPORT,Third Party Payments,Revenue
Walsall Council,http://opendatacommunities.org/id/metropolitan-district-council/walsall,WC116-769,31/05/2020,Adult Social Care,REDACTED,01/05/2020,743.24,73506-DIRECT PAYMENT,PHYSICAL SUPPORT,Third Party Payments,Revenue
Walsall Council,http://opendatacommunities.org/id/metropolitan-district-council/walsall,WC116-770,31/05/2020,Resources and Transformation,ASSOCIATION OF DEMOCRATIC SERVICES OFFICERS (ADSO),07/05/2020,480.00,31000-ADVERTISING STAFF VACANCIES,COMMITTEE ADMINISTRATION,Employees,Revenue
Walsall Council,http://opendatacommunities.org/id/metropolitan-district-council/walsall,WC116-771,31/05/2020,Resources and Transformation,ASTUN TECHNOLOGY LIMITED,18/05/2020,"4,250.00",63800-COMPUTER EQUIPMENT AND SUPPLIES,RECHARGEABLE EQUIPMENT,Supplies & Services,Revenue
Walsall Council,http://opendatacommunities.org/id/metropolitan-district-council/walsall,WC116-772,31/05/2020,Economy & Environment,ATKINS LIMITED,14/05/2020,"2,860.92",01001-OTHER CONSULTANTS FEES,CFR 819 LTP-YORKS BRIDGE,Capital,Capital
Walsall Council,http://opendatacommunities.org/id/metropolitan-district-council/walsall,WC116-773,31/05/2020,Childrens,ATTACHMENT WORKS LTD,13/05/2020,"4,700.00",74009-ADOPTION ALLOWANCE,ADOPTION TEAM,Transfer Payments,Revenue
Walsall Council,http://opendatacommunities.org/id/metropolitan-district-council/walsall,WC116-774,31/05/2020,Resources and Transformation,AUDITEL RENTAL & SERVICE LTD,06/05/2020,"3,000.00",40000-OPERATIONAL MAINTENANCE,CENTRALISED MAINTENANCE,Premises,Revenue
Walsall Council,http://opendatacommunities.org/id/metropolitan-district-council/walsall,WC116-775,31/05/2020,Resources and Transformation,AURORA GRAPHICS & DISPLAYS LTD,20/05/2020,258.00,62008-OUTWORK PRINT & DESIGN,PRINTING SERVICES,Supplies & Services,Revenue
Walsall Council,http://opendatacommunities.org/id/metropolitan-district-council/walsall,WC116-776,31/05/2020,Resources and Transformation,AURORA GRAPHICS & DISPLAYS LTD,12/05/2020,279.80,62008-OUTWORK PRINT & DESIGN,PRINTING SERVICES,Supplies & Services,Revenue
Walsall Council,http://opendatacommunities.org/id/metropolitan-district-council/walsall,WC116-777,31/05/2020,Adult Social Care,AUTISM WEST MIDLANDS,07/05/2020,"7,289.28",73500-RESIDENTIAL,LEARNING DISABILITY SUPPORT,Third Party Payments,Revenue
Walsall Council,http://opendatacommunities.org/id/metropolitan-district-council/walsall,WC116-778,31/05/2020,Adult Social Care,AUTISM WEST MIDLANDS 001,07/05/2020,"5,633.12",73500-RESIDENTIAL,LEARNING DISABILITY SUPPORT,Third Party Payments,Revenue
Walsall Council,http://opendatacommunities.org/id/metropolitan-district-council/walsall,WC116-779,31/05/2020,Adult Social Care,AVERY HOMES NELSON LIMITED,07/05/2020,"1,957.52",73500-RESIDENTIAL,PHYSICAL SUPPORT,Third Party Payments,Revenue
Walsall Council,http://opendatacommunities.org/id/metropolitan-district-council/walsall,WC116-780,31/05/2020,Adult Social Care,AVERY HOMES NELSON LIMITED,07/05/2020,"3,782.56",73500-RESIDENTIAL,SUPPORT WITH MEMORY & COGNITION,Third Party Payments,Revenue
Walsall Council,http://opendatacommunities.org/id/metropolitan-district-council/walsall,WC116-781,31/05/2020,Adult Social Care,REDACTED,01/05/2020,"3,360.40",73506-DIRECT PAYMENT,LEARNING DISABILITY SUPPORT,Third Party Payments,Revenue
Walsall Council,http://opendatacommunities.org/id/metropolitan-district-council/walsall,WC116-782,31/05/2020,Resources and Transformation,BAART HARRIES NEWALL,21/05/2020,720.00,01006-SITE WORKS MAIN CONTRACTORS,CFR 1342 OPERATION REPAIR & MTCE OF COUNCIL BUILDINGS,Capital,Capital
Walsall Council,http://opendatacommunities.org/id/metropolitan-district-council/walsall,WC116-783,31/05/2020,Resources and Transformation,BAART HARRIES NEWALL,20/05/2020,"1,500.00",01006-SITE WORKS MAIN CONTRACTORS,CFR 1293 WALSALL COUNCIL HSE-MODERN SECURE RECEPTION,Capital,Capital
Walsall Council,http://opendatacommunities.org/id/metropolitan-district-council/walsall,WC116-784,31/05/2020,Resources and Transformation,BAART HARRIES NEWALL,19/05/2020,"1,760.00",40000-OPERATIONAL MAINTENANCE,RECHARGEABLE - NON SCHOOLS MAINTENANCE,Premises,Revenue
Walsall Council,http://opendatacommunities.org/id/metropolitan-district-council/walsall,WC116-785,31/05/2020,Economy & Environment,BAKER HALL PARTNERSHIP,15/05/2020,978.00,63000-PROFESSIONAL FEES AND SERVICES,BUILDING CONTROL REVENUE FUNDED,Supplies & Services,Revenue
Walsall Council,http://opendatacommunities.org/id/metropolitan-district-council/walsall,WC116-786,31/05/2020,Adult Social Care,REDACTED,01/05/2020,372.00,73506-DIRECT PAYMENT,LEARNING DISABILITY SUPPORT,Third Party Payments,Revenue
Walsall Council,http://opendatacommunities.org/id/metropolitan-district-council/walsall,WC116-787,31/05/2020,Adult Social Care,REDACTED,01/05/2020,"3,734.32",73506-DIRECT PAYMENT,LEARNING DISABILITY SUPPORT,Third Party Payments,Revenue
Walsall Council,http://opendatacommunities.org/id/metropolitan-district-council/walsall,WC116-788,31/05/2020,Childrens,BALTIMORE CONSULTING LTD,04/05/2020,"1,240.00",63000-PROFESSIONAL FEES AND SERVICES,SEN ASSESSMENT,Supplies & Services,Revenue
Walsall Council,http://opendatacommunities.org/id/metropolitan-district-council/walsall,WC116-789,31/05/2020,Childrens,BALTIMORE CONSULTING LTD,04/05/2020,"1,240.00",63000-PROFESSIONAL FEES AND SERVICES,SEN ASSESSMENT,Supplies & Services,Revenue
Walsall Council,http://opendatacommunities.org/id/metropolitan-district-council/walsall,WC116-790,31/05/2020,Childrens,BALTIMORE CONSULTING LTD,18/05/2020,"1,240.00",63000-PROFESSIONAL FEES AND SERVICES,SEN ASSESSMENT,Supplies & Services,Revenue
Walsall Council,http://opendatacommunities.org/id/metropolitan-district-council/walsall,WC116-791,31/05/2020,Childrens,BALTIMORE CONSULTING LTD,01/05/2020,"1,550.00",63000-PROFESSIONAL FEES AND SERVICES,SEN ASSESSMENT,Supplies & Services,Revenue
Walsall Council,http://opendatacommunities.org/id/metropolitan-district-council/walsall,WC116-792,31/05/2020,Childrens,BALTIMORE CONSULTING LTD,14/05/2020,"1,550.00",63000-PROFESSIONAL FEES AND SERVICES,SEN ASSESSMENT,Supplies & Services,Revenue
Walsall Council,http://opendatacommunities.org/id/metropolitan-district-council/walsall,WC116-793,31/05/2020,Childrens,BALTIMORE CONSULTING LTD,18/05/2020,"1,550.00",63000-PROFESSIONAL FEES AND SERVICES,SEN ASSESSMENT,Supplies & Services,Revenue
Walsall Council,http://opendatacommunities.org/id/metropolitan-district-council/walsall,WC116-794,31/05/2020,Childrens,BALTIMORE CONSULTING LTD,20/05/2020,"1,550.00",63000-PROFESSIONAL FEES AND SERVICES,SEN ASSESSMENT,Supplies & Services,Revenue
Walsall Council,http://opendatacommunities.org/id/metropolitan-district-council/walsall,WC116-795,31/05/2020,Childrens,REDACTED,04/05/2020,340.00,74508-INTERNAL FOSTER CARERS-CARER FEES,FAMILY & FRIENDS FOSTER CARE PROVISION,Transfer Payments,Revenue
Walsall Council,http://opendatacommunities.org/id/metropolitan-district-council/walsall,WC116-796,31/05/2020,Childrens,REDACTED,04/05/2020,540.00,74501-MAINTENANCE ALLOWANCE-FOSTER CARERS,FAMILY & FRIENDS FOSTER CARE PROVISION,Transfer Payments,Revenue
Walsall Council,http://opendatacommunities.org/id/metropolitan-district-council/walsall,WC116-797,31/05/2020,Adult Social Care,BARTHOLAMEW LODGE CARE HOME,07/05/2020,"3,167.18",73503-NURSING EMI,PHYSICAL SUPPORT,Third Party Payments,Revenue
Walsall Council,http://opendatacommunities.org/id/metropolitan-district-council/walsall,WC116-798,31/05/2020,Resources and Transformation,BASE 25,13/05/2020,"2,524.70",63102-CONSULTANTS FEES - CORPORATE,EARLY INTERVENTION YOUTH FUND,Supplies & Services,Revenue
Walsall Council,http://opendatacommunities.org/id/metropolitan-district-council/walsall,WC116-799,31/05/2020,Resources and Transformation,BASE 25,22/05/2020,"3,290.00",63102-CONSULTANTS FEES - CORPORATE,EARLY INTERVENTION YOUTH FUND,Supplies & Services,Revenue
Walsall Council,http://opendatacommunities.org/id/metropolitan-district-council/walsall,WC116-800,31/05/2020,Childrens,BAT FABRICATIONS LTD,01/05/2020,"-1,350.00",01006-SITE WORKS MAIN CONTRACTORS,CFR 1297 CASTLE BUSINESS & ENTERPRISE COLLEGE EXPANSION,Capital,Capital
